{"text_format":"1","workbook":"xlsx","n_sheets":6,"sheets":["Portada","Instructivo","Resoluciones 2015","Lista Desplegable","cpr04","CONTROL DE CAMBIOS"],"not_rendered":{"charts":0,"images":4,"macros":0,"external_links":7,"defined_names":15,"comments":1,"pivot_tables":0},"unopened":[],"bounds":{"document_bytes":16777216,"sheet_cells":100000,"rows_first":2000,"rows_last":500,"rows_between":2000,"halvings":0,"cell_chars":16384,"cell_head_chars":4096},"cells_cut":0,"cells_raw":0,"read":"whole","date_system":"1900"}

{"sheet":"Portada","index":0,"n_rows":0,"n_cols":0,"rows_kept":0,"cut":false,"hidden":false,"merged":[]}

{"sheet":"Instructivo","index":1,"n_rows":15,"n_cols":2,"rows_kept":15,"cut":false,"hidden":false,"merged":[[0,0,0,1]]}
["INSTRUCTIVO NORMOGRAMA"]
["VARIABLES","INDICACIONES"]
["NORMOGRAMA","Es una herramienta que permite a las entidades públicas y privadas delimitar las reglas que regulan sus actuaciones en desarrollo con su objeto misional. El normograma contiene las reglas externas como leyes, decretos, acuerdos, circulares, resoluciones que afectan la gestión de la entidad y las normas internas como reglamentos, estatutos, manuales y, en general, todos los actos administrativos de interés para la entidad que permiten identificar las competencias, responsabilidades y funciones de las dependencias de la organización."]
["DEPENDENCIA ","Corresponde al área funcional y/o esctructural donde se identifica la obligación legal o normativa. Una vez seleccionado el proceso, esta información aparecerá automáticamente."]
["PROCESO","Se debe seleccionar el proceso de la entidad al que corresponde la regla."]
["TIPO DE NORMA","Tipología normativa del documento, entre las cuales se encuentran en la lista desplegable y predeterminada las siguientes que se identifican con la naturaleza de la regla: Constitución Politica, Ley, Decreto, Decreto Ley, Concepto, Acuerdo, Directiva, Documento CONPES, Reglamento, Ordenanza, Resolución, Norma, Guia y Circular. Se debe seleccionar a que tipo de norma corresponde."]
["FUENTE DE LA NORMA ","Fuente de la norma, entre las cuales se encuentran en la lista desplegable y predeterminada que se identifican con la competencia, la siguientes: Nacional, Regional, Departamental, Municipal, Distrital, Técnica, Interna e Internacional. Se debe seleccionar a que tipo de norma corresponde."]
["NÚMERO DE IDENTIFICACIÓN ","Consecutivo con el que se identifica la Regla dependiendo de su tipología "]
["TÍTULO DEL DOCUMENTO","Titulo por medio del cual se identifica el documento."]
["ENTIDAD QUE EXPIDE","Hace referencia a la entidad o persona que produce la regla. "]
["TEMA ESPECÍFICO","Tema que trata la norma, en correspondencia con los objetivos y alcance del proceso."]
["FECHA EXPEDICIÓN\n(DD/MM/AAAA)","Fecha en la cual se expide el documento. No se debe confundir con la fecha de entrada en vigencia."]
["ARTÍCULOS","Articulos especificos que establece la regla aplicable. "]
["ESTADO ","Entre las cuales se encuentran en la lista desplegable y predeterminada que se identifican con la vigencia la siguientes: a) Vigente; b) Perdida de fuerza de una parte de la norma, por ente competente y; c) Perdida de fuerza de la totalidad de la norma, por ente competente.  "]
["COMENTARIOS","Observaciones a la norma, por parte del responsable del proceso, el área de Control Interno, Oficina de Planeación Institucional, o cualquier otro actor involucrado en el proceso."]

{"sheet":"Resoluciones 2015","index":2,"n_rows":392,"n_cols":12,"rows_kept":392,"cut":false,"hidden":false,"merged":[[0,0,5,0],[6,0,6,11],[4,10,5,11],[5,7,5,9],[4,7,4,9],[2,1,2,9],[4,1,4,6],[5,1,5,6],[0,1,0,9],[0,10,0,11],[1,10,1,11],[2,10,2,11],[3,10,3,11],[1,1,1,9],[3,1,3,9]]}
[null,"TIPO DE DOCUMENTO:               ",null,null,null,null,null,null,null,null,"VERSIÓN No. "]
[null,"FORMATO",null,null,null,null,null,null,null,null,4]
[null,"PROCEDIMIENTO:           ",null,null,null,null,null,null,null,null,"VIGENTE A PARTIR DE:"]
[null,"ACTUALIZACIÓN NORMATIVA",null,null,null,null,null,null,null,null,"2019-04-09"]
[null,"TITULO: ",null,null,null,null,null,"CODIGO:",null,null,"Página 1 de 1"]
[null,"NORMOGRAMA",null,null,null,null,null,"F-GJ.03 - 01"]
["NORMOGRAMA "]
["DEPENDENCIA","PROCESO","TIPO DE NORMA","FUENTE DE LA NORMA","NÚMERO DE IDENTIFICACIÓN","TÍTULO DEL DOCUMENTO","ENTIDAD QUE EXPIDE","TEMA ESPECÍFICO","FECHA EXPEDICIÓN\n(DD/MM/AAAA)","ARTÍCULOS","ESTADO","COMENTARIOS"]
[{"$f":"IF(ISERROR(VLOOKUP(B9,'Lista Desplegable'!$A$49:$C$64,3,0))=TRUE,\"Seleccione el proceso Correcto\",VLOOKUP(B9,'Lista Desplegable'!$A$49:$C$64,3,0))","v":"Dirección Ejecutiva"},"Gestión Jurídica","Resolución","Interna",1,"Por la cual se adoptan disposiciones en relación con la publicidad de los actos administrativos de la RAPE","RAPE Región Central","Publicidad de los actos administrativos ","2014-09-30","Todos","VIGENTE","Ninguna"]
[{"$f":"IF(ISERROR(VLOOKUP(B10,'Lista Desplegable'!$A$49:$C$64,3,0))=TRUE,\"Seleccione el proceso Correcto\",VLOOKUP(B10,'Lista Desplegable'!$A$49:$C$64,3,0))","v":"Dirección Ejecutiva"},"Gestión Jurídica","Resolución","Interna",2,"Por medio de la cual se distribuyen los cargos de la planta global de la RAPE Región Central","RAPE Región Central","Distribución de los cargos de la planta global ","2015-03-13","Todos","VIGENTE","Ninguna"]
[{"$f":"IF(ISERROR(VLOOKUP(B11,'Lista Desplegable'!$A$49:$C$64,3,0))=TRUE,\"Seleccione el proceso Correcto\",VLOOKUP(B11,'Lista Desplegable'!$A$49:$C$64,3,0))","v":"Dirección Ejecutiva"},"Gestión Jurídica","Resolución","Interna",3,"Por la cual establece el Manual Específico de Funciones y de Competencias Laborales para los empleos de la planta de personal de la Región Administrativa y de Planeación Especial denominada RAPE – Región Central","RAPE Región Central","Manual Específico de Funciones y de Competencias Laborales","2015-03-13","Todos","VIGENTE","Ninguna"]
[{"$f":"IF(ISERROR(VLOOKUP(B12,'Lista Desplegable'!$A$49:$C$64,3,0))=TRUE,\"Seleccione el proceso Correcto\",VLOOKUP(B12,'Lista Desplegable'!$A$49:$C$64,3,0))","v":"Dirección Ejecutiva"},"Gestión Jurídica","Resolución","Interna",14,"Por la cual se adopta la tabla de honorarios para la contratación de servicios profesionales y de apoyo a la gestión de la Región Administrativa y de Planeación Especial RAPE- Región Central para la vigencia 2015","RAPE Región Central","Honorarios","2015-04-16","Todos","VIGENTE","Ninguna"]
[{"$f":"IF(ISERROR(VLOOKUP(B13,'Lista Desplegable'!$A$49:$C$64,3,0))=TRUE,\"Seleccione el proceso Correcto\",VLOOKUP(B13,'Lista Desplegable'!$A$49:$C$64,3,0))","v":"Dirección Ejecutiva"},"Gestión Jurídica","Resolución","Interna",16,"Por la cual se crea y reglamenta el funcionamiento del Comité de Contratación de la Región Administrativa y de Planeación especial RAPE - Región Central.","RAPE Región Central","Comité de Contratación","2015-04-20","Todos","VIGENTE","Ninguna"]
[{"$f":"IF(ISERROR(VLOOKUP(B14,'Lista Desplegable'!$A$49:$C$64,3,0))=TRUE,\"Seleccione el proceso Correcto\",VLOOKUP(B14,'Lista Desplegable'!$A$49:$C$64,3,0))","v":"Dirección Ejecutiva"},"Gestión Jurídica","Resolución","Interna",17,"Por la cual se designa el comité para la asesoría y evaluación de las prouestas presentadas, en los procesos de selección que adelanta la Dirección Corporativa de la Región Administrativa y de Planeacion Especial RAPE - Región Central.","RAPE Región Central","Comité para la asesoría y evaluación","2015-04-20","Todos","VIGENTE","Ninguna"]
[{"$f":"IF(ISERROR(VLOOKUP(B15,'Lista Desplegable'!$A$49:$C$64,3,0))=TRUE,\"Seleccione el proceso Correcto\",VLOOKUP(B15,'Lista Desplegable'!$A$49:$C$64,3,0))","v":"Dirección Ejecutiva"},"Gestión Jurídica","Resolución","Interna",19,"Por la cual se efectúa la distribución del presupuesto de Ingresos y Gastos de la Región Administrativa y de Planeación Especial - RAPE - Región Central, para la vigencia fiscal 2015 y se dictan otras disposiciones","RAPE Región Central","Distribución del presupuesto de Ingresos y Gastos","2015-04-22","Todos","VIGENTE","Ninguna"]
[{"$f":"IF(ISERROR(VLOOKUP(B16,'Lista Desplegable'!$A$49:$C$64,3,0))=TRUE,\"Seleccione el proceso Correcto\",VLOOKUP(B16,'Lista Desplegable'!$A$49:$C$64,3,0))","v":"Dirección Ejecutiva"},"Gestión Jurídica","Resolución","Interna",20,"Por la cual se constituye y se reglamenta el funcionamiento de la Caja Menor con cargo al presupuesto asignado a la RAPE para la vigencia fiscal 2015","RAPE Región Central","Caja menor","2015-04-23","Todos","VIGENTE","Ninguna"]
[{"$f":"IF(ISERROR(VLOOKUP(B17,'Lista Desplegable'!$A$49:$C$64,3,0))=TRUE,\"Seleccione el proceso Correcto\",VLOOKUP(B17,'Lista Desplegable'!$A$49:$C$64,3,0))","v":"Dirección Ejecutiva"},"Gestión Jurídica","Resolución","Interna",27,"Por medio de la cual se reglamenta el trámite de comisiones de servicio y el reconocimiento de viáticos y gastos de viaje en la RAPE – Región Central y se dictan otras disposiciones","RAPE Región Central","Comisiones de servicio y el reconocimiento de viáticos y gastos de viaje","2015-05-13","Todos","VIGENTE","Ninguna"]
[{"$f":"IF(ISERROR(VLOOKUP(B18,'Lista Desplegable'!$A$49:$C$64,3,0))=TRUE,\"Seleccione el proceso Correcto\",VLOOKUP(B18,'Lista Desplegable'!$A$49:$C$64,3,0))","v":"Dirección Ejecutiva"},"Gestión Jurídica","Resolución","Interna",30,"Por la cual se declara desierto el proceso de selección de Mínima Cuantía MC-001 DE 2015","RAPE Región Central","Contratación","2015-05-19","Todos","VIGENTE","Ninguna"]
[{"$f":"IF(ISERROR(VLOOKUP(B19,'Lista Desplegable'!$A$49:$C$64,3,0))=TRUE,\"Seleccione el proceso Correcto\",VLOOKUP(B19,'Lista Desplegable'!$A$49:$C$64,3,0))","v":"Dirección Ejecutiva"},"Gestión Jurídica","Resolución","Interna",31,"Por la cual se declara desierto el proceso de selección de Mínima Cuantía MC-002 DE 2015","RAPE Región Central","Contratación","2015-05-28","Todos","VIGENTE","Ninguna"]
[{"$f":"IF(ISERROR(VLOOKUP(B20,'Lista Desplegable'!$A$49:$C$64,3,0))=TRUE,\"Seleccione el proceso Correcto\",VLOOKUP(B20,'Lista Desplegable'!$A$49:$C$64,3,0))","v":"Dirección Ejecutiva"},"Gestión Jurídica","Resolución","Interna",34,"Por la cual se modifica la Resolución No. 019 de 20015","RAPE Región Central","Modificacíon Resolución","2015-06-12","Todos","VIGENTE","Ninguna"]
[{"$f":"IF(ISERROR(VLOOKUP(B21,'Lista Desplegable'!$A$49:$C$64,3,0))=TRUE,\"Seleccione el proceso Correcto\",VLOOKUP(B21,'Lista Desplegable'!$A$49:$C$64,3,0))","v":"Dirección Ejecutiva"},"Gestión Jurídica","Resolución","Interna",37,"Por la cual se ordena la Apertura del Proceso de Selección Abreviada de Menor Cuantía SAMC-003-2015","RAPE Región Central","Contratación","2015-06-22","Todos","VIGENTE","Ninguna"]
[{"$f":"IF(ISERROR(VLOOKUP(B22,'Lista Desplegable'!$A$49:$C$64,3,0))=TRUE,\"Seleccione el proceso Correcto\",VLOOKUP(B22,'Lista Desplegable'!$A$49:$C$64,3,0))","v":"Dirección Ejecutiva"},"Gestión Jurídica","Resolución","Interna",38,"Por la cual justifica la contratación de servicio de internet mediante pagos de servicios públicos","RAPE Región Central","Contratación","2015-06-23","Todos","VIGENTE","Ninguna"]
[{"$f":"IF(ISERROR(VLOOKUP(B23,'Lista Desplegable'!$A$49:$C$64,3,0))=TRUE,\"Seleccione el proceso Correcto\",VLOOKUP(B23,'Lista Desplegable'!$A$49:$C$64,3,0))","v":"Dirección Ejecutiva"},"Gestión Jurídica","Resolución","Interna",42,"Por medio de la cual se adjudica el proceso de Selección Abreviada Menor Cuantía No. SAMC-003-2015","RAPE Región Central","Contratación","2015-07-08","Todos","VIGENTE","Ninguna"]
[{"$f":"IF(ISERROR(VLOOKUP(B24,'Lista Desplegable'!$A$49:$C$64,3,0))=TRUE,\"Seleccione el proceso Correcto\",VLOOKUP(B24,'Lista Desplegable'!$A$49:$C$64,3,0))","v":"Dirección Ejecutiva"},"Gestión Jurídica","Resolución","Interna",44,"Por la cual se ordena la Apertura del Proceso de Selecció Abreviada de Menor Cuantía SAMC-006-2015","RAPE Región Central","Contratación","2015-07-13","Todos","VIGENTE","Ninguna"]
[{"$f":"IF(ISERROR(VLOOKUP(B25,'Lista Desplegable'!$A$49:$C$64,3,0))=TRUE,\"Seleccione el proceso Correcto\",VLOOKUP(B25,'Lista Desplegable'!$A$49:$C$64,3,0))","v":"Dirección Ejecutiva"},"Gestión Jurídica","Resolución","Interna",49,"Por la cual se convoca a elección de los representantes de los empleados ante la Comisión de Personal de la Región Administrativa y de Planeación Especial RAPE - Región Central","RAPE Región Central","Comisión de Personal de la Región","2015-07-21","Todos","VIGENTE","Ninguna"]
[{"$f":"IF(ISERROR(VLOOKUP(B26,'Lista Desplegable'!$A$49:$C$64,3,0))=TRUE,\"Seleccione el proceso Correcto\",VLOOKUP(B26,'Lista Desplegable'!$A$49:$C$64,3,0))","v":"Dirección Ejecutiva"},"Gestión Jurídica","Resolución","Interna",53,"Por medio de la cual se adjudica el proceso de Selección   Abreviada Menor Cuantía No. SAMC-006-2015","RAPE Región Central","Contratación","2015-07-28","Todos","VIGENTE","Ninguna"]
[{"$f":"IF(ISERROR(VLOOKUP(B27,'Lista Desplegable'!$A$49:$C$64,3,0))=TRUE,\"Seleccione el proceso Correcto\",VLOOKUP(B27,'Lista Desplegable'!$A$49:$C$64,3,0))","v":"Dirección Ejecutiva"},"Gestión Jurídica","Resolución","Interna",54,"Por la cual se realizan unos traslados en el Presupuesto Anual de Gastos e Inversiones de la Región Administrativa y de Planeación Especial denominada RAPE - Región Central para la vigencia fiscal de 2015","RAPE Región Central","Presupuesto de ingresos rentas y gastos ","2015-07-28","Todos","VIGENTE","Ninguna"]
[{"$f":"IF(ISERROR(VLOOKUP(B28,'Lista Desplegable'!$A$49:$C$64,3,0))=TRUE,\"Seleccione el proceso Correcto\",VLOOKUP(B28,'Lista Desplegable'!$A$49:$C$64,3,0))","v":"Dirección Ejecutiva"},"Gestión Jurídica","Resolución","Interna",55,"Por medio de la cual se reglamenta el trámite de autorización de desplazamiento a contratistas y el reconocimiento y pago de gastos de desplazamiento en la RAPE - Región Central","RAPE Región Central","Desplazamientos a contratistas","2015-07-28","Todos","VIGENTE","Ninguna"]
[{"$f":"IF(ISERROR(VLOOKUP(B29,'Lista Desplegable'!$A$49:$C$64,3,0))=TRUE,\"Seleccione el proceso Correcto\",VLOOKUP(B29,'Lista Desplegable'!$A$49:$C$64,3,0))","v":"Dirección Ejecutiva"},"Gestión Jurídica","Resolución","Interna",56,"Por la cual se establece el horario de trabajo de los empleados públicos de la RAPE - Región Central","RAPE Región Central","Horario de Trabajo","2015-07-31","Todos","VIGENTE","Ninguna"]
[{"$f":"IF(ISERROR(VLOOKUP(B30,'Lista Desplegable'!$A$49:$C$64,3,0))=TRUE,\"Seleccione el proceso Correcto\",VLOOKUP(B30,'Lista Desplegable'!$A$49:$C$64,3,0))","v":"Dirección Ejecutiva"},"Gestión Jurídica","Resolución","Interna",58,"Por la cual se realiza un traslado en el Presupuesto Anual de Gastos de la Región Administrativa y de Planeación Especial RAPE - Región Central para la vigencia fiscal de 2015","RAPE Región Central","Presupuesto de ingresos rentas y gastos ","2015-08-05","Todos","VIGENTE","Ninguna"]
[{"$f":"IF(ISERROR(VLOOKUP(B31,'Lista Desplegable'!$A$49:$C$64,3,0))=TRUE,\"Seleccione el proceso Correcto\",VLOOKUP(B31,'Lista Desplegable'!$A$49:$C$64,3,0))","v":"Dirección Ejecutiva"},"Gestión Jurídica","Resolución","Interna",59,"Por la cual se modifica parcialmente la Resolución No. 016 del 2015 y se dictan otras disposiciones","RAPE Región Central","Aclaración Resolución","2015-08-10","Todos","VIGENTE","Ninguna"]
[{"$f":"IF(ISERROR(VLOOKUP(B32,'Lista Desplegable'!$A$49:$C$64,3,0))=TRUE,\"Seleccione el proceso Correcto\",VLOOKUP(B32,'Lista Desplegable'!$A$49:$C$64,3,0))","v":"Dirección Ejecutiva"},"Gestión Jurídica","Resolución","Interna",60,"Por la cual se ordena la apertura del Proceso Selección Abreviada por Subasta Inversa presencial SASI-007 de 2015","RAPE Región Central","Contratación","2015-08-11","Todos","VIGENTE","Ninguna"]
[{"$f":"IF(ISERROR(VLOOKUP(B33,'Lista Desplegable'!$A$49:$C$64,3,0))=TRUE,\"Seleccione el proceso Correcto\",VLOOKUP(B33,'Lista Desplegable'!$A$49:$C$64,3,0))","v":"Dirección Ejecutiva"},"Gestión Jurídica","Resolución","Interna",61,"Por la cual se establecen los lineamientos generales en materia de Inducción, Reinducción, Capacitación y Bienestar e Incentivos de los funcionarios de la Región Administrativa y de Planeación Especial RAPE - Región Central","RAPE Región Central","Lineamientos generales en materia de Inducción, Reinducción, Capacitación y Bienestar e Incentivos","2015-08-11","Todos","VIGENTE","Ninguna"]
[{"$f":"IF(ISERROR(VLOOKUP(B34,'Lista Desplegable'!$A$49:$C$64,3,0))=TRUE,\"Seleccione el proceso Correcto\",VLOOKUP(B34,'Lista Desplegable'!$A$49:$C$64,3,0))","v":"Dirección Ejecutiva"},"Gestión Jurídica","Resolución","Interna",64,"Por la cual se conforma la Comisión de Personal de la Región Administrativa y de Planeación Especial RAPE - Región Central, por el período 2015 -2017","RAPE Región Central","Comisión de Personal de la Región","2015-08-21","Todos","VIGENTE","Ninguna"]
[{"$f":"IF(ISERROR(VLOOKUP(B35,'Lista Desplegable'!$A$49:$C$64,3,0))=TRUE,\"Seleccione el proceso Correcto\",VLOOKUP(B35,'Lista Desplegable'!$A$49:$C$64,3,0))","v":"Dirección Ejecutiva"},"Gestión Jurídica","Resolución","Interna",65,"Por la cual se crea el Comité Institucional de Desarrollo Administrativo de la Región Administrativa y de Planeación Especial RAPE Región Central","RAPE Región Central","Comité Institucional de Desarrollo Administrativo ","2015-08-21","Todos","VIGENTE","Ninguna"]
[{"$f":"IF(ISERROR(VLOOKUP(B36,'Lista Desplegable'!$A$49:$C$64,3,0))=TRUE,\"Seleccione el proceso Correcto\",VLOOKUP(B36,'Lista Desplegable'!$A$49:$C$64,3,0))","v":"Dirección Ejecutiva"},"Gestión Jurídica","Resolución","Interna",66,"Por la cual se adoptan el Sistema de Desarrollo Administrativo y el Modelo Integrado de Planeación y Gestión en la Región Administrativa y de Planeación Especial RAPE - Región Central","RAPE Región Central","Modelo Integrado de Planeación y Gestión\nSistema de Desarrollo Administrativo","2015-08-21","Todos","VIGENTE","Ninguna"]
[{"$f":"IF(ISERROR(VLOOKUP(B37,'Lista Desplegable'!$A$49:$C$64,3,0))=TRUE,\"Seleccione el proceso Correcto\",VLOOKUP(B37,'Lista Desplegable'!$A$49:$C$64,3,0))","v":"Dirección Ejecutiva"},"Gestión Jurídica","Resolución","Interna",69,"Por la cual se crea el Comité de Coordinación del Sistema de Control Interno de la Región Administrativa y de Planeación Especial RAPE Región Central y se dictan otras disposiciones","RAPE Región Central","Comité de Coordinación del Sistema de Control Interno ","2015-08-21","Todos","VIGENTE","Ninguna"]
[{"$f":"IF(ISERROR(VLOOKUP(B38,'Lista Desplegable'!$A$49:$C$64,3,0))=TRUE,\"Seleccione el proceso Correcto\",VLOOKUP(B38,'Lista Desplegable'!$A$49:$C$64,3,0))","v":"Dirección Ejecutiva"},"Gestión Jurídica","Resolución","Interna",70,"Por la cual se adopta el Modelo Estándar de Control Interno MECI 1000:2005 en la Región Administrativa y de Planeación Especial RAPE Región Central y se dictan otras disposiciones","RAPE Región Central","Modelo Estándar de Control Interno MECI 1000:2005","2015-08-21","Todos","VIGENTE","Ninguna"]
[{"$f":"IF(ISERROR(VLOOKUP(B39,'Lista Desplegable'!$A$49:$C$64,3,0))=TRUE,\"Seleccione el proceso Correcto\",VLOOKUP(B39,'Lista Desplegable'!$A$49:$C$64,3,0))","v":"Dirección Ejecutiva"},"Gestión Jurídica","Resolución","Interna",76,"Por la cual se ordena la Apertura del Proceso Concurso de Méritos Abierto CMA-008 de 2015","RAPE Región Central","Contratación","2015-09-01","Todos","VIGENTE","Ninguna"]
[{"$f":"IF(ISERROR(VLOOKUP(B40,'Lista Desplegable'!$A$49:$C$64,3,0))=TRUE,\"Seleccione el proceso Correcto\",VLOOKUP(B40,'Lista Desplegable'!$A$49:$C$64,3,0))","v":"Dirección Ejecutiva"},"Gestión Jurídica","Resolución","Interna",77,"Por la cual se realizan unos traslados en el Presupuesto Anual de Gastos de la Región Administrativa y de Planeación Especial denominada RAPE - Región Central para la vigencia fiscal de 2015","RAPE Región Central","Presupuesto de ingresos rentas y gastos ","2015-09-01","Todos","VIGENTE","Ninguna"]
[{"$f":"IF(ISERROR(VLOOKUP(B41,'Lista Desplegable'!$A$49:$C$64,3,0))=TRUE,\"Seleccione el proceso Correcto\",VLOOKUP(B41,'Lista Desplegable'!$A$49:$C$64,3,0))","v":"Dirección Ejecutiva"},"Gestión Jurídica","Resolución","Interna",78,"Por la cual se modifica la Resolución No. 020 del 27 de abril de 2015: por la cual se constituye y se reglamenta el funcionamiento de la Caja Menor con cargo al presupuesto asignado a la Región Central, para la vigencia fiscal 2015","RAPE Región Central","Caja Menor","2015-09-01","Todos","VIGENTE","Ninguna"]
[{"$f":"IF(ISERROR(VLOOKUP(B42,'Lista Desplegable'!$A$49:$C$64,3,0))=TRUE,\"Seleccione el proceso Correcto\",VLOOKUP(B42,'Lista Desplegable'!$A$49:$C$64,3,0))","v":"Dirección Ejecutiva"},"Gestión Jurídica","Resolución","Interna",82,"Por la cual se conforma y estructura el Comité de Conciliación de la Región Administrativa y de Planeación Especial RAPE Región Central y se dictan otras disposiciones","RAPE Región Central","Comité de Conciliación","2015-09-04","Todos","VIGENTE","Ninguna"]
[{"$f":"IF(ISERROR(VLOOKUP(B43,'Lista Desplegable'!$A$49:$C$64,3,0))=TRUE,\"Seleccione el proceso Correcto\",VLOOKUP(B43,'Lista Desplegable'!$A$49:$C$64,3,0))","v":"Dirección Ejecutiva"},"Gestión Jurídica","Resolución","Interna",83,"Por medio de la cual se adjudica el proceso de Subasta Inversa Presencial No. SASI-007 de 2015","RAPE Región Central","Aclaración Resolución","2015-09-04","Todos","VIGENTE","Ninguna"]
[{"$f":"IF(ISERROR(VLOOKUP(B44,'Lista Desplegable'!$A$49:$C$64,3,0))=TRUE,\"Seleccione el proceso Correcto\",VLOOKUP(B44,'Lista Desplegable'!$A$49:$C$64,3,0))","v":"Dirección Ejecutiva"},"Gestión Jurídica","Resolución","Interna",84,"Por la cual se Adopta el Manual para el funcionamiento de las Cajas Menores de Gastos Generales de la Región Administrativa y de Planeación Especial RAPE Región Central y se dictan otras disposiciones","RAPE Región Central","Manual para el funcionamiento de las Cajas Menores de Gastos Generales de la","2015-09-04","Todos","VIGENTE","Ninguna"]
[{"$f":"IF(ISERROR(VLOOKUP(B45,'Lista Desplegable'!$A$49:$C$64,3,0))=TRUE,\"Seleccione el proceso Correcto\",VLOOKUP(B45,'Lista Desplegable'!$A$49:$C$64,3,0))","v":"Dirección Ejecutiva"},"Gestión Jurídica","Resolución","Interna",85,"Por la cual se conforma el Comité Directivo de la Región Administrativa y de Planeación Especial RAPE Región Central y se dictan otras disposiciones","RAPE Región Central","Comité Directivo","2015-09-09","Todos","VIGENTE","Ninguna"]
[{"$f":"IF(ISERROR(VLOOKUP(B46,'Lista Desplegable'!$A$49:$C$64,3,0))=TRUE,\"Seleccione el proceso Correcto\",VLOOKUP(B46,'Lista Desplegable'!$A$49:$C$64,3,0))","v":"Dirección Ejecutiva"},"Gestión Jurídica","Resolución","Interna",86,"Apertura Concurso Interventoría Plan Estratégico","RAPE Región Central","Formulación del Plan Estrategico","2015-09-10","Todos","VIGENTE","Ninguna"]
[{"$f":"IF(ISERROR(VLOOKUP(B47,'Lista Desplegable'!$A$49:$C$64,3,0))=TRUE,\"Seleccione el proceso Correcto\",VLOOKUP(B47,'Lista Desplegable'!$A$49:$C$64,3,0))","v":"Dirección Ejecutiva"},"Gestión Jurídica","Resolución","Interna",89,"Por la cual se crea el Banco de Programas y Proyectos y se adopta su manual de Procedimientos para la Región Administrativa y de Planeación Especial denominada RAPE - Región Central","RAPE Región Central","Banco de Programas y Proyectos","2015-09-11","Todos","VIGENTE","Ninguna"]
[{"$f":"IF(ISERROR(VLOOKUP(B48,'Lista Desplegable'!$A$49:$C$64,3,0))=TRUE,\"Seleccione el proceso Correcto\",VLOOKUP(B48,'Lista Desplegable'!$A$49:$C$64,3,0))","v":"Dirección Ejecutiva"},"Gestión Jurídica","Resolución","Interna",90,"Por la cual se adopta el Plan Anticorrupción y de Atención al Ciudadano de la Región Administrativa y de Planeación Especial RAPE - Región Central, para la vigencia 2015","RAPE Región Central","Plan Anticorrupción y de Atención al Ciudadano","2015-09-15","Todos","VIGENTE","Ninguna"]
[{"$f":"IF(ISERROR(VLOOKUP(B49,'Lista Desplegable'!$A$49:$C$64,3,0))=TRUE,\"Seleccione el proceso Correcto\",VLOOKUP(B49,'Lista Desplegable'!$A$49:$C$64,3,0))","v":"Dirección Ejecutiva"},"Gestión Jurídica","Resolución","Interna",94,"Por la cual se adopta el Programa de Bienestar e Incentivos de los fucnionarios de la Región Administrativa y de Planeación Especial RAPE - Región Central, para la vigencia 2015","RAPE Región Central","Bienestar e Incentivos","2015-09-16","Todos","VIGENTE","Ninguna"]
[{"$f":"IF(ISERROR(VLOOKUP(B50,'Lista Desplegable'!$A$49:$C$64,3,0))=TRUE,\"Seleccione el proceso Correcto\",VLOOKUP(B50,'Lista Desplegable'!$A$49:$C$64,3,0))","v":"Dirección Ejecutiva"},"Gestión Jurídica","Resolución","Interna",96,"Por la cual se ordena la Apertura del Proceso Selección Abreviada Menor Cuantía SAMC-012-2015","RAPE Región Central","Contratación","2015-09-22","Todos","VIGENTE","Ninguna"]
[{"$f":"IF(ISERROR(VLOOKUP(B51,'Lista Desplegable'!$A$49:$C$64,3,0))=TRUE,\"Seleccione el proceso Correcto\",VLOOKUP(B51,'Lista Desplegable'!$A$49:$C$64,3,0))","v":"Dirección Ejecutiva"},"Gestión Jurídica","Resolución","Interna",99,"Por la cual se ordena la Apertura del Proceso de Selección Abreviada Menor Cuantía SAMC-013-2015","RAPE Región Central","Contratación","2015-09-23","Todos","VIGENTE","Ninguna"]
[{"$f":"IF(ISERROR(VLOOKUP(B52,'Lista Desplegable'!$A$49:$C$64,3,0))=TRUE,\"Seleccione el proceso Correcto\",VLOOKUP(B52,'Lista Desplegable'!$A$49:$C$64,3,0))","v":"Dirección Ejecutiva"},"Gestión Jurídica","Resolución","Interna",100,"Por medio de la cual se adjudica el proceso de selección Concurso de Méritos Abierto No. CMA-011 de 2015","RAPE Región Central","Contratación","2015-09-24","Todos","VIGENTE","Ninguna"]
[{"$f":"IF(ISERROR(VLOOKUP(B53,'Lista Desplegable'!$A$49:$C$64,3,0))=TRUE,\"Seleccione el proceso Correcto\",VLOOKUP(B53,'Lista Desplegable'!$A$49:$C$64,3,0))","v":"Dirección Ejecutiva"},"Gestión Jurídica","Resolución","Interna",103,"Por la cual se declara desierto el proceso de selección de menor Cuantía SAMC 012 de 2015","RAPE Región Central","Contratación","2015-10-05","Todos","VIGENTE","Ninguna"]
[{"$f":"IF(ISERROR(VLOOKUP(B54,'Lista Desplegable'!$A$49:$C$64,3,0))=TRUE,\"Seleccione el proceso Correcto\",VLOOKUP(B54,'Lista Desplegable'!$A$49:$C$64,3,0))","v":"Dirección Ejecutiva"},"Gestión Jurídica","Resolución","Interna",107,"Por medio de la cual se adjudica el proceso de Selección Abreviada de Menor Cuantía No. SAMC-013-2015","RAPE Región Central","Contratación","2015-10-07","Todos","VIGENTE","Ninguna"]
[{"$f":"IF(ISERROR(VLOOKUP(B55,'Lista Desplegable'!$A$49:$C$64,3,0))=TRUE,\"Seleccione el proceso Correcto\",VLOOKUP(B55,'Lista Desplegable'!$A$49:$C$64,3,0))","v":"Dirección Ejecutiva"},"Gestión Jurídica","Resolución","Interna",108,"Por la cual se declara desierto el proceso de Concurso de Méritos Abierto 008 de 2015","RAPE Región Central","Contratación","2015-09-08","Todos","VIGENTE","Ninguna"]
[{"$f":"IF(ISERROR(VLOOKUP(B56,'Lista Desplegable'!$A$49:$C$64,3,0))=TRUE,\"Seleccione el proceso Correcto\",VLOOKUP(B56,'Lista Desplegable'!$A$49:$C$64,3,0))","v":"Dirección Ejecutiva"},"Gestión Jurídica","Resolución","Interna",110,"Por la cual se modifica el parágrafo transitorio del artículo 4o de la Resolución 084 de 2015","RAPE Región Central","Aclaración Resolución","2015-10-15","Todos","VIGENTE","Ninguna"]
[{"$f":"IF(ISERROR(VLOOKUP(B57,'Lista Desplegable'!$A$49:$C$64,3,0))=TRUE,\"Seleccione el proceso Correcto\",VLOOKUP(B57,'Lista Desplegable'!$A$49:$C$64,3,0))","v":"Dirección Ejecutiva"},"Gestión Jurídica","Resolución","Interna",111,"Por la cual se ordena la Apertura del Proceso de Selección Abreviada Menor Cuantía SAMC -012-2 DE 2015","RAPE Región Central","Contratación","2015-10-15","Todos","VIGENTE","Ninguna"]
[{"$f":"IF(ISERROR(VLOOKUP(B58,'Lista Desplegable'!$A$49:$C$64,3,0))=TRUE,\"Seleccione el proceso Correcto\",VLOOKUP(B58,'Lista Desplegable'!$A$49:$C$64,3,0))","v":"Dirección Ejecutiva"},"Gestión Jurídica","Resolución","Interna",112,"Por la cual se adopta la Política de Seguridad y Salud en el Trabajo de la Región Administrativa y de Planeación Especial RAPE - Región Central, y el Plan de Trabajo Anual para vigencia 2015","RAPE Región Central","Política de Seguridad y Salud en el Trabajo de la Región Administrativa y","2015-10-15","Todos","VIGENTE","Ninguna"]
[{"$f":"IF(ISERROR(VLOOKUP(B59,'Lista Desplegable'!$A$49:$C$64,3,0))=TRUE,\"Seleccione el proceso Correcto\",VLOOKUP(B59,'Lista Desplegable'!$A$49:$C$64,3,0))","v":"Dirección Ejecutiva"},"Gestión Jurídica","Resolución","Interna",115,"Por la cual se ordena la Apertura del proceso de Selección Abreviada Menor Cuantía SAMC - 015 de 2015","RAPE Región Central","Contratación","2015-10-19","Todos","VIGENTE","Ninguna"]
[{"$f":"IF(ISERROR(VLOOKUP(B60,'Lista Desplegable'!$A$49:$C$64,3,0))=TRUE,\"Seleccione el proceso Correcto\",VLOOKUP(B60,'Lista Desplegable'!$A$49:$C$64,3,0))","v":"Dirección Ejecutiva"},"Gestión Jurídica","Resolución","Interna",118,"Por la cual se convoca a elecciones del representante de los empleados ante el Comité Paritario de Seguridad y Salud en el Trabajo (COPASST) de la Región Administrativa y de Planeación Especial RAPE - Región Central por el periodo 2015 -2017 y su suplente","RAPE Región Central","Comité Paritario de Seguridad y Salud en el Trabajo - COPASST","2015-10-20","Todos","VIGENTE","Ninguna"]
[{"$f":"IF(ISERROR(VLOOKUP(B61,'Lista Desplegable'!$A$49:$C$64,3,0))=TRUE,\"Seleccione el proceso Correcto\",VLOOKUP(B61,'Lista Desplegable'!$A$49:$C$64,3,0))","v":"Dirección Ejecutiva"},"Gestión Jurídica","Resolución","Interna",119,"Por el cual se adopta el Plan Institucional de Capacitación y/o Entrenamiento en el puesto de trabajo de los funcionarios de la Región Administrativa y Planeación Especial RAPE Región Central, para vigencia 2015 ","RAPE Región Central","Capacitación y/o Entrenamiento en el puesto de trabajo","2015-10-21","Todos","VIGENTE","Ninguna"]
[{"$f":"IF(ISERROR(VLOOKUP(B62,'Lista Desplegable'!$A$49:$C$64,3,0))=TRUE,\"Seleccione el proceso Correcto\",VLOOKUP(B62,'Lista Desplegable'!$A$49:$C$64,3,0))","v":"Dirección Ejecutiva"},"Gestión Jurídica","Resolución","Interna",121,"Por medio de la cual se revoca el Acto Administrativo de Apertura del proceso de Selección Abreviada SAMC 012-2 de 2015 adoptado mediante Resolución 111 de 2015","RAPE Región Central","Contratación","2015-10-22","Todos","VIGENTE","Ninguna"]
[{"$f":"IF(ISERROR(VLOOKUP(B63,'Lista Desplegable'!$A$49:$C$64,3,0))=TRUE,\"Seleccione el proceso Correcto\",VLOOKUP(B63,'Lista Desplegable'!$A$49:$C$64,3,0))","v":"Dirección Ejecutiva"},"Gestión Jurídica","Resolución","Interna",122,"Por la cual se declara desierto el proceso de selección de Mínima Cuantía MC-016 DE 2015","RAPE Región Central","Contratación","2015-10-23","Todos","VIGENTE","Ninguna"]
[{"$f":"IF(ISERROR(VLOOKUP(B64,'Lista Desplegable'!$A$49:$C$64,3,0))=TRUE,\"Seleccione el proceso Correcto\",VLOOKUP(B64,'Lista Desplegable'!$A$49:$C$64,3,0))","v":"Dirección Ejecutiva"},"Gestión Jurídica","Resolución","Interna",123,"Por se ordena la Apertura del Proceso de Selección Abreviada Menor Cuantía ","RAPE Región Central","Contratación","2015-10-28","Todos","VIGENTE","Ninguna"]
[{"$f":"IF(ISERROR(VLOOKUP(B65,'Lista Desplegable'!$A$49:$C$64,3,0))=TRUE,\"Seleccione el proceso Correcto\",VLOOKUP(B65,'Lista Desplegable'!$A$49:$C$64,3,0))","v":"Dirección Ejecutiva"},"Gestión Jurídica","Resolución","Interna",124,"Por medio de la cual se adjudica el proceso de selección Abreviada menor Cuantía No. SAMC-015-2015","RAPE Región Central","Contratación","2015-10-30","Todos","VIGENTE","Ninguna"]
[{"$f":"IF(ISERROR(VLOOKUP(B66,'Lista Desplegable'!$A$49:$C$64,3,0))=TRUE,\"Seleccione el proceso Correcto\",VLOOKUP(B66,'Lista Desplegable'!$A$49:$C$64,3,0))","v":"Dirección Ejecutiva"},"Gestión Jurídica","Resolución","Interna",128,"Por la cual se realizan unos traslados en el Presupuesto Anual de Gastos de la Región Administrativa y de Planeación Especial denominada RAPE - Región Central para la vigencia fiscal de 2015","RAPE Región Central","Presupuesto de ingresos rentas y gastos ","2015-11-06","Todos","VIGENTE","Ninguna"]
[{"$f":"IF(ISERROR(VLOOKUP(B67,'Lista Desplegable'!$A$49:$C$64,3,0))=TRUE,\"Seleccione el proceso Correcto\",VLOOKUP(B67,'Lista Desplegable'!$A$49:$C$64,3,0))","v":"Dirección Ejecutiva"},"Gestión Jurídica","Resolución","Interna",131,"Por la cual se ordena la Apertura del Proceso de Selección Abreviada menor Cuantía SAMC-012-2 de 2015","RAPE Región Central","Aclaración Resolución","2015-11-10","Todos","VIGENTE","Ninguna"]
[{"$f":"IF(ISERROR(VLOOKUP(B68,'Lista Desplegable'!$A$49:$C$64,3,0))=TRUE,\"Seleccione el proceso Correcto\",VLOOKUP(B68,'Lista Desplegable'!$A$49:$C$64,3,0))","v":"Dirección Ejecutiva"},"Gestión Jurídica","Resolución","Interna",134,"Por medio de la cual se adjudica el proceso de Selección Abreviada Menor Cuantía No. SAMC - 014-2015","RAPE Región Central","Contratación","2015-11-13","Todos","VIGENTE","Ninguna"]
[{"$f":"IF(ISERROR(VLOOKUP(B69,'Lista Desplegable'!$A$49:$C$64,3,0))=TRUE,\"Seleccione el proceso Correcto\",VLOOKUP(B69,'Lista Desplegable'!$A$49:$C$64,3,0))","v":"Dirección Ejecutiva"},"Gestión Jurídica","Resolución","Interna",143,"Por la cual se conforma el Comité Paritario de Seguridad y Salud en el Trabajo (COPASST) de la Región Administrativa y de Planeación Especial RAPE - Región Central por el periodo 2015-2017","RAPE Región Central","Comité Paritario de Seguridad y Salud en el Trabajo - COPASST","2015-11-19","Todos","VIGENTE","Ninguna"]
[{"$f":"IF(ISERROR(VLOOKUP(B70,'Lista Desplegable'!$A$49:$C$64,3,0))=TRUE,\"Seleccione el proceso Correcto\",VLOOKUP(B70,'Lista Desplegable'!$A$49:$C$64,3,0))","v":"Dirección Ejecutiva"},"Gestión Jurídica","Resolución","Interna",144,"Directorio Activo  apertura","RAPE Región Central","Directorio Activo","2015-11-19","Todos","VIGENTE","Ninguna"]
[{"$f":"IF(ISERROR(VLOOKUP(B71,[7]Parametros!$A$49:$C$62,3,0))=TRUE,\"Seleccione el proceso Correcto\",VLOOKUP(B71,[7]Parametros!$A$49:$C$62,3,0))","v":"Dirección Ejecutiva"},"Gestión Jurídica","Resolución","Interna",145,"Por la cual se retoma el ejercicio de funciones delegadas mediante la Resolución 138 de 2015","RAPE Región Central","Delegación de funciones","2015-11-25","Todos","VIGENTE","Ninguna"]
[{"$f":"IF(ISERROR(VLOOKUP(B72,[7]Parametros!$A$49:$C$62,3,0))=TRUE,\"Seleccione el proceso Correcto\",VLOOKUP(B72,[7]Parametros!$A$49:$C$62,3,0))","v":"Dirección Ejecutiva"},"Gestión Jurídica","Resolución","Interna",148,"Por medio de la cual se adjudica el proceso de Selección Abreviada Menor Cuantía No. SAMC-012-2-2015","RAPE Región Central","Contratación","2015-11-27","Todos","VIGENTE","Ninguna"]
[{"$f":"IF(ISERROR(VLOOKUP(B73,[7]Parametros!$A$49:$C$62,3,0))=TRUE,\"Seleccione el proceso Correcto\",VLOOKUP(B73,[7]Parametros!$A$49:$C$62,3,0))","v":"Dirección Ejecutiva"},"Gestión Jurídica","Resolución","Interna",149,"Por la cual se ordena la apertura del Proceso Selección Concurso de Méritos Abierto CMA-019-2015","RAPE Región Central","Contratación","2015-12-30","Todos","VIGENTE","Ninguna"]
[{"$f":"IF(ISERROR(VLOOKUP(B74,[7]Parametros!$A$49:$C$62,3,0))=TRUE,\"Seleccione el proceso Correcto\",VLOOKUP(B74,[7]Parametros!$A$49:$C$62,3,0))","v":"Dirección Ejecutiva"},"Gestión Jurídica","Resolución","Interna",151,"Por la cual se efectúa la liquidación del presupuesto de Ingresos y Gastos de la Región Administrativa y de Planeación Especial - RAPE Región Central, para la vigencia fiscal 2016 y se dictan otras disposiciones","RAPE Región Central","Presupuesto de ingresos rentas y gastos ","2015-12-03","Todos","VIGENTE","Ninguna"]
[{"$f":"IF(ISERROR(VLOOKUP(B75,[7]Parametros!$A$49:$C$62,3,0))=TRUE,\"Seleccione el proceso Correcto\",VLOOKUP(B75,[7]Parametros!$A$49:$C$62,3,0))","v":"Dirección Ejecutiva"},"Gestión Jurídica","Resolución","Interna",152,"Por la cual se adopta el Plan Institucional de Gestión Ambiental PIGA de la Región Administrativa y de Planeación Especial RAPE Región Central","RAPE Región Central","Gestión Ambiental PIGA","2015-12-03","Todos","VIGENTE","Ninguna"]
[{"$f":"IF(ISERROR(VLOOKUP(B76,[7]Parametros!$A$49:$C$62,3,0))=TRUE,\"Seleccione el proceso Correcto\",VLOOKUP(B76,[7]Parametros!$A$49:$C$62,3,0))","v":"Dirección Ejecutiva"},"Gestión Jurídica","Resolución","Interna",153,"Por la cual se crea el Sistema de Gestión de Calidad (SGC) en la Región Administrativa y de Planeación Especial RAPE - Región Central y se dictan otras disposiciones","RAPE Región Central","Sistema de Gestión de Calidad (SGC)","2015-12-03","Todos","VIGENTE","Ninguna"]
[{"$f":"IF(ISERROR(VLOOKUP(B77,[7]Parametros!$A$49:$C$62,3,0))=TRUE,\"Seleccione el proceso Correcto\",VLOOKUP(B77,[7]Parametros!$A$49:$C$62,3,0))","v":"Dirección Ejecutiva"},"Gestión Jurídica","Resolución","Interna",155,"Por la cual se dictan disposiciones de ética pública, relativa a los principios, valores, acuerdos, compromisos y protocolos éticos de la Región Administrativa y de Planeación Especial RAPE Región Central","RAPE Región Central","Ética pública, relativa a los principios, valores, acuerdos, compromisos y protocolos éticos","2015-12-04","Todos","VIGENTE","Ninguna"]
[{"$f":"IF(ISERROR(VLOOKUP(B78,[7]Parametros!$A$49:$C$62,3,0))=TRUE,\"Seleccione el proceso Correcto\",VLOOKUP(B78,[7]Parametros!$A$49:$C$62,3,0))","v":"Dirección Ejecutiva"},"Gestión Jurídica","Resolución","Interna",156,"Por medio de la cual se adjudica el proceso de Selección Abreviada Menor cuantía No. SAMC-017-2015","RAPE Región Central","Contratación","2015-12-07","Todos","VIGENTE","Ninguna"]
[{"$f":"IF(ISERROR(VLOOKUP(B79,[7]Parametros!$A$49:$C$62,3,0))=TRUE,\"Seleccione el proceso Correcto\",VLOOKUP(B79,[7]Parametros!$A$49:$C$62,3,0))","v":"Dirección Ejecutiva"},"Gestión Jurídica","Resolución","Interna",157,"Por la cual se modifica el Artículo Tercero de la Resolución 149 de 2015 que ordenó la Apertura del Proceso Selección Concurso de Méritos Abierto CMA-019-2015","RAPE Región Central","Contratación","2015-12-07","Todos","VIGENTE","Ninguna"]
[{"$f":"IF(ISERROR(VLOOKUP(B80,[7]Parametros!$A$49:$C$62,3,0))=TRUE,\"Seleccione el proceso Correcto\",VLOOKUP(B80,[7]Parametros!$A$49:$C$62,3,0))","v":"Dirección Ejecutiva"},"Gestión Jurídica","Resolución","Interna",160,"Por la cual se adopta el Manual de Inducción y Reinducción de la Región Administrativa y de Planeación Especial RAPE Región Central","RAPE Región Central","Inducción y Reinducción","2015-12-11","Todos","VIGENTE","Ninguna"]
[{"$f":"IF(ISERROR(VLOOKUP(B81,[7]Parametros!$A$49:$C$62,3,0))=TRUE,\"Seleccione el proceso Correcto\",VLOOKUP(B81,[7]Parametros!$A$49:$C$62,3,0))","v":"Dirección Ejecutiva"},"Gestión Jurídica","Resolución","Interna",163,"Por la cual se declara desierto el proceso de selección Mínima Cuantía MC-021 de 2015","RAPE Región Central","Contratación","2015-12-22","Todos","VIGENTE","Ninguna"]
[{"$f":"IF(ISERROR(VLOOKUP(B82,[7]Parametros!$A$49:$C$62,3,0))=TRUE,\"Seleccione el proceso Correcto\",VLOOKUP(B82,[7]Parametros!$A$49:$C$62,3,0))","v":"Dirección Ejecutiva"},"Gestión Jurídica","Resolución","Interna",165,"Por la cual se realiza la legalización definitiva de la Caja Menor de la Región Administrativa y de Planeación Especial RAPE - Región Central y se dictan otras disposiciones","RAPE Región Central","Caja Menor","2015-12-24","Todos","VIGENTE","Ninguna"]
[{"$f":"IF(ISERROR(VLOOKUP(B83,'Lista Desplegable'!$A$49:$C$64,3,0))=TRUE,\"Seleccione el proceso Correcto\",VLOOKUP(B83,'Lista Desplegable'!$A$49:$C$64,3,0))","v":"Dirección Ejecutiva"},"Gestión Jurídica","Resolución","Interna",166,"Por la cual se aprueba el Programa Anual Mensualizado de Caja PAC para la vigencia fiscal 2016 de la Región Administrativa y de Planeación Especial RAPE - Región Central","RAPE Región Central","Programa Anual Mensualizado de Caja PAC de Reservas Presupuestales y Cuentas por Pagar","2015-12-30","Todos","VIGENTE","Ninguna"]
[{"$f":"IF(ISERROR(VLOOKUP(B84,'Lista Desplegable'!$A$49:$C$64,3,0))=TRUE,\"Seleccione el proceso Correcto\",VLOOKUP(B84,'Lista Desplegable'!$A$49:$C$64,3,0))","v":"Dirección Ejecutiva"},"Gestión Jurídica","Resolución","Interna",167,"Por la cual se constituye las reservas presupuestales y las cuentas por pagar al cierre de la vigencia fiscal 2015 de la Región Administrativa y de Planeación Especial RAPE - Región Central ","RAPE Región Central","Programa Anual Mensualizado de Caja PAC de Reservas Presupuestales y Cuentas por Pagar","2015-12-30","Todos","VIGENTE","Ninguna"]
[{"$f":"IF(ISERROR(VLOOKUP(B85,'Lista Desplegable'!$A$49:$C$64,3,0))=TRUE,\"Seleccione el proceso Correcto\",VLOOKUP(B85,'Lista Desplegable'!$A$49:$C$64,3,0))","v":"Dirección Ejecutiva"},"Gestión Jurídica","Resolución","Interna",1,"Por la cual se aprueba el Programa Anual Mensualizado de Caja PAC de Reservas Presupuestales y cuentas por pagar de la vigencia fiscal 2015 de la Región Administrativa y de Planeación Especial RAPE - Región Central","RAPE Región Central","Programa Anual Mensualizado de Caja PAC de Reservas Presupuestales y Cuentas por Pagar","2016-01-06","Todos","VIGENTE","Ninguna"]
[{"$f":"IF(ISERROR(VLOOKUP(B86,'Lista Desplegable'!$A$49:$C$64,3,0))=TRUE,\"Seleccione el proceso Correcto\",VLOOKUP(B86,'Lista Desplegable'!$A$49:$C$64,3,0))","v":"Dirección Ejecutiva"},"Gestión Jurídica","Resolución","Interna",2,"Por la cual se adopta la tabla de honorarios para la contratación de servicios profesionales y de apoyo a la gestión de la Región Administrativa y de Planeación Especial RAPE- Región Central. ","RAPE Región Central","Honorarios","2016-01-06","Todos","VIGENTE","Ninguna"]
[{"$f":"IF(ISERROR(VLOOKUP(B87,'Lista Desplegable'!$A$49:$C$64,3,0))=TRUE,\"Seleccione el proceso Correcto\",VLOOKUP(B87,'Lista Desplegable'!$A$49:$C$64,3,0))","v":"Dirección Ejecutiva"},"Gestión Jurídica","Resolución","Interna",5,"Por la cual se realizan unos traslados en el Presupuesto Anual de Gastos de la Región Administrativa y de Planeación Especial denominada RAPE - Región Central para la vigencia fiscal de 2016","RAPE Región Central","Presupuesto de ingresos rentas y gastos ","2016-01-08","Todos","VIGENTE","Ninguna"]
[{"$f":"IF(ISERROR(VLOOKUP(B88,'Lista Desplegable'!$A$49:$C$64,3,0))=TRUE,\"Seleccione el proceso Correcto\",VLOOKUP(B88,'Lista Desplegable'!$A$49:$C$64,3,0))","v":"Dirección Ejecutiva"},"Gestión Jurídica","Resolución","Interna",12,"Por la cual se adopta el Plan Institucional de Capacitación y/o Entrenamiento en el Puesto de Trabajo de los funcionarios de la Región Administrativa y Planeación Especial RAPE Región Central, para la vigencia 2016","RAPE Región Central","Capacitación y/o Entrenamiento en el Puesto de Trabajo","2016-01-21","Todos","VIGENTE","Ninguna"]
[{"$f":"IF(ISERROR(VLOOKUP(B89,'Lista Desplegable'!$A$49:$C$64,3,0))=TRUE,\"Seleccione el proceso Correcto\",VLOOKUP(B89,'Lista Desplegable'!$A$49:$C$64,3,0))","v":"Dirección Ejecutiva"},"Gestión Jurídica","Resolución","Interna",13,"Por la cual se adopta el Programa de Bienestar e Incentivos de los funcionarios de la Región Administrativa y de Planeación Especial RAPE - Región Central, para la vigencia 2016","RAPE Región Central","Bienestar e Incentivos","2016-01-21","Todos","VIGENTE","Ninguna"]
[{"$f":"IF(ISERROR(VLOOKUP(B90,'Lista Desplegable'!$A$49:$C$64,3,0))=TRUE,\"Seleccione el proceso Correcto\",VLOOKUP(B90,'Lista Desplegable'!$A$49:$C$64,3,0))","v":"Dirección Ejecutiva"},"Gestión Jurídica","Resolución","Interna",14,"Por la cual se adopta la Política de Seguridad y Salud en el Trabajo de la Región Administrativa y de Planeación Especial RAPE - Región Central, y el Plan de Trabajo Anual para vigencia 2016","RAPE Región Central","Seguridad y Salud en el Trabajo","2016-01-21","Todos","VIGENTE","Ninguna"]
[{"$f":"IF(ISERROR(VLOOKUP(B91,'Lista Desplegable'!$A$49:$C$64,3,0))=TRUE,\"Seleccione el proceso Correcto\",VLOOKUP(B91,'Lista Desplegable'!$A$49:$C$64,3,0))","v":"Dirección Ejecutiva"},"Gestión Jurídica","Resolución","Interna",15,"Por la cual se convoca a elecciones del representante de los empleados ante el Comité de Convivencia Laboral de la Región Administrativa y de Planeación Especial RAPE - Región Central por el periodo 2016 - 2018 y su suplente","RAPE Región Central","Comité de Convivencia Laboral","2016-01-21","Todos","VIGENTE","Ninguna"]
[{"$f":"IF(ISERROR(VLOOKUP(B92,'Lista Desplegable'!$A$49:$C$64,3,0))=TRUE,\"Seleccione el proceso Correcto\",VLOOKUP(B92,'Lista Desplegable'!$A$49:$C$64,3,0))","v":"Dirección Ejecutiva"},"Gestión Jurídica","Resolución","Interna",47,"Por la cual se ordena la Apertura del Proceso de Selección Abreviada Menor Cuantía SAMC-001-2016","RAPE Región Central","Contratación","2016-02-17","Todos","VIGENTE","Ninguna"]
[{"$f":"IF(ISERROR(VLOOKUP(B93,'Lista Desplegable'!$A$49:$C$64,3,0))=TRUE,\"Seleccione el proceso Correcto\",VLOOKUP(B93,'Lista Desplegable'!$A$49:$C$64,3,0))","v":"Dirección Ejecutiva"},"Gestión Jurídica","Resolución","Interna",56,"Por la cual se conforma el Comité de Convivencia Laboral de la Región Administrativa y de Planeación Especial RAPE - Región Central 2016-2018","RAPE Región Central","Comité de Convivencia Laboral","2016-02-25","Todos","VIGENTE","Ninguna"]
[{"$f":"IF(ISERROR(VLOOKUP(B94,'Lista Desplegable'!$A$49:$C$64,3,0))=TRUE,\"Seleccione el proceso Correcto\",VLOOKUP(B94,'Lista Desplegable'!$A$49:$C$64,3,0))","v":"Dirección Ejecutiva"},"Gestión Jurídica","Resolución","Interna",68,"Por la cual se constituye la Caja Menor de la Dirección Corporativa para la vigencia fiscal 2016 y se dictan otras disposiciones","RAPE Región Central","Caja menor","2016-03-16","Todos","VIGENTE","Ninguna"]
[{"$f":"IF(ISERROR(VLOOKUP(B95,'Lista Desplegable'!$A$49:$C$64,3,0))=TRUE,\"Seleccione el proceso Correcto\",VLOOKUP(B95,'Lista Desplegable'!$A$49:$C$64,3,0))","v":"Dirección Ejecutiva"},"Gestión Jurídica","Resolución","Interna",78,"Por medio de la cual se realiza una incorporación de Recursos del Balance, correspondiente a la vigencia 2015, en el Presupuesto Anual de Rentas e Ingresos de la Región Administrativa y de Planeación Especial - RAPE - Región Central de la vigencia fiscal 2016","RAPE Región Central","Presupuesto de ingresos rentas y gastos ","2016-04-05","Todos","VIGENTE","Ninguna"]
[{"$f":"IF(ISERROR(VLOOKUP(B96,'Lista Desplegable'!$A$49:$C$64,3,0))=TRUE,\"Seleccione el proceso Correcto\",VLOOKUP(B96,'Lista Desplegable'!$A$49:$C$64,3,0))","v":"Dirección Ejecutiva"},"Gestión Jurídica","Resolución","Interna",85,"Por la cual se ordena la Apertura del Proceso de Selección Abreviada Menor Cuantía SAMC-004-2016","RAPE Región Central","Contratación","2016-04-13","Todos","VIGENTE","Ninguna"]
[{"$f":"IF(ISERROR(VLOOKUP(B97,'Lista Desplegable'!$A$49:$C$64,3,0))=TRUE,\"Seleccione el proceso Correcto\",VLOOKUP(B97,'Lista Desplegable'!$A$49:$C$64,3,0))","v":"Dirección Ejecutiva"},"Gestión Jurídica","Resolución","Interna",89,"Por la cual se reconocen unos gastos y se ordena un reembolso de una caja mejor","RAPE Región Central","Caja menor","2016-04-14","Todos","VIGENTE","Ninguna"]
[{"$f":"IF(ISERROR(VLOOKUP(B98,'Lista Desplegable'!$A$49:$C$64,3,0))=TRUE,\"Seleccione el proceso Correcto\",VLOOKUP(B98,'Lista Desplegable'!$A$49:$C$64,3,0))","v":"Dirección Ejecutiva"},"Gestión Jurídica","Resolución","Interna",96,"Por la cual se ordena la Apertura del Proceso de Selección Abreviada Menor Cuantía SAMC-005-2016","RAPE Región Central","Contratación","2016-04-22","Todos","VIGENTE","Ninguna"]
[{"$f":"IF(ISERROR(VLOOKUP(B99,'Lista Desplegable'!$A$49:$C$64,3,0))=TRUE,\"Seleccione el proceso Correcto\",VLOOKUP(B99,'Lista Desplegable'!$A$49:$C$64,3,0))","v":"Dirección Ejecutiva"},"Gestión Jurídica","Resolución","Interna",102,"Por la cual se adjudica el proceso de Selección Abreviada de Menor Cuantía No. SAMC-004-2016","RAPE Región Central","Contratación","2016-04-29","Todos","VIGENTE","Ninguna"]
[{"$f":"IF(ISERROR(VLOOKUP(B100,'Lista Desplegable'!$A$49:$C$64,3,0))=TRUE,\"Seleccione el proceso Correcto\",VLOOKUP(B100,'Lista Desplegable'!$A$49:$C$64,3,0))","v":"Dirección Ejecutiva"},"Gestión Jurídica","Resolución","Interna",112,"Por la cual se reconocen unos gastos y se ordena un reembolso de una caja mejor","RAPE Región Central","Caja menor","2016-05-04","Todos","VIGENTE","Ninguna"]
[{"$f":"IF(ISERROR(VLOOKUP(B101,'Lista Desplegable'!$A$49:$C$64,3,0))=TRUE,\"Seleccione el proceso Correcto\",VLOOKUP(B101,'Lista Desplegable'!$A$49:$C$64,3,0))","v":"Dirección Ejecutiva"},"Gestión Jurídica","Resolución","Interna",118,"Por la cual se reconocen unos gastos y se ordena un reembolso de una caja mejor","RAPE Región Central","Caja menor","2016-05-12","Todos","VIGENTE","Ninguna"]
[{"$f":"IF(ISERROR(VLOOKUP(B102,'Lista Desplegable'!$A$49:$C$64,3,0))=TRUE,\"Seleccione el proceso Correcto\",VLOOKUP(B102,'Lista Desplegable'!$A$49:$C$64,3,0))","v":"Dirección Ejecutiva"},"Gestión Jurídica","Resolución","Interna",119,"Por la cual se adjudica el proceso de Selección Abreviada de Menor Cuantía No. SAMC-005-2016","RAPE Región Central","Contratación","2016-05-13","Todos","VIGENTE","Ninguna"]
[{"$f":"IF(ISERROR(VLOOKUP(B103,'Lista Desplegable'!$A$49:$C$64,3,0))=TRUE,\"Seleccione el proceso Correcto\",VLOOKUP(B103,'Lista Desplegable'!$A$49:$C$64,3,0))","v":"Dirección Ejecutiva"},"Gestión Jurídica","Resolución","Interna",121,"Por medio de la cual se adicionan recursos al presupuesto de rentas y gastos para la vigencia fiscal 2016 de la Región Administrativa y de Planeación Especial - RAPE - Región Central","RAPE Región Central","Presupuesto de ingresos rentas y gastos ","2016-05-18","Todos","VIGENTE","Ninguna"]
[{"$f":"IF(ISERROR(VLOOKUP(B104,'Lista Desplegable'!$A$49:$C$64,3,0))=TRUE,\"Seleccione el proceso Correcto\",VLOOKUP(B104,'Lista Desplegable'!$A$49:$C$64,3,0))","v":"Dirección Ejecutiva"},"Gestión Jurídica","Resolución","Interna",126,"Por medio de la cual se ordena la Apertura del Proceso de Selección Abreviada por Subasta Inversa SASI-007-2016","RAPE Región Central","Contratación","2016-05-20","Todos","VIGENTE","Ninguna"]
[{"$f":"IF(ISERROR(VLOOKUP(B105,'Lista Desplegable'!$A$49:$C$64,3,0))=TRUE,\"Seleccione el proceso Correcto\",VLOOKUP(B105,'Lista Desplegable'!$A$49:$C$64,3,0))","v":"Dirección Ejecutiva"},"Gestión Jurídica","Resolución","Interna",127,"Por medio de la cual se delegan unas funciones a cargo de la Dirección Ejecutiva de la RAPE Región Central","RAPE Región Central","Delegación de funciones","2016-05-24","Todos","VIGENTE","Ninguna"]
[{"$f":"IF(ISERROR(VLOOKUP(B106,'Lista Desplegable'!$A$49:$C$64,3,0))=TRUE,\"Seleccione el proceso Correcto\",VLOOKUP(B106,'Lista Desplegable'!$A$49:$C$64,3,0))","v":"Dirección Ejecutiva"},"Gestión Jurídica","Resolución","Interna",132,"Por medio de la cual se reconocen unos gastos y se ordena un reembolso de una caja menor","RAPE Región Central","Caja menor","2016-06-01","Todos","VIGENTE","Ninguna"]
[{"$f":"IF(ISERROR(VLOOKUP(B107,'Lista Desplegable'!$A$49:$C$64,3,0))=TRUE,\"Seleccione el proceso Correcto\",VLOOKUP(B107,'Lista Desplegable'!$A$49:$C$64,3,0))","v":"Dirección Ejecutiva"},"Gestión Jurídica","Resolución","Interna",136,"Por medio de la cual se aclara la Resolución 132 de 2016","RAPE Región Central","Aclaración Resolución","2016-06-03","Todos","VIGENTE","Ninguna"]
[{"$f":"IF(ISERROR(VLOOKUP(B108,'Lista Desplegable'!$A$49:$C$64,3,0))=TRUE,\"Seleccione el proceso Correcto\",VLOOKUP(B108,'Lista Desplegable'!$A$49:$C$64,3,0))","v":"Dirección Ejecutiva"},"Gestión Jurídica","Resolución","Interna",137,"Por medio de la cual se adjudica el proceso de Selección Abreviada por Subasta Inversa SASI-007-2016","RAPE Región Central","Contratación","2016-06-08","Todos","VIGENTE","Ninguna"]
[{"$f":"IF(ISERROR(VLOOKUP(B109,'Lista Desplegable'!$A$49:$C$64,3,0))=TRUE,\"Seleccione el proceso Correcto\",VLOOKUP(B109,'Lista Desplegable'!$A$49:$C$64,3,0))","v":"Dirección Ejecutiva"},"Gestión Jurídica","Resolución","Interna",144,"Por medio de la cual se ordena la Apertura del Proceso de Selección Licitación Pública LP-008-2016","RAPE Región Central","Contratación","2016-06-13","Todos","VIGENTE","Ninguna"]
[{"$f":"IF(ISERROR(VLOOKUP(B110,'Lista Desplegable'!$A$49:$C$64,3,0))=TRUE,\"Seleccione el proceso Correcto\",VLOOKUP(B110,'Lista Desplegable'!$A$49:$C$64,3,0))","v":"Dirección Ejecutiva"},"Gestión Jurídica","Resolución","Interna",145,"Por medio de la cual se realiza un traslado presupuestal en el Presupuesto Anual de Gastos e Inversiones de la vigencia 2016","RAPE Región Central","Presupuesto de ingresos rentas y gastos ","2016-06-13","Todos","VIGENTE","Ninguna"]
[{"$f":"IF(ISERROR(VLOOKUP(B111,'Lista Desplegable'!$A$49:$C$64,3,0))=TRUE,\"Seleccione el proceso Correcto\",VLOOKUP(B111,'Lista Desplegable'!$A$49:$C$64,3,0))","v":"Dirección Ejecutiva"},"Gestión Jurídica","Resolución","Interna",150,"Por medio de la cual se modifica la Resolución 003 de 2015 \"Por la cual se establece el Manual Específico de Funciones y de Competencias Laborales para los empleos de la planta de personal de la Región Administrativa y de Planeación Especial denominada RAPE - Región Central\"","RAPE Región Central","Manual Específico de Funciones y de Competencias Laborales ","2016-06-22","Todos","VIGENTE","Ninguna"]
[{"$f":"IF(ISERROR(VLOOKUP(B112,'Lista Desplegable'!$A$49:$C$64,3,0))=TRUE,\"Seleccione el proceso Correcto\",VLOOKUP(B112,'Lista Desplegable'!$A$49:$C$64,3,0))","v":"Dirección Ejecutiva"},"Gestión Jurídica","Resolución","Interna",152,"Por la cual se ordena la Apertura del Proceso de Selección mediante concurso de Méritos CMA-009 de 2016","RAPE Región Central","Contratación","2016-06-23","Todos","VIGENTE","Ninguna"]
[{"$f":"IF(ISERROR(VLOOKUP(B113,'Lista Desplegable'!$A$49:$C$64,3,0))=TRUE,\"Seleccione el proceso Correcto\",VLOOKUP(B113,'Lista Desplegable'!$A$49:$C$64,3,0))","v":"Dirección Ejecutiva"},"Gestión Jurídica","Resolución","Interna",155,"Por medio de la cual se reglamentan las comisiones de servicio y desplazamientos al interior y exterior del país","RAPE Región Central","Comisiones de servicio y desplazamientos al interior y exterior ","2016-07-06","Todos","VIGENTE","Ninguna"]
[{"$f":"IF(ISERROR(VLOOKUP(B114,'Lista Desplegable'!$A$49:$C$64,3,0))=TRUE,\"Seleccione el proceso Correcto\",VLOOKUP(B114,'Lista Desplegable'!$A$49:$C$64,3,0))","v":"Dirección Ejecutiva"},"Gestión Jurídica","Resolución","Interna",158,"Por medio de la cual se reconocen unos gastos y se ordena un reembolso de una caja menor","RAPE Región Central","Caja menor","2016-07-08","Todos","VIGENTE","Ninguna"]
[{"$f":"IF(ISERROR(VLOOKUP(B115,'Lista Desplegable'!$A$49:$C$64,3,0))=TRUE,\"Seleccione el proceso Correcto\",VLOOKUP(B115,'Lista Desplegable'!$A$49:$C$64,3,0))","v":"Dirección Ejecutiva"},"Gestión Jurídica","Resolución","Interna",160,"Por medio de la cual se adjudica el proceso de Liquidación Pública LP-008-2016","RAPE Región Central","Contratación","2016-07-08","Todos","VIGENTE","Ninguna"]
[{"$f":"IF(ISERROR(VLOOKUP(B116,'Lista Desplegable'!$A$49:$C$64,3,0))=TRUE,\"Seleccione el proceso Correcto\",VLOOKUP(B116,'Lista Desplegable'!$A$49:$C$64,3,0))","v":"Dirección Ejecutiva"},"Gestión Jurídica","Resolución","Interna",163,"Apertura 010","RAPE Región Central","Contratación","2016-07-19","Todos","VIGENTE","Ninguna"]
[{"$f":"IF(ISERROR(VLOOKUP(B117,'Lista Desplegable'!$A$49:$C$64,3,0))=TRUE,\"Seleccione el proceso Correcto\",VLOOKUP(B117,'Lista Desplegable'!$A$49:$C$64,3,0))","v":"Dirección Ejecutiva"},"Gestión Jurídica","Resolución","Interna",166,"Reembolso caja menor","RAPE Región Central","Caja menor","2016-07-22","Todos","VIGENTE","Ninguna"]
[{"$f":"IF(ISERROR(VLOOKUP(B118,'Lista Desplegable'!$A$49:$C$64,3,0))=TRUE,\"Seleccione el proceso Correcto\",VLOOKUP(B118,'Lista Desplegable'!$A$49:$C$64,3,0))","v":"Dirección Ejecutiva"},"Gestión Jurídica","Resolución","Interna",168,"Por medio de la cual se realiza la modificación al presupuesto de ingresos rentas y gastos para la vigencia fiscal 2016 de la Región Administrativa y de Planeación Especial - RAPE - Región Central","RAPE Región Central","Presupuesto de ingresos rentas y gastos ","2016-07-27","Todos","VIGENTE","Ninguna"]
[{"$f":"IF(ISERROR(VLOOKUP(B119,'Lista Desplegable'!$A$49:$C$64,3,0))=TRUE,\"Seleccione el proceso Correcto\",VLOOKUP(B119,'Lista Desplegable'!$A$49:$C$64,3,0))","v":"Dirección Ejecutiva"},"Gestión Jurídica","Resolución","Interna",175,"Por medio de la cual se reconocen unos gastos y se ordena un reembolso de una caja menor","RAPE Región Central","Caja menor","2016-08-03","Todos","VIGENTE","Ninguna"]
[{"$f":"IF(ISERROR(VLOOKUP(B120,'Lista Desplegable'!$A$49:$C$64,3,0))=TRUE,\"Seleccione el proceso Correcto\",VLOOKUP(B120,'Lista Desplegable'!$A$49:$C$64,3,0))","v":"Dirección Ejecutiva"},"Gestión Jurídica","Resolución","Interna",180,"Por medio de la cual se modifica la Resolución 072 de 2016 del Plan Anticorrupción y de atención al ciudadano vigencia 2016","RAPE Región Central","Plan Anticorrupción y de atención al ciudadano","2016-08-09","Todos","VIGENTE","Ninguna"]
[{"$f":"IF(ISERROR(VLOOKUP(B121,'Lista Desplegable'!$A$49:$C$64,3,0))=TRUE,\"Seleccione el proceso Correcto\",VLOOKUP(B121,'Lista Desplegable'!$A$49:$C$64,3,0))","v":"Dirección Ejecutiva"},"Gestión Jurídica","Resolución","Interna",181,"Por medio de la cual se adjudica el concurso de méritos CMA-009-2016","RAPE Región Central","Contratación","2016-08-10","Todos","VIGENTE","Ninguna"]
[{"$f":"IF(ISERROR(VLOOKUP(B122,'Lista Desplegable'!$A$49:$C$64,3,0))=TRUE,\"Seleccione el proceso Correcto\",VLOOKUP(B122,'Lista Desplegable'!$A$49:$C$64,3,0))","v":"Dirección Ejecutiva"},"Gestión Jurídica","Resolución","Interna",192,"Por medio de la cual se adjudica el Concurso de Méritos CMA-010 de 2016","RAPE Región Central","Contratación","2016-08-24","Todos","VIGENTE","Ninguna"]
[{"$f":"IF(ISERROR(VLOOKUP(B123,'Lista Desplegable'!$A$49:$C$64,3,0))=TRUE,\"Seleccione el proceso Correcto\",VLOOKUP(B123,'Lista Desplegable'!$A$49:$C$64,3,0))","v":"Dirección Ejecutiva"},"Gestión Jurídica","Resolución","Interna",195,"Por la cual se ordena la Apertura del Proceso de Selección mediante licitación Pública No. LP-011 de 2016","RAPE Región Central","Contratación","2016-08-26","Todos","VIGENTE","Ninguna"]
[{"$f":"IF(ISERROR(VLOOKUP(B124,'Lista Desplegable'!$A$49:$C$64,3,0))=TRUE,\"Seleccione el proceso Correcto\",VLOOKUP(B124,'Lista Desplegable'!$A$49:$C$64,3,0))","v":"Dirección Ejecutiva"},"Gestión Jurídica","Resolución","Interna",199,"Por medio de la cual se realiza la modificación al presupuesto de ingresos rentas y gastos para la vigencia fiscal 2016 de la Región Administrativa y de Planeación Especial - RAPE - Región Central","RAPE Región Central","Presupuesto de ingresos rentas y gastos ","2016-08-31","Todos","VIGENTE","Ninguna"]
[{"$f":"IF(ISERROR(VLOOKUP(B125,'Lista Desplegable'!$A$49:$C$64,3,0))=TRUE,\"Seleccione el proceso Correcto\",VLOOKUP(B125,'Lista Desplegable'!$A$49:$C$64,3,0))","v":"Dirección Ejecutiva"},"Gestión Jurídica","Resolución","Interna",214,"Por la cual se reconocen unos gastos y se ordena un reembolso de caja menor","RAPE Región Central","Caja menor","2016-09-22","Todos","VIGENTE","Ninguna"]
[{"$f":"IF(ISERROR(VLOOKUP(B126,'Lista Desplegable'!$A$49:$C$64,3,0))=TRUE,\"Seleccione el proceso Correcto\",VLOOKUP(B126,'Lista Desplegable'!$A$49:$C$64,3,0))","v":"Dirección Ejecutiva"},"Gestión Jurídica","Resolución","Interna",235,"Por medio de la cual se reconocen unos gastos y se ordena un reembolso de una caja menor","RAPE Región Central","Caja Menor","2016-10-03","Todos","VIGENTE","Ninguna"]
[{"$f":"IF(ISERROR(VLOOKUP(B127,'Lista Desplegable'!$A$49:$C$64,3,0))=TRUE,\"Seleccione el proceso Correcto\",VLOOKUP(B127,'Lista Desplegable'!$A$49:$C$64,3,0))","v":"Dirección Ejecutiva"},"Gestión Jurídica","Resolución","Interna",239,"Por medio de la cual se realiza la modificación al presupuesto de ingresos rentas y gastos para la vigencia fiscal 2016 de la Región Administrativa y de Planeación Especial - RAPE - Región Central","RAPE Región Central","Presupuesto de ingresos rentas y gastos ","2016-10-05","Todos","VIGENTE","Ninguna"]
[{"$f":"IF(ISERROR(VLOOKUP(B128,'Lista Desplegable'!$A$49:$C$64,3,0))=TRUE,\"Seleccione el proceso Correcto\",VLOOKUP(B128,'Lista Desplegable'!$A$49:$C$64,3,0))","v":"Dirección Ejecutiva"},"Gestión Jurídica","Resolución","Interna",278,"Por medio de la cual se adopta la misión, visión, los objetivos y los servicios de institucionales de la Región Administrativa y de Planeación Especial - Rape Región Central","RAPE Región Central","misión, visión, los objetivos y los servicios de institucionales ","2016-11-22","Todos","VIGENTE","Ninguna"]
[{"$f":"IF(ISERROR(VLOOKUP(B129,'Lista Desplegable'!$A$49:$C$64,3,0))=TRUE,\"Seleccione el proceso Correcto\",VLOOKUP(B129,'Lista Desplegable'!$A$49:$C$64,3,0))","v":"Dirección Ejecutiva"},"Gestión Jurídica","Resolución","Interna",279,"Por el cual se hace un traslado presupuestal ","RAPE Región Central","Presupuesto de ingresos rentas y gastos ","2016-11-30","Todos","VIGENTE","Ninguna"]
[{"$f":"IF(ISERROR(VLOOKUP(B130,'Lista Desplegable'!$A$49:$C$64,3,0))=TRUE,\"Seleccione el proceso Correcto\",VLOOKUP(B130,'Lista Desplegable'!$A$49:$C$64,3,0))","v":"Dirección Ejecutiva"},"Gestión Jurídica","Resolución","Interna",280,"Por el cual se adopta la politica de administracion y gestion del riesgo","RAPE Región Central","Política de Administración y Gestión Integral de Riesgos ","2016-11-30","Todos","VIGENTE","Ninguna"]
[{"$f":"IF(ISERROR(VLOOKUP(B131,'Lista Desplegable'!$A$49:$C$64,3,0))=TRUE,\"Seleccione el proceso Correcto\",VLOOKUP(B131,'Lista Desplegable'!$A$49:$C$64,3,0))","v":"Dirección Ejecutiva"},"Gestión Jurídica","Resolución","Interna",288,"Por medio de la cual se reconocen unos gastos y se ordena un reembolso de una caja menor","RAPE Región Central","Caja Menor","2016-12-06","Todos","VIGENTE","Ninguna"]
[{"$f":"IF(ISERROR(VLOOKUP(B132,'Lista Desplegable'!$A$49:$C$64,3,0))=TRUE,\"Seleccione el proceso Correcto\",VLOOKUP(B132,'Lista Desplegable'!$A$49:$C$64,3,0))","v":"Dirección Ejecutiva"},"Gestión Jurídica","Resolución","Interna",292,"Por  medio de la cual se liquida el presupuesto de la RAPE","RAPE Región Central","Presupuesto de ingresos rentas y gastos ","2016-12-13","Todos","VIGENTE","Ninguna"]
[{"$f":"IF(ISERROR(VLOOKUP(B133,'Lista Desplegable'!$A$49:$C$64,3,0))=TRUE,\"Seleccione el proceso Correcto\",VLOOKUP(B133,'Lista Desplegable'!$A$49:$C$64,3,0))","v":"Dirección Ejecutiva"},"Gestión Jurídica","Resolución","Interna",299,"Por medio de la cual se modifica el presupuesto ","RAPE Región Central","Presupuesto de ingresos rentas y gastos ","2016-12-19","Todos","VIGENTE","Ninguna"]
[{"$f":"IF(ISERROR(VLOOKUP(B134,'Lista Desplegable'!$A$49:$C$64,3,0))=TRUE,\"Seleccione el proceso Correcto\",VLOOKUP(B134,'Lista Desplegable'!$A$49:$C$64,3,0))","v":"Dirección Ejecutiva"},"Gestión Jurídica","Resolución","Interna",301,"Por medio de la cual se reconocen gastos de caja menor ","RAPE Región Central","Caja menor","2016-12-26","Todos","VIGENTE","Ninguna"]
[{"$f":"IF(ISERROR(VLOOKUP(B135,'Lista Desplegable'!$A$49:$C$64,3,0))=TRUE,\"Seleccione el proceso Correcto\",VLOOKUP(B135,'Lista Desplegable'!$A$49:$C$64,3,0))","v":"Dirección Ejecutiva"},"Gestión Jurídica","Resolución","Interna",303,"Legalización definitiva Caja Menor ","RAPE Región Central","Caja menor","2016-12-28","Todos","VIGENTE","Ninguna"]
[{"$f":"IF(ISERROR(VLOOKUP(B136,'Lista Desplegable'!$A$49:$C$64,3,0))=TRUE,\"Seleccione el proceso Correcto\",VLOOKUP(B136,'Lista Desplegable'!$A$49:$C$64,3,0))","v":"Dirección Ejecutiva"},"Gestión Jurídica","Resolución","Interna",304,"Por medio de la cual se efectua una reducción en el presupuesto anual de rentas e ingresos y de gastos de inversiones de la vigencia fiscal 2016 de la RAPE","RAPE Región Central","Presupuesto de ingresos rentas y gastos ","2016-12-28","Todos","VIGENTE","Ninguna"]
[{"$f":"IF(ISERROR(VLOOKUP(B137,'Lista Desplegable'!$A$49:$C$64,3,0))=TRUE,\"Seleccione el proceso Correcto\",VLOOKUP(B137,'Lista Desplegable'!$A$49:$C$64,3,0))","v":"Dirección Ejecutiva"},"Gestión Jurídica","Resolución","Interna",305,"Por medio de la cual se adopta el programa anual mensualizado de caja PAC para la vigencia fiscal  2017 de la RAPE.  ","RAPE Región Central","Programa Anual Mensualizado de Caja PAC de Reservas Presupuestales y Cuentas por Pagar","2016-12-30","Todos","VIGENTE","Ninguna"]
[{"$f":"IF(ISERROR(VLOOKUP(B138,'Lista Desplegable'!$A$49:$C$64,3,0))=TRUE,\"Seleccione el proceso Correcto\",VLOOKUP(B138,'Lista Desplegable'!$A$49:$C$64,3,0))","v":"Dirección Ejecutiva"},"Gestión Jurídica","Resolución","Interna",43,"Por la cual se adopta el Plan Anticorrupción y de Atención al Ciudadano de la Región Administrativa y de Planeación Especial RAPE - Región Central, para la vigencia 2017","RAPE Región Central","Plan Anticorrupción y de atención al ciudadano","2017-01-30","Todos","VIGENTE","Ninguna"]
[{"$f":"IF(ISERROR(VLOOKUP(B139,'Lista Desplegable'!$A$49:$C$64,3,0))=TRUE,\"Seleccione el proceso Correcto\",VLOOKUP(B139,'Lista Desplegable'!$A$49:$C$64,3,0))","v":"Dirección Ejecutiva"},"Gestión Jurídica","Resolución","Interna",44,"Por la cual se constituye la Caja Menor de la Dirección Corporativa para la vigencia fiscal 2017 y se dictan otras disposiciones","RAPE Región Central","Caja menor","2017-01-30","Todos","VIGENTE","Ninguna"]
[{"$f":"IF(ISERROR(VLOOKUP(B140,'Lista Desplegable'!$A$49:$C$64,3,0))=TRUE,\"Seleccione el proceso Correcto\",VLOOKUP(B140,'Lista Desplegable'!$A$49:$C$64,3,0))","v":"Dirección Ejecutiva"},"Gestión Jurídica","Resolución","Interna",47,"Por medio de la cual se modifica la Resolución 003 de 2015, “Por la cual se establece el Manual Específico de Funciones y de Competencias Laborales para los empleos de la planta de personal de la Región Administrativa y de Planeación Especial denominada RAPE – Región Central","RAPE Región Central","Manual Específico de Funciones y de Competencias Laborales ","2017-02-01","Todos","VIGENTE","Ninguna"]
[{"$f":"IF(ISERROR(VLOOKUP(B141,'Lista Desplegable'!$A$49:$C$64,3,0))=TRUE,\"Seleccione el proceso Correcto\",VLOOKUP(B141,'Lista Desplegable'!$A$49:$C$64,3,0))","v":"Dirección Ejecutiva"},"Gestión Jurídica","Resolución","Interna",50,"Por medio de la cual se adopta el Programa de Bienestar e Incentivos de los funcionarios de la Region Administrativa y de Planeación Espcial RAPE - Región Central, para la vigencia 2017","RAPE Región Central","Bienestar e Incentivos","2017-02-01","Todos","VIGENTE","Ninguna"]
[{"$f":"IF(ISERROR(VLOOKUP(B142,'Lista Desplegable'!$A$49:$C$64,3,0))=TRUE,\"Seleccione el proceso Correcto\",VLOOKUP(B142,'Lista Desplegable'!$A$49:$C$64,3,0))","v":"Dirección Ejecutiva"},"Gestión Jurídica","Resolución","Interna",51,"Por medio de la cual se adopta el Plan de Capacitación y/o entrenamiento en el puesto de trabajo de los funcionarios de la Region Administrativa y de Planeación Espcial RAPE - Región Central, para la vigencia 2017","RAPE Región Central","Capacitación y/o Entrenamiento en el Puesto de Trabajo","2017-02-01","Todos","VIGENTE","Ninguna"]
[{"$f":"IF(ISERROR(VLOOKUP(B143,'Lista Desplegable'!$A$49:$C$64,3,0))=TRUE,\"Seleccione el proceso Correcto\",VLOOKUP(B143,'Lista Desplegable'!$A$49:$C$64,3,0))","v":"Dirección Ejecutiva"},"Gestión Jurídica","Resolución","Interna",53,"Por la cual se reconoce y ordena el pago de una inscripción al 1er Congreso de Sostenibilidad, que se realizará el 23 y 24 de marzo de 2017.","RAPE Región Central","Contratación","2017-02-03","Todos","VIGENTE","Ninguna"]
[{"$f":"IF(ISERROR(VLOOKUP(B144,'Lista Desplegable'!$A$49:$C$64,3,0))=TRUE,\"Seleccione el proceso Correcto\",VLOOKUP(B144,'Lista Desplegable'!$A$49:$C$64,3,0))","v":"Dirección Ejecutiva"},"Gestión Jurídica","Resolución","Interna",70,"Por medio de la cual se reconocen unos gastos y se ordena un reembolso de una caja menor.","RAPE Región Central","Caja menor","2017-03-01","Todos","VIGENTE","Ninguna"]
[{"$f":"IF(ISERROR(VLOOKUP(B145,'Lista Desplegable'!$A$49:$C$64,3,0))=TRUE,\"Seleccione el proceso Correcto\",VLOOKUP(B145,'Lista Desplegable'!$A$49:$C$64,3,0))","v":"Dirección Ejecutiva"},"Gestión Jurídica","Resolución","Interna",72,"Por medio de la cual se realiza la modificación al presupuesto de ingresos rentas y gastos para la vigencia fiscal 2017 de la Región Administrativa y de Planeacion Especial RAPE Región Central.","RAPE Región Central","Presupuesto de ingresos rentas y gastos ","2017-03-02","Todos","VIGENTE","Ninguna"]
[{"$f":"IF(ISERROR(VLOOKUP(B146,'Lista Desplegable'!$A$49:$C$64,3,0))=TRUE,\"Seleccione el proceso Correcto\",VLOOKUP(B146,'Lista Desplegable'!$A$49:$C$64,3,0))","v":"Dirección Ejecutiva"},"Gestión Jurídica","Resolución","Interna",77,"Por medio de la cual se reconocen unos gastos y se ordena un reembolso de una caja menor.","RAPE Región Central","Caja menor","2017-03-14","Todos","VIGENTE","Ninguna"]
[{"$f":"IF(ISERROR(VLOOKUP(B147,'Lista Desplegable'!$A$49:$C$64,3,0))=TRUE,\"Seleccione el proceso Correcto\",VLOOKUP(B147,'Lista Desplegable'!$A$49:$C$64,3,0))","v":"Dirección Ejecutiva"},"Gestión Jurídica","Resolución","Interna",80,"Por medio de la cual se ordena la apertura del proceso de selección abreviada de menor cuantía No. 01 de 2017","RAPE Región Central","Contratación","2017-03-21","Todos","VIGENTE","Ninguna"]
[{"$f":"IF(ISERROR(VLOOKUP(B148,'Lista Desplegable'!$A$49:$C$64,3,0))=TRUE,\"Seleccione el proceso Correcto\",VLOOKUP(B148,'Lista Desplegable'!$A$49:$C$64,3,0))","v":"Dirección Ejecutiva"},"Gestión Jurídica","Resolución","Interna",82,"Por medio de la cual se ordena la apertura del proceso de selección abreviada de menor cuantía No. 02 de 2017","RAPE Región Central","Contratación","2017-03-22","Todos","VIGENTE","Ninguna"]
[{"$f":"IF(ISERROR(VLOOKUP(B149,'Lista Desplegable'!$A$49:$C$64,3,0))=TRUE,\"Seleccione el proceso Correcto\",VLOOKUP(B149,'Lista Desplegable'!$A$49:$C$64,3,0))","v":"Dirección Ejecutiva"},"Gestión Jurídica","Resolución","Interna",87,"Por medio de la cual se ordena la apertura del proceso de selección abreviada de menor cuantía No. 003 de 2017","RAPE Región Central","Contratación","2017-03-24","Todos","VIGENTE","Ninguna"]
[{"$f":"IF(ISERROR(VLOOKUP(B150,'Lista Desplegable'!$A$49:$C$64,3,0))=TRUE,\"Seleccione el proceso Correcto\",VLOOKUP(B150,'Lista Desplegable'!$A$49:$C$64,3,0))","v":"Dirección Ejecutiva"},"Gestión Jurídica","Resolución","Interna",93,"Por medio de la cual se reconocen unos gastos y se ordena un reembolso de una caja menor.","RAPE Región Central","Caja menor","2017-04-05","Todos","VIGENTE","Ninguna"]
[{"$f":"IF(ISERROR(VLOOKUP(B151,'Lista Desplegable'!$A$49:$C$64,3,0))=TRUE,\"Seleccione el proceso Correcto\",VLOOKUP(B151,'Lista Desplegable'!$A$49:$C$64,3,0))","v":"Dirección Ejecutiva"},"Gestión Jurídica","Resolución","Interna",94,"Por medio de la cual se adjudica el proceso de selección abreviada de menor cuantía No. 02 de 2017","RAPE Región Central","Contratación","2017-04-05","Todos","VIGENTE","Ninguna"]
[{"$f":"IF(ISERROR(VLOOKUP(B152,'Lista Desplegable'!$A$49:$C$64,3,0))=TRUE,\"Seleccione el proceso Correcto\",VLOOKUP(B152,'Lista Desplegable'!$A$49:$C$64,3,0))","v":"Dirección Ejecutiva"},"Gestión Jurídica","Resolución","Interna",95,"Por medio de la cual se adjudica el proceso de selección abreviada de menor cuantía No. 01 de 2017","RAPE Región Central","Contratación","2017-04-06","Todos","VIGENTE","Ninguna"]
[{"$f":"IF(ISERROR(VLOOKUP(B153,'Lista Desplegable'!$A$49:$C$64,3,0))=TRUE,\"Seleccione el proceso Correcto\",VLOOKUP(B153,'Lista Desplegable'!$A$49:$C$64,3,0))","v":"Dirección Ejecutiva"},"Gestión Jurídica","Resolución","Interna",96,"Por medio de la cual se adjudica el proceso de selección abreviada de menor cuantía No. 03 de 2017","RAPE Región Central","Contratación","2017-04-07","Todos","VIGENTE","Ninguna"]
[{"$f":"IF(ISERROR(VLOOKUP(B154,'Lista Desplegable'!$A$49:$C$64,3,0))=TRUE,\"Seleccione el proceso Correcto\",VLOOKUP(B154,'Lista Desplegable'!$A$49:$C$64,3,0))","v":"Dirección Ejecutiva"},"Gestión Jurídica","Resolución","Interna",102,"Por medio de la cual se ordena la apertura del proceso de selección abreviada por subasta inversa SASI - 004 de 2017","RAPE Región Central","Contratación","2017-04-20","Todos","VIGENTE","Ninguna"]
[{"$f":"IF(ISERROR(VLOOKUP(B155,'Lista Desplegable'!$A$49:$C$64,3,0))=TRUE,\"Seleccione el proceso Correcto\",VLOOKUP(B155,'Lista Desplegable'!$A$49:$C$64,3,0))","v":"Dirección Ejecutiva"},"Gestión Jurídica","Resolución","Interna",114,"Por medio de la cual se adjudica el proceso de selección abreviada por subasta inversa No. 004 de 2017","RAPE Región Central","Contratación","2017-05-08","Todos","VIGENTE","Ninguna"]
[{"$f":"IF(ISERROR(VLOOKUP(B156,'Lista Desplegable'!$A$49:$C$64,3,0))=TRUE,\"Seleccione el proceso Correcto\",VLOOKUP(B156,'Lista Desplegable'!$A$49:$C$64,3,0))","v":"Dirección Ejecutiva"},"Gestión Jurídica","Resolución","Interna",117,"Por medio de la cual se reconocen unos gastos de una caja menor.","RAPE Región Central","Caja Menor","2017-05-12","Todos","VIGENTE","Ninguna"]
[{"$f":"IF(ISERROR(VLOOKUP(B157,'Lista Desplegable'!$A$49:$C$64,3,0))=TRUE,\"Seleccione el proceso Correcto\",VLOOKUP(B157,'Lista Desplegable'!$A$49:$C$64,3,0))","v":"Dirección Ejecutiva"},"Gestión Jurídica","Resolución","Interna",120,"Por medio de la cual se efectúa la legalización definitiva de la caja menor.","RAPE Región Central","Caja menor","2017-05-12","Todos","VIGENTE","Ninguna"]
[{"$f":"IF(ISERROR(VLOOKUP(B158,'Lista Desplegable'!$A$49:$C$64,3,0))=TRUE,\"Seleccione el proceso Correcto\",VLOOKUP(B158,'Lista Desplegable'!$A$49:$C$64,3,0))","v":"Dirección Ejecutiva"},"Gestión Jurídica","Resolución","Interna",121,"Por medio de la cual se reglamentan las comisiones de servicio y desplazamientos al interior y exterior del país","RAPE Región Central","comisiones de servicio y desplazamientos al interior y exterior","2017-05-15","Todos","VIGENTE","Ninguna"]
[{"$f":"IF(ISERROR(VLOOKUP(B159,'Lista Desplegable'!$A$49:$C$64,3,0))=TRUE,\"Seleccione el proceso Correcto\",VLOOKUP(B159,'Lista Desplegable'!$A$49:$C$64,3,0))","v":"Dirección Ejecutiva"},"Gestión Jurídica","Resolución","Interna",123,"Por la cual se constituye la Caja Menor de la Dirección Corporativa para la vigencia fiscal 2017 y se dictan otras disposiciones","RAPE Región Central","Caja menor","2017-05-18","Todos","VIGENTE","Ninguna"]
[{"$f":"IF(ISERROR(VLOOKUP(B160,'Lista Desplegable'!$A$49:$C$64,3,0))=TRUE,\"Seleccione el proceso Correcto\",VLOOKUP(B160,'Lista Desplegable'!$A$49:$C$64,3,0))","v":"Dirección Ejecutiva"},"Gestión Jurídica","Resolución","Interna",135,"Por medio de la cual se reconocen unos gastos de una caja menor.","RAPE Región Central","Caja menor","2017-06-02","Todos","VIGENTE","Ninguna"]
[{"$f":"IF(ISERROR(VLOOKUP(B161,'Lista Desplegable'!$A$49:$C$64,3,0))=TRUE,\"Seleccione el proceso Correcto\",VLOOKUP(B161,'Lista Desplegable'!$A$49:$C$64,3,0))","v":"Dirección Ejecutiva"},"Gestión Jurídica","Resolución","Interna",137,"Por la cual se modifica el Programa Anual Mensualizado de Caja PAC para la vigencia fiscal 2017 y de reservas de la Región Administrativa y de Planeacio´n Especial - RAPE Región Central","RAPE Región Central","Programa Anual Mensualizado de Caja PAC de Reservas Presupuestales y Cuentas por Pagar","2017-06-05","Todos","VIGENTE","Ninguna"]
[{"$f":"IF(ISERROR(VLOOKUP(B162,'Lista Desplegable'!$A$49:$C$64,3,0))=TRUE,\"Seleccione el proceso Correcto\",VLOOKUP(B162,'Lista Desplegable'!$A$49:$C$64,3,0))","v":"Dirección Ejecutiva"},"Gestión Jurídica","Resolución","Interna",140,"Por medio de la cual se crea y reglamenta el funcionamiento del Comité de Contratación de la Región Administrativa y de Planeación Especial RAPE – Región Central”","RAPE Región Central","Comité de Contratación","2017-06-07","Todos","VIGENTE","Ninguna"]
[{"$f":"IF(ISERROR(VLOOKUP(B163,'Lista Desplegable'!$A$49:$C$64,3,0))=TRUE,\"Seleccione el proceso Correcto\",VLOOKUP(B163,'Lista Desplegable'!$A$49:$C$64,3,0))","v":"Dirección Ejecutiva"},"Gestión Jurídica","Resolución","Interna",141,"Por la cual se modifica la Resolución 017 del 20 de abril de 2015 la cual designa el Comité para la asesoría y evaluación de las propuestas presentadas, en los procesos de selección que adelanta la Dirección Corporativa de la Región Administrativa y de Planeación Especial RAPE – Región Central","RAPE Región Central","Comité para la asesoría y evaluación","2017-06-07","Todos","VIGENTE","Ninguna"]
[{"$f":"IF(ISERROR(VLOOKUP(B164,'Lista Desplegable'!$A$49:$C$64,3,0))=TRUE,\"Seleccione el proceso Correcto\",VLOOKUP(B164,'Lista Desplegable'!$A$49:$C$64,3,0))","v":"Dirección Ejecutiva"},"Gestión Jurídica","Resolución","Interna",150,"Por medio de la cual se modifica la Resolución 292 del 13 de diciembre de 2016 \"Por medio de la cual se efectúa la liquidación del Presupuesto Anual de Rentas e Ingresos y Gastos e Inversiones de la Región Administrativa y de Planeación Especial - RAPE Región Central, para la vigencia fiscal comprendida entre el 1 de enero y el 31 de diciembre de 2017 y se dictan otras disposiciones, en cumplimiento del Acuerdo Regional 005 de 2016.","RAPE Región Central","Presupuesto de ingresos rentas y gastos ","2017-06-16","Todos","VIGENTE","Ninguna"]
[{"$f":"IF(ISERROR(VLOOKUP(B165,'Lista Desplegable'!$A$49:$C$64,3,0))=TRUE,\"Seleccione el proceso Correcto\",VLOOKUP(B165,'Lista Desplegable'!$A$49:$C$64,3,0))","v":"Dirección Ejecutiva"},"Gestión Jurídica","Resolución","Interna",151,"Por medio de la cual se declara desierto el Proceso de Mínima Cuantía No. 006 de 2017","RAPE Región Central","Contratación","2017-06-20","Todos","VIGENTE","Ninguna"]
[{"$f":"IF(ISERROR(VLOOKUP(B166,'Lista Desplegable'!$A$49:$C$64,3,0))=TRUE,\"Seleccione el proceso Correcto\",VLOOKUP(B166,'Lista Desplegable'!$A$49:$C$64,3,0))","v":"Dirección Ejecutiva"},"Gestión Jurídica","Resolución","Interna",154,"Por la cuyal se crea y organiza un comité al interior de la entidad para el proceso de rediseño institucional de la Región Administrativa y de Planeación Especial RAPE - Región Central","RAPE Región Central","Comité al interior de la entidad para el proceso de rediseño institucional ","2017-06-21","Todos","VIGENTE","Ninguna"]
[{"$f":"IF(ISERROR(VLOOKUP(B167,'Lista Desplegable'!$A$49:$C$64,3,0))=TRUE,\"Seleccione el proceso Correcto\",VLOOKUP(B167,'Lista Desplegable'!$A$49:$C$64,3,0))","v":"Dirección Ejecutiva"},"Gestión Jurídica","Resolución","Interna",155,"Por medio de la cual se adopta el Sistema institucional de Control Interno y se modifica el Comité de Coordinación del Sistema de Control interno de la Región Administrativa y de Planeación Especial RAPE Región Central y se dictan otras disposiciones.","RAPE Región Central","Comité de Coordinación del Sistema de Control Interno","2017-06-23","Todos","VIGENTE","Ninguna"]
[{"$f":"IF(ISERROR(VLOOKUP(B168,'Lista Desplegable'!$A$49:$C$64,3,0))=TRUE,\"Seleccione el proceso Correcto\",VLOOKUP(B168,'Lista Desplegable'!$A$49:$C$64,3,0))","v":"Dirección Ejecutiva"},"Gestión Jurídica","Resolución","Interna",172,"Por la cual se adopta el Sistema de Medición de la Gestión Laboral de los servidores públicos vinculados mediante nombramiento provisional, de la Región Administrativa de Planeación Especial. RAPE- Región Central","RAPE Región Central","Sistema de Medición de la Gestión Laboral de los servidores públicos vinculados mediante nombramiento provisional","2017-06-29","Todos","VIGENTE","Ninguna"]
[{"$f":"IF(ISERROR(VLOOKUP(B169,'Lista Desplegable'!$A$49:$C$64,3,0))=TRUE,\"Seleccione el proceso Correcto\",VLOOKUP(B169,'Lista Desplegable'!$A$49:$C$64,3,0))","v":"Dirección Ejecutiva"},"Gestión Jurídica","Resolución","Interna",176,"Por medio de la cual se reconocen unos gastos y se ordena un reembolso de una caja menor.","RAPE Región Central","Caja menor","2017-07-05","Todos","VIGENTE","Ninguna"]
[{"$f":"IF(ISERROR(VLOOKUP(B170,'Lista Desplegable'!$A$49:$C$64,3,0))=TRUE,\"Seleccione el proceso Correcto\",VLOOKUP(B170,'Lista Desplegable'!$A$49:$C$64,3,0))","v":"Dirección Ejecutiva"},"Gestión Jurídica","Resolución","Interna",177,"Por medio de la cual se modifica la resolución 292 de 2016 \"Por medio de la cual se efectua la liquidacion del presupuesto anual del rentas e ingresos y gastos e Inversiones de la Región Administrativa y de Planeacion Especial RAPE Región Central, para la vigencia fiscal comprendida entre el 1 de enero y el 31 de diciembre de 2017 y se dictan otras disposiciones en cumplimiento del Acuerdo Regional 005 de 2016","RAPE Región Central","Presupuesto de ingresos rentas y gastos ","2017-07-05","Todos","VIGENTE","Ninguna"]
[{"$f":"IF(ISERROR(VLOOKUP(B171,'Lista Desplegable'!$A$49:$C$64,3,0))=TRUE,\"Seleccione el proceso Correcto\",VLOOKUP(B171,'Lista Desplegable'!$A$49:$C$64,3,0))","v":"Dirección Ejecutiva"},"Gestión Jurídica","Resolución","Interna",178,"Por medio de la cual se conforma el Equipo MECI y CALIDAD de la Región Administrativa y de Planeación Especial RAPE Región Central y se dictan otras disposiciones","RAPE Región Central","Equipo MECI y CALIDAD","2017-07-05","Todos","VIGENTE","Ninguna"]
[{"$f":"IF(ISERROR(VLOOKUP(B172,'Lista Desplegable'!$A$49:$C$64,3,0))=TRUE,\"Seleccione el proceso Correcto\",VLOOKUP(B172,'Lista Desplegable'!$A$49:$C$64,3,0))","v":"Dirección Ejecutiva"},"Gestión Jurídica","Resolución","Interna",184,"Por la cual se modifica el Programa Anual Mensualizado de Caja PAC para la vigencia fiscal 2017 y de reservas de la Región Administrativa y de Planeacio´n Especial - RAPE Región Central","RAPE Región Central","Programa Anual Mensualizado de Caja PAC de Reservas Presupuestales y Cuentas por Pagar","2017-07-12","Todos","VIGENTE","Ninguna"]
[{"$f":"IF(ISERROR(VLOOKUP(B173,'Lista Desplegable'!$A$49:$C$64,3,0))=TRUE,\"Seleccione el proceso Correcto\",VLOOKUP(B173,'Lista Desplegable'!$A$49:$C$64,3,0))","v":"Dirección Ejecutiva"},"Gestión Jurídica","Resolución","Interna",185,"Por medio de la cual se crea un capítulo independiente y se incorporan al presupuesto de rentas y recursos de capital y de gastos de la Región Administrativa y de Planeación Especial, recursos del Sistema General de Regalías del bienio 2017-2018","RAPE Región Central","Sistema General de Regalías del bienio","2017-07-12","Todos","VIGENTE","Ninguna"]
[{"$f":"IF(ISERROR(VLOOKUP(B174,'Lista Desplegable'!$A$49:$C$64,3,0))=TRUE,\"Seleccione el proceso Correcto\",VLOOKUP(B174,'Lista Desplegable'!$A$49:$C$64,3,0))","v":"Dirección Ejecutiva"},"Gestión Jurídica","Resolución","Interna",186,"Por la cual se convoca a elecciones de los representantes de los empleados ante la Comisión de Personal de la Región Administrativa y de Planeación Especial RAPE - Región Central","RAPE Región Central","Comisión de Personal de la Región","2017-07-12","Todos","VIGENTE","Ninguna"]
[{"$f":"IF(ISERROR(VLOOKUP(B175,'Lista Desplegable'!$A$49:$C$64,3,0))=TRUE,\"Seleccione el proceso Correcto\",VLOOKUP(B175,'Lista Desplegable'!$A$49:$C$64,3,0))","v":"Dirección Ejecutiva"},"Gestión Jurídica","Resolución","Interna",189,"Por la cual se modifica la Resolución 186 del 12 de julio de 2017","RAPE Región Central","Modificacíon Resolución","2017-07-13","Todos","VIGENTE","Ninguna"]
[{"$f":"IF(ISERROR(VLOOKUP(B176,'Lista Desplegable'!$A$49:$C$64,3,0))=TRUE,\"Seleccione el proceso Correcto\",VLOOKUP(B176,'Lista Desplegable'!$A$49:$C$64,3,0))","v":"Dirección Ejecutiva"},"Gestión Jurídica","Resolución","Interna",198,"Por medio de la cual se adopta el Plan Anual de Seguridad y Salud en el Trabajo de la Región Administrativa y de Planeación Especial RAPE - Región Central, para la vigencia 2017","RAPE Región Central","Seguridad y Salud en el Trabajo","2017-07-28","Todos","VIGENTE","Ninguna"]
[{"$f":"IF(ISERROR(VLOOKUP(B177,'Lista Desplegable'!$A$49:$C$64,3,0))=TRUE,\"Seleccione el proceso Correcto\",VLOOKUP(B177,'Lista Desplegable'!$A$49:$C$64,3,0))","v":"Dirección Ejecutiva"},"Gestión Jurídica","Resolución","Interna",200,"Por medio de la cual se reconocen unos gastos y se ordena un reembolso de una caja menor.","RAPE Región Central","Caja Menor","2017-08-02","Todos","VIGENTE","Ninguna"]
[{"$f":"IF(ISERROR(VLOOKUP(B178,'Lista Desplegable'!$A$49:$C$64,3,0))=TRUE,\"Seleccione el proceso Correcto\",VLOOKUP(B178,'Lista Desplegable'!$A$49:$C$64,3,0))","v":"Dirección Ejecutiva"},"Gestión Jurídica","Resolución","Interna",201,"Por medio de la cual se modifica la resolución 292 de 2016 \"Por medio de la cual se efectua la liquidacion del presupuesto anual del rentas e ingresos y gastos e Inversiones de la Región Administrativa y de Planeacion Especial RAPE Región Central, para la vigencia fiscal comprendida entre el 1 de enero y el 31 de diciembre de 2017 y se dictan otras disposiciones en cumplimiento del Acuerdo Regional 005 de 2016\"","RAPE Región Central","Presupuesto de ingresos rentas y gastos ","2017-08-02","Todos","VIGENTE","Ninguna"]
[{"$f":"IF(ISERROR(VLOOKUP(B179,'Lista Desplegable'!$A$49:$C$64,3,0))=TRUE,\"Seleccione el proceso Correcto\",VLOOKUP(B179,'Lista Desplegable'!$A$49:$C$64,3,0))","v":"Dirección Ejecutiva"},"Gestión Jurídica","Resolución","Interna",204,"Por la cual se modifica la Resolucion 123 de 2017 \"Por la cual se constituye la Caja Menor para la vigencia fiscal 2017 y se dictan otras disposiciones\"","RAPE Región Central","Caja Menor","2017-08-02","Todos","VIGENTE","Ninguna"]
[{"$f":"IF(ISERROR(VLOOKUP(B180,'Lista Desplegable'!$A$49:$C$64,3,0))=TRUE,\"Seleccione el proceso Correcto\",VLOOKUP(B180,'Lista Desplegable'!$A$49:$C$64,3,0))","v":"Dirección Ejecutiva"},"Gestión Jurídica","Resolución","Interna",219,"Por medio de la cual se ordena la apertura del proceso de selección abreviada de menor cuantia No. 008 de 2017","RAPE Región Central","Contratación","2017-08-09","Todos","VIGENTE","Ninguna"]
[{"$f":"IF(ISERROR(VLOOKUP(B181,'Lista Desplegable'!$A$49:$C$64,3,0))=TRUE,\"Seleccione el proceso Correcto\",VLOOKUP(B181,'Lista Desplegable'!$A$49:$C$64,3,0))","v":"Dirección Ejecutiva"},"Gestión Jurídica","Resolución","Interna",225,"Por la cual se modifica el Programa Anual Mensualizado de Caja PAC para la vigencia fiscal 2017 y de reservas de la Región Administrativa y de Planeacio´n Especial - RAPE Región Central","RAPE Región Central","Programa Anual Mensualizado de Caja PAC de Reservas Presupuestales y Cuentas por Pagar","2017-08-10","Todos","VIGENTE","Ninguna"]
[{"$f":"IF(ISERROR(VLOOKUP(B182,'Lista Desplegable'!$A$49:$C$64,3,0))=TRUE,\"Seleccione el proceso Correcto\",VLOOKUP(B182,'Lista Desplegable'!$A$49:$C$64,3,0))","v":"Dirección Ejecutiva"},"Gestión Jurídica","Resolución","Interna",229,"Por la cual se modifica la Resolución No. 186 de 2017","RAPE Región Central","Modificacíon Resolución","2017-08-16","Todos","VIGENTE","Ninguna"]
[{"$f":"IF(ISERROR(VLOOKUP(B183,'Lista Desplegable'!$A$49:$C$64,3,0))=TRUE,\"Seleccione el proceso Correcto\",VLOOKUP(B183,'Lista Desplegable'!$A$49:$C$64,3,0))","v":"Dirección Ejecutiva"},"Gestión Jurídica","Resolución","Interna",233,"Por medio de la cual se actualiza la plataforma institucional de la entidad, se adopta el Plan Estratégico Institucional 2017-2020 y se dictan otras disposiciones.","RAPE Región Central","Plan Estrategico Institucional","2017-08-17","Todos","VIGENTE","Ninguna"]
[{"$f":"IF(ISERROR(VLOOKUP(B184,'Lista Desplegable'!$A$49:$C$64,3,0))=TRUE,\"Seleccione el proceso Correcto\",VLOOKUP(B184,'Lista Desplegable'!$A$49:$C$64,3,0))","v":"Dirección Ejecutiva"},"Gestión Jurídica","Resolución","Interna",234,"Por la cual se conforma la Comisión de personal de la Región Administrativa y de Planeación Especial RAPE Región Central para el periodo 2017-2019","RAPE Región Central","Comisión de Personal de la Región","2017-07-18","Todos","VIGENTE","Ninguna"]
[{"$f":"IF(ISERROR(VLOOKUP(B185,'Lista Desplegable'!$A$49:$C$64,3,0))=TRUE,\"Seleccione el proceso Correcto\",VLOOKUP(B185,'Lista Desplegable'!$A$49:$C$64,3,0))","v":"Dirección Ejecutiva"},"Gestión Jurídica","Resolución","Interna",239,"Por la cual se modifica la Resolución 154 del 21 de junio de 2017 “Por la cual se crea y organiza un comité al interior de la entidad para el proceso de rediseño institucional de la Región Administrativa de Planeación Especial. RAPE- Región Central","RAPE Región Central","Comité al interior de la entidad para el proceso de rediseño institucional ","2017-08-28","Todos","VIGENTE","Ninguna"]
[{"$f":"IF(ISERROR(VLOOKUP(B186,'Lista Desplegable'!$A$49:$C$64,3,0))=TRUE,\"Seleccione el proceso Correcto\",VLOOKUP(B186,'Lista Desplegable'!$A$49:$C$64,3,0))","v":"Dirección Ejecutiva"},"Gestión Jurídica","Resolución","Interna",240,"Por medio de la cual se adjudica el Proceso de Selección Abreviada de Menor cuantía SAMC 008/2017","RAPE Región Central","Contratación","2017-08-30","Todos","VIGENTE","Ninguna"]
[{"$f":"IF(ISERROR(VLOOKUP(B187,'Lista Desplegable'!$A$49:$C$64,3,0))=TRUE,\"Seleccione el proceso Correcto\",VLOOKUP(B187,'Lista Desplegable'!$A$49:$C$64,3,0))","v":"Dirección Ejecutiva"},"Gestión Jurídica","Resolución","Interna",242,"Por medio de la cual se ordena la apertura del Proceso de Selección Abreviada de Menor cuantía No. 009 de 2017","RAPE Región Central","Contratación","2017-09-04","Todos","VIGENTE","Ninguna"]
[{"$f":"IF(ISERROR(VLOOKUP(B188,'Lista Desplegable'!$A$49:$C$64,3,0))=TRUE,\"Seleccione el proceso Correcto\",VLOOKUP(B188,'Lista Desplegable'!$A$49:$C$64,3,0))","v":"Dirección Ejecutiva"},"Gestión Jurídica","Resolución","Interna",243,"Por medio de la cual se reconocen unos gastos y se ordena un reembolso de una caja menor.","RAPE Región Central","Caja menor","2017-09-04","Todos","VIGENTE","Ninguna"]
[{"$f":"IF(ISERROR(VLOOKUP(B189,'Lista Desplegable'!$A$49:$C$64,3,0))=TRUE,\"Seleccione el proceso Correcto\",VLOOKUP(B189,'Lista Desplegable'!$A$49:$C$64,3,0))","v":"Dirección Ejecutiva"},"Gestión Jurídica","Resolución","Interna",244,"Por medio del cual se modifica la resolucion 292 del 13 de diciembre de 2016 \"por la cual se efectúa la liquidación del Presupuesto anual de Rentas e Ingresos y Gastos e Inversiones de la Región Administrativa y de Planeación Especial - RAPE Región Central para la vigencia fiscal comprendida entre el 1 de enero y el 31 de diciembre de 2017 y se dictan otras disposiciones, en cumplimiento del Acuerdo Regional 005 de 2016","RAPE Región Central","Presupuesto de ingresos rentas y gastos ","2017-09-04","Todos","VIGENTE","Ninguna"]
[{"$f":"IF(ISERROR(VLOOKUP(B190,'Lista Desplegable'!$A$49:$C$64,3,0))=TRUE,\"Seleccione el proceso Correcto\",VLOOKUP(B190,'Lista Desplegable'!$A$49:$C$64,3,0))","v":"Dirección Ejecutiva"},"Gestión Jurídica","Resolución","Interna",247,"Por medio de la cual se efectúa una aclaración a la resolución 185 de 2017 \"Por medio de la cual se crea un capitulo independiente y se incorporan al presupuesto de rentas y recursos de capital y de gastos de la Región Administrativa y de Planeación Especial, recursos del Sistema General de Regalías del bienio 2017-2018\" ","RAPE Región Central","Sistema General de Regalías del bienio","2017-09-08","Todos","VIGENTE","Ninguna"]
[{"$f":"IF(ISERROR(VLOOKUP(B191,'Lista Desplegable'!$A$49:$C$64,3,0))=TRUE,\"Seleccione el proceso Correcto\",VLOOKUP(B191,'Lista Desplegable'!$A$49:$C$64,3,0))","v":"Dirección Ejecutiva"},"Gestión Jurídica","Resolución","Interna",249,"Por medio de la cual se ordena la apertura del Proceso de Selección Abreviada de Menor Cuantía No. 010/2017","RAPE Región Central","Contratación","2017-09-12","Todos","VIGENTE","Ninguna"]
[{"$f":"IF(ISERROR(VLOOKUP(B192,'Lista Desplegable'!$A$49:$C$64,3,0))=TRUE,\"Seleccione el proceso Correcto\",VLOOKUP(B192,'Lista Desplegable'!$A$49:$C$64,3,0))","v":"Dirección Ejecutiva"},"Gestión Jurídica","Resolución","Interna",251,"Por la cual se modifica el Programa Anual Mensualizado de Caja PAC para la vigencia fiscal 2017 y de reservas de la Región Administrativa y de Planeacio´n Especial - RAPE Región Central","RAPE Región Central","Programa Anual Mensualizado de Caja PAC de Reservas Presupuestales y Cuentas por Pagar","2017-09-12","Todos","VIGENTE","Ninguna"]
[{"$f":"IF(ISERROR(VLOOKUP(B193,'Lista Desplegable'!$A$49:$C$64,3,0))=TRUE,\"Seleccione el proceso Correcto\",VLOOKUP(B193,'Lista Desplegable'!$A$49:$C$64,3,0))","v":"Dirección Ejecutiva"},"Gestión Jurídica","Resolución","Interna",252,"Por medio de la cual se ordena la apertura del Proceso de Concurso de méritos abierto No. 011/2017","RAPE Región Central","Contratación","2017-09-14","Todos","VIGENTE","Ninguna"]
[{"$f":"IF(ISERROR(VLOOKUP(B194,'Lista Desplegable'!$A$49:$C$64,3,0))=TRUE,\"Seleccione el proceso Correcto\",VLOOKUP(B194,'Lista Desplegable'!$A$49:$C$64,3,0))","v":"Dirección Ejecutiva"},"Gestión Jurídica","Resolución","Interna",253,"Por medio de la cual se ordena la apertura del Proceso de Concurso de Méritos Abierto No. 012/2017","RAPE Región Central","Contratación","2017-09-14","Todos","VIGENTE","Ninguna"]
[{"$f":"IF(ISERROR(VLOOKUP(B195,'Lista Desplegable'!$A$49:$C$64,3,0))=TRUE,\"Seleccione el proceso Correcto\",VLOOKUP(B195,'Lista Desplegable'!$A$49:$C$64,3,0))","v":"Dirección Ejecutiva"},"Gestión Jurídica","Resolución","Interna",261,"Por medio de la cual se ordena la apertura del Proceso de Licitación Pública No. 013/2017","RAPE Región Central","Contratación","2017-09-22","Todos","VIGENTE","Ninguna"]
[{"$f":"IF(ISERROR(VLOOKUP(B196,'Lista Desplegable'!$A$49:$C$64,3,0))=TRUE,\"Seleccione el proceso Correcto\",VLOOKUP(B196,'Lista Desplegable'!$A$49:$C$64,3,0))","v":"Dirección Ejecutiva"},"Gestión Jurídica","Resolución","Interna",262,"Por medio de la cual se adjudica el Proceso de Selección Abreviada de Menor Cuantía SAMC 009-2017","RAPE Región Central","Contratación","2017-09-25","Todos","VIGENTE","Ninguna"]
[{"$f":"IF(ISERROR(VLOOKUP(B197,'Lista Desplegable'!$A$49:$C$64,3,0))=TRUE,\"Seleccione el proceso Correcto\",VLOOKUP(B197,'Lista Desplegable'!$A$49:$C$64,3,0))","v":"Dirección Ejecutiva"},"Gestión Jurídica","Resolución","Interna",263,"Por medio de la cual se ordena el gasto con cargo a los recursos del Sistema General de Regalías aprobados para el proyecto denominado \"Implementacion de acciones de conservación y restauración de los complejos de páramo, bosque alto-andino y servicios ecosistémicos de la Región Central.","RAPE Región Central","Sistema General de Regalías del bienio","2017-09-25","Todos","VIGENTE","Ninguna"]
[{"$f":"IF(ISERROR(VLOOKUP(B198,'Lista Desplegable'!$A$49:$C$64,3,0))=TRUE,\"Seleccione el proceso Correcto\",VLOOKUP(B198,'Lista Desplegable'!$A$49:$C$64,3,0))","v":"Dirección Ejecutiva"},"Gestión Jurídica","Resolución","Interna",265,"Por medio de la cual se ordena dar por terminado el proceso de compra - Evento 41623A de la Tienda Virtual del Estado Colombiano","RAPE Región Central","Contratación","2017-09-26","Todos","VIGENTE","Ninguna"]
[{"$f":"IF(ISERROR(VLOOKUP(B199,'Lista Desplegable'!$A$49:$C$64,3,0))=TRUE,\"Seleccione el proceso Correcto\",VLOOKUP(B199,'Lista Desplegable'!$A$49:$C$64,3,0))","v":"Dirección Ejecutiva"},"Gestión Jurídica","Resolución","Interna",274,"Por medio de la cual se reconocen unos gastos y se ordena un reembolso de una caja menor.","RAPE Región Central","Caja menor","2017-10-05","Todos","VIGENTE","Ninguna"]
[{"$f":"IF(ISERROR(VLOOKUP(B200,'Lista Desplegable'!$A$49:$C$64,3,0))=TRUE,\"Seleccione el proceso Correcto\",VLOOKUP(B200,'Lista Desplegable'!$A$49:$C$64,3,0))","v":"Dirección Ejecutiva"},"Gestión Jurídica","Resolución","Interna",275,"Por la cual se adjudica el proceso SAMC 10-2017","RAPE Región Central","Contratación","2017-10-05","Todos","VIGENTE","Ninguna"]
[{"$f":"IF(ISERROR(VLOOKUP(B201,'Lista Desplegable'!$A$49:$C$64,3,0))=TRUE,\"Seleccione el proceso Correcto\",VLOOKUP(B201,'Lista Desplegable'!$A$49:$C$64,3,0))","v":"Dirección Ejecutiva"},"Gestión Jurídica","Resolución","Interna",278,"Por la cual se modifica el Programa Anual Mensualizado de Caja PAC para la vigencia fiscal 2017 y de reservas de la Región Administrativa y de Planeacio´n Especial - RAPE Región Central","RAPE Región Central","Programa Anual Mensualizado de Caja PAC de Reservas Presupuestales y Cuentas por Pagar","2017-10-09","Todos","VIGENTE","Ninguna"]
[{"$f":"IF(ISERROR(VLOOKUP(B202,'Lista Desplegable'!$A$49:$C$64,3,0))=TRUE,\"Seleccione el proceso Correcto\",VLOOKUP(B202,'Lista Desplegable'!$A$49:$C$64,3,0))","v":"Dirección Ejecutiva"},"Gestión Jurídica","Resolución","Interna",279,"Por medio de la cual se ordena la apertura del proceso LP 014-2017","RAPE Región Central","Contratación","2017-10-09","Todos","VIGENTE","Ninguna"]
[{"$f":"IF(ISERROR(VLOOKUP(B203,'Lista Desplegable'!$A$49:$C$64,3,0))=TRUE,\"Seleccione el proceso Correcto\",VLOOKUP(B203,'Lista Desplegable'!$A$49:$C$64,3,0))","v":"Dirección Ejecutiva"},"Gestión Jurídica","Resolución","Interna",280,"Por medio de la cual se declara desierto el Proceso de Concurso de Méritos Abierto CMA No. 012-2017","RAPE Región Central","Contratación","2017-10-13","Todos","VIGENTE","Ninguna"]
[{"$f":"IF(ISERROR(VLOOKUP(B204,'Lista Desplegable'!$A$49:$C$64,3,0))=TRUE,\"Seleccione el proceso Correcto\",VLOOKUP(B204,'Lista Desplegable'!$A$49:$C$64,3,0))","v":"Dirección Ejecutiva"},"Gestión Jurídica","Resolución","Interna",283,"Por medio de la cual se efectua una adición y una reducción a la Resolucion 292 de 2016 - Adición presupuestal","RAPE Región Central","Presupuesto de ingresos rentas y gastos ","2017-10-13","Todos","VIGENTE","Ninguna"]
[{"$f":"IF(ISERROR(VLOOKUP(B205,'Lista Desplegable'!$A$49:$C$64,3,0))=TRUE,\"Seleccione el proceso Correcto\",VLOOKUP(B205,'Lista Desplegable'!$A$49:$C$64,3,0))","v":"Dirección Ejecutiva"},"Gestión Jurídica","Resolución","Interna",291,"Por la cual se ordena la apertura del Proceso de Selección Abreviada de Menor cuantía No. 018 de 2017","RAPE Región Central","Contratación","2017-10-24","Todos","VIGENTE","Ninguna"]
[{"$f":"IF(ISERROR(VLOOKUP(B206,'Lista Desplegable'!$A$49:$C$64,3,0))=TRUE,\"Seleccione el proceso Correcto\",VLOOKUP(B206,'Lista Desplegable'!$A$49:$C$64,3,0))","v":"Dirección Ejecutiva"},"Gestión Jurídica","Resolución","Interna",292,"Por medio de la cual se declara desierto el Proceso de Licitación Pública LP 013-2017","RAPE Región Central","Contratación","2017-10-25","Todos","VIGENTE","Ninguna"]
[{"$f":"IF(ISERROR(VLOOKUP(B207,'Lista Desplegable'!$A$49:$C$64,3,0))=TRUE,\"Seleccione el proceso Correcto\",VLOOKUP(B207,'Lista Desplegable'!$A$49:$C$64,3,0))","v":"Dirección Ejecutiva"},"Gestión Jurídica","Resolución","Interna",297,"Por medio de la cual se ordena la apertura del proceso de Licitación Pública No. 001 RG/2017","RAPE Región Central","Contratación","2017-10-27","Todos","VIGENTE","Ninguna"]
[{"$f":"IF(ISERROR(VLOOKUP(B208,'Lista Desplegable'!$A$49:$C$64,3,0))=TRUE,\"Seleccione el proceso Correcto\",VLOOKUP(B208,'Lista Desplegable'!$A$49:$C$64,3,0))","v":"Dirección Ejecutiva"},"Gestión Jurídica","Resolución","Interna",299,"Por medio de la cual se ordena la apertura del Proceso de Selección Abreviada de Menor Cuantía 017/2017","RAPE Región Central","Contratación","2017-10-30","Todos","VIGENTE","Ninguna"]
[{"$f":"IF(ISERROR(VLOOKUP(B209,'Lista Desplegable'!$A$49:$C$64,3,0))=TRUE,\"Seleccione el proceso Correcto\",VLOOKUP(B209,'Lista Desplegable'!$A$49:$C$64,3,0))","v":"Dirección Ejecutiva"},"Gestión Jurídica","Resolución","Interna",303,"Por medio de la cual se reconocen unos gastos y se ordena un reembolso de una caja menor.","RAPE Región Central","Caja menor","2017-11-01","Todos","VIGENTE","Ninguna"]
[{"$f":"IF(ISERROR(VLOOKUP(B210,'Lista Desplegable'!$A$49:$C$64,3,0))=TRUE,\"Seleccione el proceso Correcto\",VLOOKUP(B210,'Lista Desplegable'!$A$49:$C$64,3,0))","v":"Dirección Ejecutiva"},"Gestión Jurídica","Resolución","Interna",305,"Por medio de la cual se modifica la Resolución 292 del 13 de diciembre de 2016 \"Por medio de la cual se efectúa la liquidación del Presupuesto Anual de Rentas e Ingresos y Gastos e Inversiones de la Región Administrativa y de Planeación Especial - RAPE Re","RAPE Región Central","Presupuesto de ingresos rentas y gastos ","2017-11-02","Todos","VIGENTE","Ninguna"]
[{"$f":"IF(ISERROR(VLOOKUP(B211,'Lista Desplegable'!$A$49:$C$64,3,0))=TRUE,\"Seleccione el proceso Correcto\",VLOOKUP(B211,'Lista Desplegable'!$A$49:$C$64,3,0))","v":"Dirección Ejecutiva"},"Gestión Jurídica","Resolución","Interna",317,"Por la cual se modifica el Programa Anual Mensualizado de Caja PAC para la vigencia fiscal 2017 y de reservas de la Región Administrativa y de Planeación Especial - RAPE Región Central","RAPE Región Central","Programa Anual Mensualizado de Caja PAC de Reservas Presupuestales y Cuentas por Pagar","2017-11-14","Todos","VIGENTE","Ninguna"]
[{"$f":"IF(ISERROR(VLOOKUP(B212,'Lista Desplegable'!$A$49:$C$64,3,0))=TRUE,\"Seleccione el proceso Correcto\",VLOOKUP(B212,'Lista Desplegable'!$A$49:$C$64,3,0))","v":"Dirección Ejecutiva"},"Gestión Jurídica","Resolución","Interna",323,"Por medio de la cual se adjudica el Proceso de Selección Abreviada de Menor Cuantia SAMC 018-2017","RAPE Región Central","Contratación","2017-11-16","Todos","VIGENTE","Ninguna"]
[{"$f":"IF(ISERROR(VLOOKUP(B213,'Lista Desplegable'!$A$49:$C$64,3,0))=TRUE,\"Seleccione el proceso Correcto\",VLOOKUP(B213,'Lista Desplegable'!$A$49:$C$64,3,0))","v":"Dirección Ejecutiva"},"Gestión Jurídica","Resolución","Interna",324,"Por medio de la cual se da apertura del proceso de Selección Abreviada de Menor Cuantía SAMC 020-2017","RAPE Región Central","Contratación","2017-11-16","Todos","VIGENTE","Ninguna"]
[{"$f":"IF(ISERROR(VLOOKUP(B214,'Lista Desplegable'!$A$49:$C$64,3,0))=TRUE,\"Seleccione el proceso Correcto\",VLOOKUP(B214,'Lista Desplegable'!$A$49:$C$64,3,0))","v":"Dirección Ejecutiva"},"Gestión Jurídica","Resolución","Interna",326,"Por medio de la cual se da apertura del proceso de Selección Abreviada de Menor Cuantía SAMC 019-2017","RAPE Región Central","Contratación","2017-11-17","Todos","VIGENTE","Ninguna"]
[{"$f":"IF(ISERROR(VLOOKUP(B215,'Lista Desplegable'!$A$49:$C$64,3,0))=TRUE,\"Seleccione el proceso Correcto\",VLOOKUP(B215,'Lista Desplegable'!$A$49:$C$64,3,0))","v":"Dirección Ejecutiva"},"Gestión Jurídica","Resolución","Interna",333,"Por medio de la cual se adjudica el Proceso de Selección Abreviada de Menor Cuantía SAMC 017-2017","RAPE Región Central","Contratación","2017-11-23","Todos","VIGENTE","Ninguna"]
[{"$f":"IF(ISERROR(VLOOKUP(B216,'Lista Desplegable'!$A$49:$C$64,3,0))=TRUE,\"Seleccione el proceso Correcto\",VLOOKUP(B216,'Lista Desplegable'!$A$49:$C$64,3,0))","v":"Dirección Ejecutiva"},"Gestión Jurídica","Resolución","Interna",335,"Por medio de la cual se adjudica el proceso de Licitación Pública LP 001 RG-2017","RAPE Región Central","Contratación","2017-11-24","Todos","VIGENTE","Ninguna"]
[{"$f":"IF(ISERROR(VLOOKUP(B217,'Lista Desplegable'!$A$49:$C$64,3,0))=TRUE,\"Seleccione el proceso Correcto\",VLOOKUP(B217,'Lista Desplegable'!$A$49:$C$64,3,0))","v":"Dirección Ejecutiva"},"Gestión Jurídica","Resolución","Interna",336,"Por medio de la cual se ordena la apertura del Proceso de Concurso de Méritos Abierto 023/2017","RAPE Región Central","Contratación","2017-11-24","Todos","VIGENTE","Ninguna"]
[{"$f":"IF(ISERROR(VLOOKUP(B218,'Lista Desplegable'!$A$49:$C$64,3,0))=TRUE,\"Seleccione el proceso Correcto\",VLOOKUP(B218,'Lista Desplegable'!$A$49:$C$64,3,0))","v":"Dirección Ejecutiva"},"Gestión Jurídica","Resolución","Interna",342,"Por medio de la cual se modifica la Resolución 292 del 13 de diciembre de 2016 \"Por medio de la cual se efectúa la liquidación del Presupuesto Anual de Rentas e Ingresos y Gastos e Inversiones de la Región Administrativa y de Planeación Especial - RAPE Re","RAPE Región Central","Presupuesto de ingresos rentas y gastos ","2017-11-27","Todos","VIGENTE","Ninguna"]
[{"$f":"IF(ISERROR(VLOOKUP(B219,'Lista Desplegable'!$A$49:$C$64,3,0))=TRUE,\"Seleccione el proceso Correcto\",VLOOKUP(B219,'Lista Desplegable'!$A$49:$C$64,3,0))","v":"Dirección Ejecutiva"},"Gestión Jurídica","Resolución","Interna",343,"Por medio de la cual se ordena dar por terminado el proceso de compra - Evento 45465C de la Tienda Virtual del Estado Colombiano","RAPE Región Central","Contratación","2017-11-27","Todos","VIGENTE","Ninguna"]
[{"$f":"IF(ISERROR(VLOOKUP(B220,'Lista Desplegable'!$A$49:$C$64,3,0))=TRUE,\"Seleccione el proceso Correcto\",VLOOKUP(B220,'Lista Desplegable'!$A$49:$C$64,3,0))","v":"Dirección Ejecutiva"},"Gestión Jurídica","Resolución","Interna",349,"Por medio de la cual se reconocen unos gastos y se ordena un reembolsdo de una caja menor","RAPE Región Central","Caja Menor","2017-12-04","Todos","VIGENTE","Ninguna"]
[{"$f":"IF(ISERROR(VLOOKUP(B221,'Lista Desplegable'!$A$49:$C$64,3,0))=TRUE,\"Seleccione el proceso Correcto\",VLOOKUP(B221,'Lista Desplegable'!$A$49:$C$64,3,0))","v":"Dirección Ejecutiva"},"Gestión Jurídica","Resolución","Interna",350,"Por medio de la cual se adjudica el Proceso de Selección Abreviada de Menor Cuantía SAMC 020 de 2017","RAPE Región Central","Contratación","2017-12-05","Todos","VIGENTE","Ninguna"]
[{"$f":"IF(ISERROR(VLOOKUP(B222,'Lista Desplegable'!$A$49:$C$64,3,0))=TRUE,\"Seleccione el proceso Correcto\",VLOOKUP(B222,'Lista Desplegable'!$A$49:$C$64,3,0))","v":"Dirección Ejecutiva"},"Gestión Jurídica","Resolución","Interna",351,"Por la cual se modifica el Programa Anual Mensualizado de Caja PAC para la vigencia fiscal 2017 de la Región Administrativa y de Planeación Especial RAPE - Región Central","RAPE Región Central","Programa Anual Mensualizado de Caja PAC de Reservas Presupuestales y Cuentas por Pagar","2017-12-05","Todos","VIGENTE","Ninguna"]
[{"$f":"IF(ISERROR(VLOOKUP(B223,'Lista Desplegable'!$A$49:$C$64,3,0))=TRUE,\"Seleccione el proceso Correcto\",VLOOKUP(B223,'Lista Desplegable'!$A$49:$C$64,3,0))","v":"Dirección Ejecutiva"},"Gestión Jurídica","Resolución","Interna",363,"Por medio de la cual se declara desierto el Proceso de Selección Abreviada de Menor Cuantía SAMC 019-2017","RAPE Región Central","Contratación","2017-12-12","Todos","VIGENTE","Ninguna"]
[{"$f":"IF(ISERROR(VLOOKUP(B224,'Lista Desplegable'!$A$49:$C$64,3,0))=TRUE,\"Seleccione el proceso Correcto\",VLOOKUP(B224,'Lista Desplegable'!$A$49:$C$64,3,0))","v":"Dirección Ejecutiva"},"Gestión Jurídica","Resolución","Interna",364,"Por medio de la cual se adjudica el Proceso de Consurso de Méritos Abierto CMA 023 de 2017 ","RAPE Región Central","Contratación","2017-12-13","Todos","VIGENTE","Ninguna"]
[{"$f":"IF(ISERROR(VLOOKUP(B225,'Lista Desplegable'!$A$49:$C$64,3,0))=TRUE,\"Seleccione el proceso Correcto\",VLOOKUP(B225,'Lista Desplegable'!$A$49:$C$64,3,0))","v":"Dirección Ejecutiva"},"Gestión Jurídica","Resolución","Interna",367,"Por medio de la cual se ordena la apertura de Proceso de Subasta Inversa SASI 002RG de 2017","RAPE Región Central","Contratación","2017-12-15","Todos","VIGENTE","Ninguna"]
[{"$f":"IF(ISERROR(VLOOKUP(B226,'Lista Desplegable'!$A$49:$C$64,3,0))=TRUE,\"Seleccione el proceso Correcto\",VLOOKUP(B226,'Lista Desplegable'!$A$49:$C$64,3,0))","v":"Dirección Ejecutiva"},"Gestión Jurídica","Resolución","Interna",369,"Por medio de la cual se declara desierto el Proceso de Minima Cuantia 025-2017","RAPE Región Central","Contratación","2017-12-18","Todos","VIGENTE","Ninguna"]
[{"$f":"IF(ISERROR(VLOOKUP(B227,'Lista Desplegable'!$A$49:$C$64,3,0))=TRUE,\"Seleccione el proceso Correcto\",VLOOKUP(B227,'Lista Desplegable'!$A$49:$C$64,3,0))","v":"Dirección Ejecutiva"},"Gestión Jurídica","Resolución","Interna",373,"Por medio de la cual se reconocen unos gastos de una caja menor.","RAPE Región Central","Caja Menor","2017-12-22","Todos","VIGENTE","Ninguna"]
[{"$f":"IF(ISERROR(VLOOKUP(B228,'Lista Desplegable'!$A$49:$C$64,3,0))=TRUE,\"Seleccione el proceso Correcto\",VLOOKUP(B228,'Lista Desplegable'!$A$49:$C$64,3,0))","v":"Dirección Ejecutiva"},"Gestión Jurídica","Resolución","Interna",374,"Por medio de la cual se aprueban los Instrumentos Archivisticos y de Gestión de Información Pública de la Región Administrativa y de Planeación Especial RAPE - Región Central, y se dictan otras disposiciones.","RAPE Región Central","Instrumentos Archivisticos y de Gestión de Información Pública \nTablas de Retención Documental","2017-12-22","Todos","VIGENTE","Ninguna"]
[{"$f":"IF(ISERROR(VLOOKUP(B229,'Lista Desplegable'!$A$49:$C$64,3,0))=TRUE,\"Seleccione el proceso Correcto\",VLOOKUP(B229,'Lista Desplegable'!$A$49:$C$64,3,0))","v":"Dirección Ejecutiva"},"Gestión Jurídica","Resolución","Interna",375,"Por medio de la cual se efectúa la legalización definitiva de la caja menor.","RAPE Región Central","Caja Menor","2017-12-26","Todos","VIGENTE","Ninguna"]
[{"$f":"IF(ISERROR(VLOOKUP(B230,'Lista Desplegable'!$A$49:$C$64,3,0))=TRUE,\"Seleccione el proceso Correcto\",VLOOKUP(B230,'Lista Desplegable'!$A$49:$C$64,3,0))","v":"Dirección Ejecutiva"},"Gestión Jurídica","Resolución","Interna",376,"Por medio de la cual se revoca el Proceso de Mínima Cuantía No. 003RG de 2017","RAPE Región Central","Contratación","2017-12-26","Todos","VIGENTE","Ninguna"]
[{"$f":"IF(ISERROR(VLOOKUP(B231,'Lista Desplegable'!$A$49:$C$64,3,0))=TRUE,\"Seleccione el proceso Correcto\",VLOOKUP(B231,'Lista Desplegable'!$A$49:$C$64,3,0))","v":"Dirección Ejecutiva"},"Gestión Jurídica","Resolución","Interna",377,"Por medio de la cual se efectúa la liquidación del Presupuesto Anual de Rentas e Ingresos y Gastos e Inversionesde la Región Administrativa y de Planeación Especial RAPE Región Central, para la vigencia fiscal comprendida entre el 1 de enero y el 31 de diciembre de 2018 y se dictan otras disposiciones, en cumplimiento del Acuerdo Regional 004 de 2017","RAPE Región Central","Presupuesto de ingresos rentas y gastos ","2017-12-27","Todos","VIGENTE","Ninguna"]
[{"$f":"IF(ISERROR(VLOOKUP(B232,'Lista Desplegable'!$A$49:$C$64,3,0))=TRUE,\"Seleccione el proceso Correcto\",VLOOKUP(B232,'Lista Desplegable'!$A$49:$C$64,3,0))","v":"Dirección Ejecutiva"},"Gestión Jurídica","Resolución","Interna",378,"Por la cual se aprueba el Programa Anual Mensualizado de Caja PAC para la vigencia fiscal 2018 de la Región Administrativa y de Planeación Especial RAPE Región Central","RAPE Región Central","Caja menor","2017-12-27","Todos","VIGENTE","Ninguna"]
[{"$f":"IF(ISERROR(VLOOKUP(B233,'Lista Desplegable'!$A$49:$C$64,3,0))=TRUE,\"Seleccione el proceso Correcto\",VLOOKUP(B233,'Lista Desplegable'!$A$49:$C$64,3,0))","v":"Dirección Ejecutiva"},"Gestión Jurídica","Resolución","Interna",381,"Por medio de la cual se modifica la Resoución 292 del 13 de diciembre de 2016 - Modificación presupuesto 2017","RAPE Región Central","Contratación","2017-12-28","Todos","VIGENTE","Ninguna"]
[{"$f":"IF(ISERROR(VLOOKUP(B234,'Lista Desplegable'!$A$49:$C$64,3,0))=TRUE,\"Seleccione el proceso Correcto\",VLOOKUP(B234,'Lista Desplegable'!$A$49:$C$64,3,0))","v":"Dirección Ejecutiva"},"Gestión Jurídica","Resolución","Interna",383,"Por medio de la cual se modifican las Resoluciones 061, 065 y 066 de 2015; se actualiza el Modelo Integrado de Planeación y Gestión en la Región Administrativa y de Planeación Especial y se dictan otras disposiciones","RAPE Región Central","Modelo Integrado de Planeación y Gestión\nComité Institucional de Gestión y Desempeño","2017-12-29","Todos","VIGENTE","Ninguna"]
[{"$f":"IF(ISERROR(VLOOKUP(B235,'Lista Desplegable'!$A$49:$C$64,3,0))=TRUE,\"Seleccione el proceso Correcto\",VLOOKUP(B235,'Lista Desplegable'!$A$49:$C$64,3,0))","v":"Dirección Ejecutiva"},"Gestión Jurídica","Resolución","Interna",384,"Por medio de la cual se armonizan el Modelo Estandar de Control Interno con el Modelo Integrado de Planeación y Gestión en la Región Administrativa y de Planeación Especial - Región Central y se dictan otras disposiciones.","RAPE Región Central","Modelo Integrado de Planeación y Gestión\nArmonización del Modelo Estandar de Control Interno","2017-12-29","Todos","VIGENTE","Ninguna"]
[{"$f":"IF(ISERROR(VLOOKUP(B236,'Lista Desplegable'!$A$49:$C$64,3,0))=TRUE,\"Seleccione el proceso Correcto\",VLOOKUP(B236,'Lista Desplegable'!$A$49:$C$64,3,0))","v":"Dirección Ejecutiva"},"Gestión Jurídica","Resolución","Interna",387,"Por medio de la cual se declara desierto el proceso de mínima cuantía No. 028 de 2017","RAPE Región Central","Contratación","2017-12-29","Todos","VIGENTE","Ninguna"]
[{"$f":"IF(ISERROR(VLOOKUP(B237,'Lista Desplegable'!$A$49:$C$64,3,0))=TRUE,\"Seleccione el proceso Correcto\",VLOOKUP(B237,'Lista Desplegable'!$A$49:$C$64,3,0))","v":"Dirección Ejecutiva"},"Gestión Jurídica","Resolución","Interna",388,"Por medio de la cual se declara desierto el proceso de mínima cuantía No. 027 de 2017","RAPE Región Central","Contratación","2017-12-29","Todos","VIGENTE","Ninguna"]
[{"$f":"IF(ISERROR(VLOOKUP(B238,'Lista Desplegable'!$A$49:$C$64,3,0))=TRUE,\"Seleccione el proceso Correcto\",VLOOKUP(B238,'Lista Desplegable'!$A$49:$C$64,3,0))","v":"Dirección Ejecutiva"},"Gestión Jurídica","Resolución","Interna",389,"Por medio de la cual se adopta el reglamento para el trámite interno de peticiones, quejas, reclamos, denuncias y demás solicitudes de información en la Región Administrativa y de Planeación Especial RAPE - Región Central","RAPE Región Central","Reglamentación del trámite interno de peticiones, quejas, reclamos, denuncias y demás solicitudes de información","2017-12-29","Todos","VIGENTE","Ninguna"]
[{"$f":"IF(ISERROR(VLOOKUP(B239,'Lista Desplegable'!$A$49:$C$64,3,0))=TRUE,\"Seleccione el proceso Correcto\",VLOOKUP(B239,'Lista Desplegable'!$A$49:$C$64,3,0))","v":"Dirección Ejecutiva"},"Gestión Jurídica","Resolución","Interna",1,"Por medio de la cual se adopta la tabla de honorarios para la contratación de servicios profesionales y de apoyo a la gestión de la Región Administrativa y de Planeación Especial RAPE- REGIÓN CENTRAL","RAPE Región Central","Honorarios","2018-01-02","Todos","VIGENTE","Ninguna"]
[{"$f":"IF(ISERROR(VLOOKUP(B240,'Lista Desplegable'!$A$49:$C$64,3,0))=TRUE,\"Seleccione el proceso Correcto\",VLOOKUP(B240,'Lista Desplegable'!$A$49:$C$64,3,0))","v":"Dirección Ejecutiva"},"Gestión Jurídica","Resolución","Interna",2,"Por medio de la cual se modifica la Resolución 003 de 2015, “Por la cual se establece el Manual Específico de Funciones y de Competencias Laborales para los empleos de la planta de personal de la Región Administrativa y de Planeación Especial denominada RAPE - Región Central","RAPE Región Central","Manual Específico de Funciones y de Competencias Laborales","2018-01-09","Todos","VIGENTE","Ninguna"]
[{"$f":"IF(ISERROR(VLOOKUP(B241,'Lista Desplegable'!$A$49:$C$64,3,0))=TRUE,\"Seleccione el proceso Correcto\",VLOOKUP(B241,'Lista Desplegable'!$A$49:$C$64,3,0))","v":"Dirección Ejecutiva"},"Gestión Jurídica","Resolución","Interna",5,"Por medio de la cual se adjudica el Proceso de Selección Abreviada de Subasta Inversa SASA 002 RG de 2017","RAPE Región Central","Contratación","2018-01-10","Todos","VIGENTE","Ninguna"]
[{"$f":"IF(ISERROR(VLOOKUP(B242,'Lista Desplegable'!$A$49:$C$64,3,0))=TRUE,\"Seleccione el proceso Correcto\",VLOOKUP(B242,'Lista Desplegable'!$A$49:$C$64,3,0))","v":"Dirección Ejecutiva"},"Gestión Jurídica","Resolución","Interna",7,"Por medio de la cual se modifica la Resolución No. 377 del 27 de diciembre de 2017","RAPE Región Central","Modificacíon Resolución","2018-01-11","Todos","VIGENTE","Ninguna"]
[{"$f":"IF(ISERROR(VLOOKUP(B243,'Lista Desplegable'!$A$49:$C$64,3,0))=TRUE,\"Seleccione el proceso Correcto\",VLOOKUP(B243,'Lista Desplegable'!$A$49:$C$64,3,0))","v":"Dirección Ejecutiva"},"Gestión Jurídica","Resolución","Interna",17,"Por la cual se constituye las cuentas por pagar y las reservas presupuestales al cierre de la vigencia fiscal 2017 de la Región Administrativa y de Planeación Especial RAPE - Región Central","RAPE Región Central","Programa Anual Mensualizado de Caja PAC de Reservas Presupuestales y Cuentas por Pagar","2017-01-17","Todos","VIGENTE","Ninguna"]
[{"$f":"IF(ISERROR(VLOOKUP(B244,'Lista Desplegable'!$A$49:$C$64,3,0))=TRUE,\"Seleccione el proceso Correcto\",VLOOKUP(B244,'Lista Desplegable'!$A$49:$C$64,3,0))","v":"Dirección Ejecutiva"},"Gestión Jurídica","Resolución","Interna",20,"Por la cual se constituye la Caja Menor para la vigencia fiscal 2018 y se dictan otras disposiciones","RAPE Región Central","Caja menor","2018-01-22","Todos","VIGENTE","Ninguna"]
[{"$f":"IF(ISERROR(VLOOKUP(B245,'Lista Desplegable'!$A$49:$C$64,3,0))=TRUE,\"Seleccione el proceso Correcto\",VLOOKUP(B245,'Lista Desplegable'!$A$49:$C$64,3,0))","v":"Dirección Ejecutiva"},"Gestión Jurídica","Resolución","Interna",23,"Por la cual se aprueba el Programa Anual Mensualizado de Caja PAC para las Reservas Presupuestales 2017 de la Región Administrativa y de Planeación Especial RAPE Región Central","RAPE Región Central","Programa Anual Mensualizado de Caja PAC de Reservas Presupuestales y Cuentas por Pagar","2018-01-24","Todos","VIGENTE","Ninguna"]
[{"$f":"IF(ISERROR(VLOOKUP(B246,'Lista Desplegable'!$A$49:$C$64,3,0))=TRUE,\"Seleccione el proceso Correcto\",VLOOKUP(B246,'Lista Desplegable'!$A$49:$C$64,3,0))","v":"Dirección Ejecutiva"},"Gestión Jurídica","Resolución","Interna",32,"Por la cual se adopta el Plan de Acción Integrado de la Región Administrativa y de Planeación Especial RAPE - Región Central, para la vigencia 2018","RAPE Región Central","Plan de Acción Integrado","2018-01-31","Todos","VIGENTE","Ninguna"]
[{"$f":"IF(ISERROR(VLOOKUP(B247,'Lista Desplegable'!$A$49:$C$64,3,0))=TRUE,\"Seleccione el proceso Correcto\",VLOOKUP(B247,'Lista Desplegable'!$A$49:$C$64,3,0))","v":"Dirección Ejecutiva"},"Gestión Jurídica","Resolución","Interna",33,"Por medio de la cual se conforma y estructura el Comité de Conciliación de la RAPE - Región Central y se dictan otras disposiciones","RAPE Región Central","Comité de Conciliación ","2018-02-01","Todos","VIGENTE","Ninguna"]
[{"$f":"IF(ISERROR(VLOOKUP(B248,'Lista Desplegable'!$A$49:$C$64,3,0))=TRUE,\"Seleccione el proceso Correcto\",VLOOKUP(B248,'Lista Desplegable'!$A$49:$C$64,3,0))","v":"Dirección Ejecutiva"},"Gestión Jurídica","Resolución","Interna",36,"Por medio de la cual se reconocen unos gastos y se ordena un reembolso de una caja menor","RAPE Región Central","Caja menor","2018-02-05","Todos","VIGENTE","Ninguna"]
[{"$f":"IF(ISERROR(VLOOKUP(B249,'Lista Desplegable'!$A$49:$C$64,3,0))=TRUE,\"Seleccione el proceso Correcto\",VLOOKUP(B249,'Lista Desplegable'!$A$49:$C$64,3,0))","v":"Dirección Ejecutiva"},"Gestión Jurídica","Resolución","Interna",37,"Por la cual se ordena la apertura de l proceso SASI 001RG-2018","RAPE Región Central","Contratación","2018-02-05","Todos","VIGENTE","Ninguna"]
[{"$f":"IF(ISERROR(VLOOKUP(B250,'Lista Desplegable'!$A$49:$C$64,3,0))=TRUE,\"Seleccione el proceso Correcto\",VLOOKUP(B250,'Lista Desplegable'!$A$49:$C$64,3,0))","v":"Dirección Ejecutiva"},"Gestión Jurídica","Resolución","Interna",40,"Por medio de la cual se convoca a elecciones de representantes de los empelados ante el Comité Paritario de Seguridad y Salud en el Trabajo COPASST de la Región Administrativa y de Planeación Especial RAPE - Región Central por el periodo 2018-2020","RAPE Región Central","Comité Paritario de Seguridad y Salud en el Trabajo - COPASST","2018-02-06","Todos","VIGENTE","Ninguna"]
[{"$f":"IF(ISERROR(VLOOKUP(B251,'Lista Desplegable'!$A$49:$C$64,3,0))=TRUE,\"Seleccione el proceso Correcto\",VLOOKUP(B251,'Lista Desplegable'!$A$49:$C$64,3,0))","v":"Dirección Ejecutiva"},"Gestión Jurídica","Resolución","Interna",43,"Por medio de la cual se modifica la Resolución 377 del 27 de diciembre de 2017 - Modificación presupuestal","RAPE Región Central","Presupuesto de ingresos rentas y gastos ","2018-02-09","Todos","VIGENTE","Ninguna"]
[{"$f":"IF(ISERROR(VLOOKUP(B252,'Lista Desplegable'!$A$49:$C$64,3,0))=TRUE,\"Seleccione el proceso Correcto\",VLOOKUP(B252,'Lista Desplegable'!$A$49:$C$64,3,0))","v":"Dirección Ejecutiva"},"Gestión Jurídica","Resolución","Interna",47,"Por la cual se modifica el Programa Anual Mensualizado de Caja PAC para la vigencia fiscal 2018 y de Resservas Presupuestales 2017 de la RAPE Región Central","RAPE Región Central","Programa Anual Mensualizado de Caja PAC de Reservas Presupuestales y Cuentas por Pagar","2018-02-12","Todos","VIGENTE","Ninguna"]
[{"$f":"IF(ISERROR(VLOOKUP(B253,'Lista Desplegable'!$A$49:$C$64,3,0))=TRUE,\"Seleccione el proceso Correcto\",VLOOKUP(B253,'Lista Desplegable'!$A$49:$C$64,3,0))","v":"Dirección Ejecutiva"},"Gestión Jurídica","Resolución","Interna",53,"Por medio de la cual se modifica parcialmente la Resolución 140 de 2017 la cual reglamenta el funcionamiento del Comité de Contratación de la RAPE Región Central","RAPE Región Central","Comité de Contratación ","2018-02-19","Todos","VIGENTE","Ninguna"]
[{"$f":"IF(ISERROR(VLOOKUP(B254,'Lista Desplegable'!$A$49:$C$64,3,0))=TRUE,\"Seleccione el proceso Correcto\",VLOOKUP(B254,'Lista Desplegable'!$A$49:$C$64,3,0))","v":"Dirección Ejecutiva"},"Gestión Jurídica","Resolución","Interna",54,"Por la cual se conforma el Comité Paritario de Seguridad y Salud en el Trabajo (COPASST) de la Región Administrativa y de Planeación Especial RAPE - Región Central por el periodo 2018-2020 y sus suplentes","RAPE Región Central","Comité Paritario de Seguridad y Salud en el Trabajo - COPASST","2018-02-20","Todos","VIGENTE","Ninguna"]
[{"$f":"IF(ISERROR(VLOOKUP(B255,'Lista Desplegable'!$A$49:$C$64,3,0))=TRUE,\"Seleccione el proceso Correcto\",VLOOKUP(B255,'Lista Desplegable'!$A$49:$C$64,3,0))","v":"Dirección Ejecutiva"},"Gestión Jurídica","Resolución","Interna",61,"Por medio de la cual se reconocen unos gastos y se ordena un reembolso de una caja menor","RAPE Región Central","Caja menor","2018-03-01","Todos","VIGENTE","Ninguna"]
[{"$f":"IF(ISERROR(VLOOKUP(B256,'Lista Desplegable'!$A$49:$C$64,3,0))=TRUE,\"Seleccione el proceso Correcto\",VLOOKUP(B256,'Lista Desplegable'!$A$49:$C$64,3,0))","v":"Dirección Ejecutiva"},"Gestión Jurídica","Resolución","Interna",62,"Por medio de la cual se ordena la apertura del Proceso de Selección Abreviada por Subasta Inversa SASI 002 de 2018","RAPE Región Central","Contratación","2018-03-01","Todos","VIGENTE","Ninguna"]
[{"$f":"IF(ISERROR(VLOOKUP(B257,'Lista Desplegable'!$A$49:$C$64,3,0))=TRUE,\"Seleccione el proceso Correcto\",VLOOKUP(B257,'Lista Desplegable'!$A$49:$C$64,3,0))","v":"Dirección Ejecutiva"},"Gestión Jurídica","Resolución","Interna",63,"Por la cual se convoca a elecciones de representantes de los empleados ante el Comité de Convivencia Laboral de la Región Administrativa y de Planeación Especial RAPE - Región Central por el periodo 2018-2020 y sus suplentes","RAPE Región Central","Comité de Convivencia Laboral ","2018-03-02","Todos","VIGENTE","Ninguna"]
[{"$f":"IF(ISERROR(VLOOKUP(B258,'Lista Desplegable'!$A$49:$C$64,3,0))=TRUE,\"Seleccione el proceso Correcto\",VLOOKUP(B258,'Lista Desplegable'!$A$49:$C$64,3,0))","v":"Dirección Ejecutiva"},"Gestión Jurídica","Resolución","Interna",65,"Por medio de la cual se adjudica el Proceso de Selección Abreviada de Subasta Inversa SASI 001 RG de 2018","RAPE Región Central","Contratación","2018-03-02","Todos","VIGENTE","Ninguna"]
[{"$f":"IF(ISERROR(VLOOKUP(B259,'Lista Desplegable'!$A$49:$C$64,3,0))=TRUE,\"Seleccione el proceso Correcto\",VLOOKUP(B259,'Lista Desplegable'!$A$49:$C$64,3,0))","v":"Dirección Ejecutiva"},"Gestión Jurídica","Resolución","Interna",67,"Por medio de la cual se ordena la apertura del Proceso de Selección Abreviada de Menor Cuantía No. 002RG de 2018","RAPE Región Central","Contratación","2018-03-06","Todos","VIGENTE","Ninguna"]
[{"$f":"IF(ISERROR(VLOOKUP(B260,'Lista Desplegable'!$A$49:$C$64,3,0))=TRUE,\"Seleccione el proceso Correcto\",VLOOKUP(B260,'Lista Desplegable'!$A$49:$C$64,3,0))","v":"Dirección Ejecutiva"},"Gestión Jurídica","Resolución","Interna",68,"Por la cual se modifica el Programa Anual Mensualizado de Caja PAC para la vigencia fiscal 2018 y de Reservas Presupuestales 2017 de la RAPE Región Central","RAPE Región Central","Programa Anual Mensualizado de Caja PAC de Reservas Presupuestales y Cuentas por Pagar","2018-03-06","Todos","VIGENTE","Ninguna"]
[{"$f":"IF(ISERROR(VLOOKUP(B261,'Lista Desplegable'!$A$49:$C$64,3,0))=TRUE,\"Seleccione el proceso Correcto\",VLOOKUP(B261,'Lista Desplegable'!$A$49:$C$64,3,0))","v":"Dirección Ejecutiva"},"Gestión Jurídica","Resolución","Interna",73,"Por medio de la cual se modifica la Resolución 377 del 27 de diciembre de 2017 - Modificación presupuestal","RAPE Región Central","Presupuesto de ingresos rentas y gastos ","2018-03-07","Todos","VIGENTE","Ninguna"]
[{"$f":"IF(ISERROR(VLOOKUP(B262,'Lista Desplegable'!$A$49:$C$64,3,0))=TRUE,\"Seleccione el proceso Correcto\",VLOOKUP(B262,'Lista Desplegable'!$A$49:$C$64,3,0))","v":"Dirección Ejecutiva"},"Gestión Jurídica","Resolución","Interna",77,"Por la cual se ordena la apertura del proceso de Licitación Pública 001 RG de 2018","RAPE Región Central","Contratación","2018-03-13","Todos","VIGENTE","Ninguna"]
[{"$f":"IF(ISERROR(VLOOKUP(B263,'Lista Desplegable'!$A$49:$C$64,3,0))=TRUE,\"Seleccione el proceso Correcto\",VLOOKUP(B263,'Lista Desplegable'!$A$49:$C$64,3,0))","v":"Dirección Ejecutiva"},"Gestión Jurídica","Resolución","Interna",82,"Por medio de la cual se adopta el Programa de Bienestar e Incentivos de los funcionarios de la Región Administrativa y de Planeación Especial RAPE - Región Central, para la vigencia 2018","RAPE Región Central","Bienestar e Incentivos","2018-03-20","Todos","VIGENTE","Ninguna"]
[{"$f":"IF(ISERROR(VLOOKUP(B264,'Lista Desplegable'!$A$49:$C$64,3,0))=TRUE,\"Seleccione el proceso Correcto\",VLOOKUP(B264,'Lista Desplegable'!$A$49:$C$64,3,0))","v":"Dirección Ejecutiva"},"Gestión Jurídica","Resolución","Interna",86,"Por medio de la cual se hace una delegación","RAPE Región Central","Delegación de funciones","2018-03-20","Todos","VIGENTE","Ninguna"]
[{"$f":"IF(ISERROR(VLOOKUP(B265,'Lista Desplegable'!$A$49:$C$64,3,0))=TRUE,\"Seleccione el proceso Correcto\",VLOOKUP(B265,'Lista Desplegable'!$A$49:$C$64,3,0))","v":"Dirección Ejecutiva"},"Gestión Jurídica","Resolución","Interna",88,"Por la cual se conforma el Comité de Convivencia Laboral de la Región Administrativa y de Planeación Especial RAPE - Región Central 2018-2020","RAPE Región Central","Comité de Convivencia Laboral ","2018-03-21","Todos","VIGENTE","Ninguna"]
[{"$f":"IF(ISERROR(VLOOKUP(B266,'Lista Desplegable'!$A$49:$C$64,3,0))=TRUE,\"Seleccione el proceso Correcto\",VLOOKUP(B266,'Lista Desplegable'!$A$49:$C$64,3,0))","v":"Dirección Ejecutiva"},"Gestión Jurídica","Resolución","Interna",90,"Por la cual se actualiza la Política de Seguridad y Salud en el Trabajo de la Región Administrativa y de Planeación Especial RAPE - Región Central 2018","RAPE Región Central"," Seguridad y Salud en el Trabajo","2018-03-21","Todos","VIGENTE","Ninguna"]
[{"$f":"IF(ISERROR(VLOOKUP(B267,'Lista Desplegable'!$A$49:$C$64,3,0))=TRUE,\"Seleccione el proceso Correcto\",VLOOKUP(B267,'Lista Desplegable'!$A$49:$C$64,3,0))","v":"Dirección Ejecutiva"},"Gestión Jurídica","Resolución","Interna",91,"Por medio de la cual se adjudica el Proceso de Selección Abreviada por Subasta Inversa SASI 002 de 2018.","RAPE Región Central","Contratación","2018-03-21","Todos","VIGENTE","Ninguna"]
[{"$f":"IF(ISERROR(VLOOKUP(B268,'Lista Desplegable'!$A$49:$C$64,3,0))=TRUE,\"Seleccione el proceso Correcto\",VLOOKUP(B268,'Lista Desplegable'!$A$49:$C$64,3,0))","v":"Dirección Ejecutiva"},"Gestión Jurídica","Resolución","Interna",97,"Por la cual se modifica el Programa Anual Mensualizado de Caja PAC para las Reservas Presupuestales 2017 de la Región Administrativa y de Planeación Especial RAPE Región Central","RAPE Región Central","Programa Anual Mensualizado de Caja PAC de Reservas Presupuestales y Cuentas por Pagar","2018-04-02","Todos","VIGENTE","Ninguna"]
[{"$f":"IF(ISERROR(VLOOKUP(B269,'Lista Desplegable'!$A$49:$C$64,3,0))=TRUE,\"Seleccione el proceso Correcto\",VLOOKUP(B269,'Lista Desplegable'!$A$49:$C$64,3,0))","v":"Dirección Ejecutiva"},"Gestión Jurídica","Resolución","Interna",98,"Por medio de la cual se reconocen unos gastos y se ordena un reembolso de una caja menor","RAPE Región Central","Caja Menor","2018-04-03","Todos","VIGENTE","Ninguna"]
[{"$f":"IF(ISERROR(VLOOKUP(B270,'Lista Desplegable'!$A$49:$C$64,3,0))=TRUE,\"Seleccione el proceso Correcto\",VLOOKUP(B270,'Lista Desplegable'!$A$49:$C$64,3,0))","v":"Dirección Ejecutiva"},"Gestión Jurídica","Resolución","Interna",105,"Por la cual se modifica el Programa Anual Mensualizado de Caja PAC para la vigencia fiscal 2018 de la Región Administrativa y de Planeación Especial RAPE Región Central","RAPE Región Central","Programa Anual Mensualizado de Caja PAC de Reservas Presupuestales y Cuentas por Pagar","2018-04-05","Todos","VIGENTE","Ninguna"]
[{"$f":"IF(ISERROR(VLOOKUP(B271,'Lista Desplegable'!$A$49:$C$64,3,0))=TRUE,\"Seleccione el proceso Correcto\",VLOOKUP(B271,'Lista Desplegable'!$A$49:$C$64,3,0))","v":"Dirección Ejecutiva"},"Gestión Jurídica","Resolución","Interna",107,"Por medio de la cual se adopta el Estatuto de Auditoría Interna que define el popósito, la autoridad y la responsabilidad de la activdiad de Auditoria Interna en la Región Administrativa y de Planeación Especial RAPE Región Central","RAPE Región Central","Estatudo de Auditoria Interna","2018-04-06","Todos","VIGENTE","Ninguna"]
[{"$f":"IF(ISERROR(VLOOKUP(B272,'Lista Desplegable'!$A$49:$C$64,3,0))=TRUE,\"Seleccione el proceso Correcto\",VLOOKUP(B272,'Lista Desplegable'!$A$49:$C$64,3,0))","v":"Dirección Ejecutiva"},"Gestión Jurídica","Resolución","Interna",110,"Por medio de la cual se modifica la Resolución 003 de 2015, “Por la cual se establece el Manual Específico de Funciones y de Competencias Laborales para los empleos de la planta de personal de la Región Administrativa y de Planeación Especial denominada RAPE - Región Central","RAPE Región Central","Manual Específico de Funciones y de Competencias Laborales","2018-04-09","Todos","VIGENTE","Ninguna"]
[{"$f":"IF(ISERROR(VLOOKUP(B273,'Lista Desplegable'!$A$49:$C$64,3,0))=TRUE,\"Seleccione el proceso Correcto\",VLOOKUP(B273,'Lista Desplegable'!$A$49:$C$64,3,0))","v":"Dirección Ejecutiva"},"Gestión Jurídica","Resolución","Interna",111,"Por medio de la cual se adopta el Sistema de Información Documental SIDCAR en la Región Administrativa y de Planeación Especial RAPE - Región Central","RAPE Región Central","Sistema de Información Documental SIDCAR ","2018-04-10","Todos","VIGENTE","Ninguna"]
[{"$f":"IF(ISERROR(VLOOKUP(B274,'Lista Desplegable'!$A$49:$C$64,3,0))=TRUE,\"Seleccione el proceso Correcto\",VLOOKUP(B274,'Lista Desplegable'!$A$49:$C$64,3,0))","v":"Dirección Ejecutiva"},"Gestión Jurídica","Resolución","Interna",115,"Por medio de la cual se declara desierto el Proceso de Mínima Cuantía No. 003 de 2018","RAPE Región Central","Contratación","2018-04-11","Todos","VIGENTE","Ninguna"]
[{"$f":"IF(ISERROR(VLOOKUP(B275,'Lista Desplegable'!$A$49:$C$64,3,0))=TRUE,\"Seleccione el proceso Correcto\",VLOOKUP(B275,'Lista Desplegable'!$A$49:$C$64,3,0))","v":"Dirección Ejecutiva"},"Gestión Jurídica","Resolución","Interna",124,"Por medio de la cual se declara desierto el Proceso de Mínima Cuantía No. 007 de 2018","RAPE Región Central","Contratación","2018-04-20","Todos","VIGENTE","Ninguna"]
[{"$f":"IF(ISERROR(VLOOKUP(B276,'Lista Desplegable'!$A$49:$C$64,3,0))=TRUE,\"Seleccione el proceso Correcto\",VLOOKUP(B276,'Lista Desplegable'!$A$49:$C$64,3,0))","v":"Dirección Ejecutiva"},"Gestión Jurídica","Resolución","Interna",125,"Por medio de la cual se reconocen unos gastos y se ordena un reembolso de una caja menor","RAPE Región Central","Caja Menor","2018-04-23","Todos","VIGENTE","Ninguna"]
[{"$f":"IF(ISERROR(VLOOKUP(B277,'Lista Desplegable'!$A$49:$C$64,3,0))=TRUE,\"Seleccione el proceso Correcto\",VLOOKUP(B277,'Lista Desplegable'!$A$49:$C$64,3,0))","v":"Dirección Ejecutiva"},"Gestión Jurídica","Resolución","Interna",126,"Por medio de la cual se ordena la apertura del Proceso de Selelección Abreviada de Menor Cuantía No. 005 de 2018","RAPE Región Central","Caja Menor","2018-04-23","Todos","VIGENTE","Ninguna"]
[{"$f":"IF(ISERROR(VLOOKUP(B278,'Lista Desplegable'!$A$49:$C$64,3,0))=TRUE,\"Seleccione el proceso Correcto\",VLOOKUP(B278,'Lista Desplegable'!$A$49:$C$64,3,0))","v":"Dirección Ejecutiva"},"Gestión Jurídica","Resolución","Interna",132,"Por medio de la cual se reconocen unos gastos y se ordena un reembolso de una caja menor","RAPE Región Central","Caja Menor","2018-05-03","Todos","VIGENTE","Ninguna"]
[{"$f":"IF(ISERROR(VLOOKUP(B279,'Lista Desplegable'!$A$49:$C$64,3,0))=TRUE,\"Seleccione el proceso Correcto\",VLOOKUP(B279,'Lista Desplegable'!$A$49:$C$64,3,0))","v":"Dirección Ejecutiva"},"Gestión Jurídica","Resolución","Interna",137,"Por la cual se modifica el Programa Anual Mensualizado de Caja PAC para la vigencia fiscal 2018 y de Reservas Presupuestales 2017 de la RAPE Región Central","RAPE Región Central","Programa Anual Mensualizado de Caja PAC de Reservas Presupuestales y Cuentas por Pagar","2018-05-08","Todos","VIGENTE","Ninguna"]
[{"$f":"IF(ISERROR(VLOOKUP(B280,'Lista Desplegable'!$A$49:$C$64,3,0))=TRUE,\"Seleccione el proceso Correcto\",VLOOKUP(B280,'Lista Desplegable'!$A$49:$C$64,3,0))","v":"Dirección Ejecutiva"},"Gestión Jurídica","Resolución","Interna",145,"Por medio de la cual se ordena la apertura del Proceso de Selección Abreviada de Menor cuantía No. 006 de 2018","RAPE Región Central","Contratación","2018-05-15","Todos","VIGENTE","Ninguna"]
[{"$f":"IF(ISERROR(VLOOKUP(B281,'Lista Desplegable'!$A$49:$C$64,3,0))=TRUE,\"Seleccione el proceso Correcto\",VLOOKUP(B281,'Lista Desplegable'!$A$49:$C$64,3,0))","v":"Dirección Ejecutiva"},"Gestión Jurídica","Resolución","Interna",146,"Por medio de la cual se adopta el Plan de Capacitación y/o Entrenamiento en el Puesto de Trabajo de los funcionarios de la Región Administrativa y de Planeación Especial RAPE - Región Central, para la vigencia 2018","RAPE Región Central","Capacitación y/o Entrenamiento en el Puesto de Trabajo","2018-05-15","Todos","VIGENTE","Ninguna"]
[{"$f":"IF(ISERROR(VLOOKUP(B282,'Lista Desplegable'!$A$49:$C$64,3,0))=TRUE,\"Seleccione el proceso Correcto\",VLOOKUP(B282,'Lista Desplegable'!$A$49:$C$64,3,0))","v":"Dirección Ejecutiva"},"Gestión Jurídica","Resolución","Interna",147,"Por medio de la cual se adopta el Plan de Seguridad y Salud en El Trabajo de la Región Administrativa y de Planeación Especial RAPE - Región Central, para la vigencia 2018","RAPE Región Central","Seguridad y Salud en El Trabajo ","2018-05-15","Todos","VIGENTE","Ninguna"]
[{"$f":"IF(ISERROR(VLOOKUP(B283,'Lista Desplegable'!$A$49:$C$64,3,0))=TRUE,\"Seleccione el proceso Correcto\",VLOOKUP(B283,'Lista Desplegable'!$A$49:$C$64,3,0))","v":"Dirección Ejecutiva"},"Gestión Jurídica","Resolución","Interna",153,"Por medio de la cual se adjudica el Proceso de Selección Abreviada de Menor Cuantía SAMC 005-2018","RAPE Región Central","Contratación","2018-05-17","Todos","VIGENTE","Ninguna"]
[{"$f":"IF(ISERROR(VLOOKUP(B284,'Lista Desplegable'!$A$49:$C$64,3,0))=TRUE,\"Seleccione el proceso Correcto\",VLOOKUP(B284,'Lista Desplegable'!$A$49:$C$64,3,0))","v":"Dirección Ejecutiva"},"Gestión Jurídica","Resolución","Interna",169,"Por medio de la cual se modifica la Resolución 377 del 27 de diciembre de 2017 - Modificación presupuestal","RAPE Región Central","Presupuesto de ingresos rentas y gastos ","2018-05-30","Todos","VIGENTE","Ninguna"]
[{"$f":"IF(ISERROR(VLOOKUP(B285,'Lista Desplegable'!$A$49:$C$64,3,0))=TRUE,\"Seleccione el proceso Correcto\",VLOOKUP(B285,'Lista Desplegable'!$A$49:$C$64,3,0))","v":"Dirección Ejecutiva"},"Gestión Jurídica","Resolución","Interna",172,"Por medio de la cual se reconocen unos gastos y se ordena un reembolso de una caja menor","RAPE Región Central","Caja menor","2018-06-01","Todos","VIGENTE","Ninguna"]
[{"$f":"IF(ISERROR(VLOOKUP(B286,'Lista Desplegable'!$A$49:$C$64,3,0))=TRUE,\"Seleccione el proceso Correcto\",VLOOKUP(B286,'Lista Desplegable'!$A$49:$C$64,3,0))","v":"Dirección Ejecutiva"},"Gestión Jurídica","Resolución","Interna",177,"Por la cual se modifica el Programa Anual Mensualizado de Caja PAC para la vigencia fiscal 2018 y de Resservas Presupuestales 2017 de la RAPE Región Central","RAPE Región Central","Programa Anual Mensualizado de Caja PAC de Reservas Presupuestales y Cuentas por Pagar","2018-06-06","Todos","VIGENTE","Ninguna"]
[{"$f":"IF(ISERROR(VLOOKUP(B287,'Lista Desplegable'!$A$49:$C$64,3,0))=TRUE,\"Seleccione el proceso Correcto\",VLOOKUP(B287,'Lista Desplegable'!$A$49:$C$64,3,0))","v":"Dirección Ejecutiva"},"Gestión Jurídica","Resolución","Interna",185,"Por medio de la cual se adjudica el Proceso de Selección Abreviada de Menor Cuantía No. 006 de 2018","RAPE Región Central","Contratación","2018-06-07","Todos","VIGENTE","Ninguna"]
[{"$f":"IF(ISERROR(VLOOKUP(B288,'Lista Desplegable'!$A$49:$C$64,3,0))=TRUE,\"Seleccione el proceso Correcto\",VLOOKUP(B288,'Lista Desplegable'!$A$49:$C$64,3,0))","v":"Dirección Ejecutiva"},"Gestión Jurídica","Resolución","Interna",187,"Por medio de la cual se actualizan las Tablas de Retención Documental y se modifica la Resolución 374 de 2017","RAPE Región Central","Instrumentos Archivisticos y de Gestión de Información Pública \nTablas de Retención Documental","2018-06-13","Todos","VIGENTE","Ninguna"]
[{"$f":"IF(ISERROR(VLOOKUP(B289,'Lista Desplegable'!$A$49:$C$64,3,0))=TRUE,\"Seleccione el proceso Correcto\",VLOOKUP(B289,'Lista Desplegable'!$A$49:$C$64,3,0))","v":"Dirección Ejecutiva"},"Gestión Jurídica","Resolución","Interna",188,"Por medio de la cual se declara desierto el proceso de Licitación Pública LP 001RG de 2018","RAPE Región Central","Contratación","2018-06-14","Todos","VIGENTE","Ninguna"]
[{"$f":"IF(ISERROR(VLOOKUP(B290,'Lista Desplegable'!$A$49:$C$64,3,0))=TRUE,\"Seleccione el proceso Correcto\",VLOOKUP(B290,'Lista Desplegable'!$A$49:$C$64,3,0))","v":"Dirección Ejecutiva"},"Gestión Jurídica","Resolución","Interna",198,"Por medio de la cual se reconocen unos gastos y se ordena un reembolso de una caja menor","RAPE Región Central","Caja menor","2018-07-05","Todos","VIGENTE","Ninguna"]
[{"$f":"IF(ISERROR(VLOOKUP(B291,'Lista Desplegable'!$A$49:$C$64,3,0))=TRUE,\"Seleccione el proceso Correcto\",VLOOKUP(B291,'Lista Desplegable'!$A$49:$C$64,3,0))","v":"Dirección Ejecutiva"},"Gestión Jurídica","Resolución","Interna",200,"Por la cual se modifica el Programa Anual Mensualizado de Caja PAC para la vigencia fiscal 2018 y de Resservas Presupuestales 2017 de la RAPE Región Central","RAPE Región Central","Programa Anual Mensualizado de Caja PAC de Reservas Presupuestales y Cuentas por Pagar","2018-07-07","Todos","VIGENTE","Ninguna"]
[{"$f":"IF(ISERROR(VLOOKUP(B292,'Lista Desplegable'!$A$49:$C$64,3,0))=TRUE,\"Seleccione el proceso Correcto\",VLOOKUP(B292,'Lista Desplegable'!$A$49:$C$64,3,0))","v":"Dirección Ejecutiva"},"Gestión Jurídica","Resolución","Interna",212,"Por medio de la cual se reconocen unos gasto y se ordena el reembolso de la caja menor","RAPE Región Central","Caja menor","2018-08-02","Todos","VIGENTE","Ninguna"]
[{"$f":"IF(ISERROR(VLOOKUP(B293,'Lista Desplegable'!$A$49:$C$64,3,0))=TRUE,\"Seleccione el proceso Correcto\",VLOOKUP(B293,'Lista Desplegable'!$A$49:$C$64,3,0))","v":"Dirección Ejecutiva"},"Gestión Jurídica","Resolución","Interna",216,"Por la cual se modifica el Programa Anual Mensualizado de Caja PAC para la vigencia fiscal 2018 y de Reservas Presupuestales 2017 de la RAPE Región Central","RAPE Región Central","Programa Anual Mensualizado de Caja PAC de Reservas Presupuestales y Cuentas por Pagar","2018-08-08","Todos","VIGENTE","Ninguna"]
[{"$f":"IF(ISERROR(VLOOKUP(B294,'Lista Desplegable'!$A$49:$C$64,3,0))=TRUE,\"Seleccione el proceso Correcto\",VLOOKUP(B294,'Lista Desplegable'!$A$49:$C$64,3,0))","v":"Dirección Ejecutiva"},"Gestión Jurídica","Resolución","Interna",218,"Por medio de la cual se ordena la apertura del Proceso de Concurso de Méritos Abierto CMA 011-2018","RAPE Región Central","Contratación","2018-08-09","Todos","VIGENTE","Ninguna"]
[{"$f":"IF(ISERROR(VLOOKUP(B295,'Lista Desplegable'!$A$49:$C$64,3,0))=TRUE,\"Seleccione el proceso Correcto\",VLOOKUP(B295,'Lista Desplegable'!$A$49:$C$64,3,0))","v":"Dirección Ejecutiva"},"Gestión Jurídica","Resolución","Interna",224,"Por la cual se liquida unilateralmente el contrato de arrendamiento No. 036 de 2016 suscrito entre la Región Administrativa y de Planeación Especial RAPE Región Central y fonnegra Gerlein S.A.","RAPE Región Central","Contratación","2018-08-15","Todos","VIGENTE","Ninguna"]
[{"$f":"IF(ISERROR(VLOOKUP(B296,'Lista Desplegable'!$A$49:$C$64,3,0))=TRUE,\"Seleccione el proceso Correcto\",VLOOKUP(B296,'Lista Desplegable'!$A$49:$C$64,3,0))","v":"Dirección Ejecutiva"},"Gestión Jurídica","Resolución","Interna",225,"Por la cual se liquida unilateralmente el contrato de arrendamiento No. 011 de 2017 suscrito entre la Región Administrativa y de Planeación Especial RAPE Región Central y fonnegra Gerlein S.A.","RAPE Región Central","Contratación","2018-08-15","Todos","VIGENTE","Ninguna"]
[{"$f":"IF(ISERROR(VLOOKUP(B297,'Lista Desplegable'!$A$49:$C$64,3,0))=TRUE,\"Seleccione el proceso Correcto\",VLOOKUP(B297,'Lista Desplegable'!$A$49:$C$64,3,0))","v":"Dirección Ejecutiva"},"Gestión Jurídica","Resolución","Interna",227,"Por medio de la cual se modifica la Resolución 377 del 27 de diciembre de 2017 - Modificación presupuestal","RAPE Región Central","Presupuesto de ingresos rentas y gastos ","2018-08-21","Todos","VIGENTE","Ninguna"]
[{"$f":"IF(ISERROR(VLOOKUP(B298,'Lista Desplegable'!$A$49:$C$64,3,0))=TRUE,\"Seleccione el proceso Correcto\",VLOOKUP(B298,'Lista Desplegable'!$A$49:$C$64,3,0))","v":"Dirección Ejecutiva"},"Gestión Jurídica","Resolución","Interna",228,"Por la cual se declara desierto el concurso de méritos No. 011-2018","RAPE Región Central","Contratación","2018-08-21","Todos","VIGENTE","Ninguna"]
[{"$f":"IF(ISERROR(VLOOKUP(B299,'Lista Desplegable'!$A$49:$C$64,3,0))=TRUE,\"Seleccione el proceso Correcto\",VLOOKUP(B299,'Lista Desplegable'!$A$49:$C$64,3,0))","v":"Dirección Ejecutiva"},"Gestión Jurídica","Resolución","Interna",237,"Por medio de la cual se ordena la apertura del Proceso de Selección Abreviada de Mínima Cuantía No. 006RG de 2018","RAPE Región Central","Contratación","2018-08-27","Todos","VIGENTE","Ninguna"]
[{"$f":"IF(ISERROR(VLOOKUP(B300,'Lista Desplegable'!$A$49:$C$64,3,0))=TRUE,\"Seleccione el proceso Correcto\",VLOOKUP(B300,'Lista Desplegable'!$A$49:$C$64,3,0))","v":"Dirección Ejecutiva"},"Gestión Jurídica","Resolución","Interna",240,"Por medio de la cual se ordena la apertura del Proceso de Concurso de Méritos Abierto CMA 013-2018","RAPE Región Central","Contratación","2018-09-03","Todos","VIGENTE","Ninguna"]
[{"$f":"IF(ISERROR(VLOOKUP(B301,'Lista Desplegable'!$A$49:$C$64,3,0))=TRUE,\"Seleccione el proceso Correcto\",VLOOKUP(B301,'Lista Desplegable'!$A$49:$C$64,3,0))","v":"Dirección Ejecutiva"},"Gestión Jurídica","Resolución","Interna",242,"Por medio de la cual se recnoocen unos gastos y se ordena el reembolso de la caja menor","RAPE Región Central","Caja menor","2018-09-04","Todos","VIGENTE","Ninguna"]
[{"$f":"IF(ISERROR(VLOOKUP(B302,'Lista Desplegable'!$A$49:$C$64,3,0))=TRUE,\"Seleccione el proceso Correcto\",VLOOKUP(B302,'Lista Desplegable'!$A$49:$C$64,3,0))","v":"Dirección Ejecutiva"},"Gestión Jurídica","Resolución","Interna",247,"Por medio de la cual se ordena la apertura del proceso de Selección Abreviada de Menor Cuantía SAMC 014 de 2017","RAPE Región Central","Contratación","2018-09-10","Todos","VIGENTE","Ninguna"]
[{"$f":"IF(ISERROR(VLOOKUP(B303,'Lista Desplegable'!$A$49:$C$64,3,0))=TRUE,\"Seleccione el proceso Correcto\",VLOOKUP(B303,'Lista Desplegable'!$A$49:$C$64,3,0))","v":"Dirección Ejecutiva"},"Gestión Jurídica","Resolución","Interna",248,"Por la cual se modifica el Programa Anual Mensualizado de Caja PAC para la vigencia fiscal 2018 y de Reservas Presupuestales 2017 de la RAPE Región Central","RAPE Región Central","Programa Anual Mensualizado de Caja PAC de Reservas Presupuestales y Cuentas por Pagar","2018-09-12","Todos","VIGENTE","Ninguna"]
[{"$f":"IF(ISERROR(VLOOKUP(B304,'Lista Desplegable'!$A$49:$C$64,3,0))=TRUE,\"Seleccione el proceso Correcto\",VLOOKUP(B304,'Lista Desplegable'!$A$49:$C$64,3,0))","v":"Dirección Ejecutiva"},"Gestión Jurídica","Resolución","Interna",249,"Por medio de la cual se modifica la Resolución 377 del 27 de diciembre de 2017 - Modificación presupuestal","RAPE Región Central","Presupuesto de ingresos rentas y gastos ","2018-09-13","Todos","VIGENTE","Ninguna"]
[{"$f":"IF(ISERROR(VLOOKUP(B305,'Lista Desplegable'!$A$49:$C$64,3,0))=TRUE,\"Seleccione el proceso Correcto\",VLOOKUP(B305,'Lista Desplegable'!$A$49:$C$64,3,0))","v":"Dirección Ejecutiva"},"Gestión Jurídica","Resolución","Interna",262,"Por medio de la cual se ordena la apertura del proceso de Licitación Pública LP 017-2018","RAPE Región Central","Contratación","2018-09-21","Todos","VIGENTE","Ninguna"]
[{"$f":"IF(ISERROR(VLOOKUP(B306,'Lista Desplegable'!$A$49:$C$64,3,0))=TRUE,\"Seleccione el proceso Correcto\",VLOOKUP(B306,'Lista Desplegable'!$A$49:$C$64,3,0))","v":"Dirección Ejecutiva"},"Gestión Jurídica","Resolución","Interna",267,"Por medio de la cual se declara desierto el Proceso de Concurso de Méritos Abierto CMA No. 013-2018","RAPE Región Central","Contratación","2018-09-28","Todos","VIGENTE","Ninguna"]
[{"$f":"IF(ISERROR(VLOOKUP(B307,'Lista Desplegable'!$A$49:$C$64,3,0))=TRUE,\"Seleccione el proceso Correcto\",VLOOKUP(B307,'Lista Desplegable'!$A$49:$C$64,3,0))","v":"Dirección Ejecutiva"},"Gestión Jurídica","Resolución","Interna",269,"Por la cual se modifica la Resolución No. 082 del 20 de marzo de 2018","RAPE Región Central","Modificacíon Resolución","2018-09-28","Todos","VIGENTE","Ninguna"]
[{"$f":"IF(ISERROR(VLOOKUP(B308,'Lista Desplegable'!$A$49:$C$64,3,0))=TRUE,\"Seleccione el proceso Correcto\",VLOOKUP(B308,'Lista Desplegable'!$A$49:$C$64,3,0))","v":"Dirección Ejecutiva"},"Gestión Jurídica","Resolución","Interna",272,"Por medio de la cual se reconocen unos gastos y se ordena un reembolso de una caja menor","RAPE Región Central","Caja menor","2018-10-02","Todos","VIGENTE","Ninguna"]
[{"$f":"IF(ISERROR(VLOOKUP(B309,'Lista Desplegable'!$A$49:$C$64,3,0))=TRUE,\"Seleccione el proceso Correcto\",VLOOKUP(B309,'Lista Desplegable'!$A$49:$C$64,3,0))","v":"Dirección Ejecutiva"},"Gestión Jurídica","Resolución","Interna",275,"Por la cual se modifica el Programa Anual de Caja PAC para la vigencia fiscal 2018 y de reservas presupuestales 2017 de la Región Administrativa y de Planeación Especial RAPE Región Central","RAPE Región Central","Programa Anual Mensualizado de Caja PAC de Reservas Presupuestales y Cuentas por Pagar","2018-10-04","Todos","VIGENTE","Ninguna"]
[{"$f":"IF(ISERROR(VLOOKUP(B310,'Lista Desplegable'!$A$49:$C$64,3,0))=TRUE,\"Seleccione el proceso Correcto\",VLOOKUP(B310,'Lista Desplegable'!$A$49:$C$64,3,0))","v":"Dirección Ejecutiva"},"Gestión Jurídica","Resolución","Interna",276,"Por medio de la cual se adjudica el Proceso de Selección Abreviada de Menor Cuantía No. 014 de 2018","RAPE Región Central","Contratación","2018-10-05","Todos","VIGENTE","Ninguna"]
[{"$f":"IF(ISERROR(VLOOKUP(B311,'Lista Desplegable'!$A$49:$C$64,3,0))=TRUE,\"Seleccione el proceso Correcto\",VLOOKUP(B311,'Lista Desplegable'!$A$49:$C$64,3,0))","v":"Dirección Ejecutiva"},"Gestión Jurídica","Resolución","Interna",277,"Por medio de la cual se reconocen unos gastos de la caja menor","RAPE Región Central","Caja menor","2018-10-05","Todos","VIGENTE","Ninguna"]
[{"$f":"IF(ISERROR(VLOOKUP(B312,'Lista Desplegable'!$A$49:$C$64,3,0))=TRUE,\"Seleccione el proceso Correcto\",VLOOKUP(B312,'Lista Desplegable'!$A$49:$C$64,3,0))","v":"Dirección Ejecutiva"},"Gestión Jurídica","Resolución","Interna",278,"Por medio de la cual se efectúa la legalización definitiva de la caja menor","RAPE Región Central","Caja menor","2018-10-08","Todos","VIGENTE","Ninguna"]
[{"$f":"IF(ISERROR(VLOOKUP(B313,'Lista Desplegable'!$A$49:$C$64,3,0))=TRUE,\"Seleccione el proceso Correcto\",VLOOKUP(B313,'Lista Desplegable'!$A$49:$C$64,3,0))","v":"Dirección Ejecutiva"},"Gestión Jurídica","Resolución","Interna",279,"Por la cual se adopta la Política de Prevención de Consumo de Tabaco, Alcohol y Drogras de la Región Administrativa y de Planeación Especial RAPE - Región Central 2018","RAPE Región Central","Política de Prevención de Consumo de Tabaco, Alcohol y Drogras","2018-10-08","Todos","VIGENTE","Ninguna"]
[{"$f":"IF(ISERROR(VLOOKUP(B314,'Lista Desplegable'!$A$49:$C$64,3,0))=TRUE,\"Seleccione el proceso Correcto\",VLOOKUP(B314,'Lista Desplegable'!$A$49:$C$64,3,0))","v":"Dirección Ejecutiva"},"Gestión Jurídica","Resolución","Interna",283,"Por medio de la cual se modifica la Resolución 003 de 2015, “Por la cual se establece el Manual Específico de Funciones y de Competencias Laborales para los empleos de la planta de personal de la Región Administrativa y de Planeación Especial denominada RAPE - Región Central","RAPE Región Central"," Manual Específico de Funciones y de Competencias Laborales","2018-10-19","Todos","VIGENTE","Ninguna"]
[{"$f":"IF(ISERROR(VLOOKUP(B315,'Lista Desplegable'!$A$49:$C$64,3,0))=TRUE,\"Seleccione el proceso Correcto\",VLOOKUP(B315,'Lista Desplegable'!$A$49:$C$64,3,0))","v":"Dirección Ejecutiva"},"Gestión Jurídica","Resolución","Interna",289,"Por medio de la cual se adjudican los grupos 8, 6, 3, 5, 7 y 4 y se declaran desiertos los grupos 1 y 2 del Proceso de Selección Abreviada de Menor Cuantía SAMC 006RG de 2018","RAPE Región Central","Contratación","2018-10-23","Todos","VIGENTE","Ninguna"]
[{"$f":"IF(ISERROR(VLOOKUP(B316,'Lista Desplegable'!$A$49:$C$64,3,0))=TRUE,\"Seleccione el proceso Correcto\",VLOOKUP(B316,'Lista Desplegable'!$A$49:$C$64,3,0))","v":"Dirección Ejecutiva"},"Gestión Jurídica","Resolución","Interna",293,"Por medio de la cual se efectua una reducción a la Resolución No. 377 del 27 de diciembre de 2017","RAPE Región Central","Presupuesto de ingresos rentas y gastos ","2018-10-25","Todos","VIGENTE","Ninguna"]
[{"$f":"IF(ISERROR(VLOOKUP(B317,'Lista Desplegable'!$A$49:$C$64,3,0))=TRUE,\"Seleccione el proceso Correcto\",VLOOKUP(B317,'Lista Desplegable'!$A$49:$C$64,3,0))","v":"Dirección Ejecutiva"},"Gestión Jurídica","Resolución","Interna",299,"Por medio de la cual se adjudica el Proceso de Licitación Pública LP No. 017 de 2018","RAPE Región Central","Contratación","2018-10-26","Todos","VIGENTE","Ninguna"]
[{"$f":"IF(ISERROR(VLOOKUP(B318,'Lista Desplegable'!$A$49:$C$64,3,0))=TRUE,\"Seleccione el proceso Correcto\",VLOOKUP(B318,'Lista Desplegable'!$A$49:$C$64,3,0))","v":"Dirección Ejecutiva"},"Gestión Jurídica","Resolución","Interna",302,"Por medio de la cual se modifica la Resolución No. 085 de 2015, a través de la cual se conformó el Comité Directivo de la Región Administrativa y de Planeación Especial RAPE - Región Central","RAPE Región Central","Comité Directivo","2018-11-01","Todos","VIGENTE","Ninguna"]
[{"$f":"IF(ISERROR(VLOOKUP(B319,'Lista Desplegable'!$A$49:$C$64,3,0))=TRUE,\"Seleccione el proceso Correcto\",VLOOKUP(B319,'Lista Desplegable'!$A$49:$C$64,3,0))","v":"Dirección Ejecutiva"},"Gestión Jurídica","Resolución","Interna",304,"Por la cual se modifica el Programa Anual Mensualizado de Caja PAC para la vigencia fiscal 2018 y de Reservas Presupuestales 2017 de la RAPE Región Central","RAPE Región Central","Programa Anual Mensualizado de Caja PAC de Reservas Presupuestales y Cuentas por Pagar","2018-11-06","Todos","VIGENTE","Ninguna"]
[{"$f":"IF(ISERROR(VLOOKUP(B320,'Lista Desplegable'!$A$49:$C$64,3,0))=TRUE,\"Seleccione el proceso Correcto\",VLOOKUP(B320,'Lista Desplegable'!$A$49:$C$64,3,0))","v":"Dirección Ejecutiva"},"Gestión Jurídica","Resolución","Interna",308,"Por la cual se constituye la Caja Menor para la vigencia fiscal 2018 y se dictan otras disposiciones","RAPE Región Central","Caja menor","2018-11-09","Todos","VIGENTE","Ninguna"]
[{"$f":"IF(ISERROR(VLOOKUP(B321,'Lista Desplegable'!$A$49:$C$64,3,0))=TRUE,\"Seleccione el proceso Correcto\",VLOOKUP(B321,'Lista Desplegable'!$A$49:$C$64,3,0))","v":"Dirección Ejecutiva"},"Gestión Jurídica","Resolución","Interna",309,"Por medio de la cual se modifica la Resolución No. 377 del 27 de diciembre de 2017","RAPE Región Central","Modificacíon Resolución","2018-11-09","Todos","VIGENTE","Ninguna"]
[{"$f":"IF(ISERROR(VLOOKUP(B322,'Lista Desplegable'!$A$49:$C$64,3,0))=TRUE,\"Seleccione el proceso Correcto\",VLOOKUP(B322,'Lista Desplegable'!$A$49:$C$64,3,0))","v":"Dirección Ejecutiva"},"Gestión Jurídica","Resolución","Interna",312,"Por medio de la cual se crea y reglamenta la Mesa Técnica del proyecto denominado \"Implementación de Acciones de Conservación y Restauración de los Complejos de páramo, Bosque Alto-andino y servicios ecosistemicos de la Región Central\" en el marco de la ejecución de los contratos de obra.","RAPE Región Central","Sistema General de Regalías del bienio","2018-11-14","Todos","VIGENTE","Ninguna"]
[{"$f":"IF(ISERROR(VLOOKUP(B323,'Lista Desplegable'!$A$49:$C$64,3,0))=TRUE,\"Seleccione el proceso Correcto\",VLOOKUP(B323,'Lista Desplegable'!$A$49:$C$64,3,0))","v":"Dirección Ejecutiva"},"Gestión Jurídica","Resolución","Interna",322,"Por medio de la cual se ordena la apertura del Proceso de Selección Abreviada de Menor Cuantía No. 020-2018","RAPE Región Central","Contratación","2018-11-29","Todos","VIGENTE","Ninguna"]
[{"$f":"IF(ISERROR(VLOOKUP(B324,'Lista Desplegable'!$A$49:$C$64,3,0))=TRUE,\"Seleccione el proceso Correcto\",VLOOKUP(B324,'Lista Desplegable'!$A$49:$C$64,3,0))","v":"Dirección Ejecutiva"},"Gestión Jurídica","Resolución","Interna",323,"Por medio de la cual se ordena la apertura del Proceso de Selección Abreviada de Menor Cuantía No. 021-2018","RAPE Región Central","Contratación","2018-11-29","Todos","VIGENTE","Ninguna"]
[{"$f":"IF(ISERROR(VLOOKUP(B325,'Lista Desplegable'!$A$49:$C$64,3,0))=TRUE,\"Seleccione el proceso Correcto\",VLOOKUP(B325,'Lista Desplegable'!$A$49:$C$64,3,0))","v":"Dirección Ejecutiva"},"Gestión Jurídica","Resolución","Interna",330,"Por medio de la cual se delega una función a cargo de la Dirección Ejecutiva de la RAPE Región Central","RAPE Región Central","Delegación de funciones","2018-12-03","Todos","VIGENTE","Ninguna"]
[{"$f":"IF(ISERROR(VLOOKUP(B326,'Lista Desplegable'!$A$49:$C$64,3,0))=TRUE,\"Seleccione el proceso Correcto\",VLOOKUP(B326,'Lista Desplegable'!$A$49:$C$64,3,0))","v":"Dirección Ejecutiva"},"Gestión Jurídica","Resolución","Interna",331,"Por medio de la cual se ordena la apertura del Proceso de Selección Abreviada de Menor Cuantía No. 022-2018","RAPE Región Central","Contratación","2018-12-03","Todos","VIGENTE","Ninguna"]
[{"$f":"IF(ISERROR(VLOOKUP(B327,'Lista Desplegable'!$A$49:$C$64,3,0))=TRUE,\"Seleccione el proceso Correcto\",VLOOKUP(B327,'Lista Desplegable'!$A$49:$C$64,3,0))","v":"Dirección Ejecutiva"},"Gestión Jurídica","Resolución","Interna",332,"Por medio de la cual se reconocen unos gastos y se ordena el reembolso de la caja menor","RAPE Región Central","Caja menor","2018-12-04","Todos","VIGENTE","Ninguna"]
[{"$f":"IF(ISERROR(VLOOKUP(B328,'Lista Desplegable'!$A$49:$C$64,3,0))=TRUE,\"Seleccione el proceso Correcto\",VLOOKUP(B328,'Lista Desplegable'!$A$49:$C$64,3,0))","v":"Dirección Ejecutiva"},"Gestión Jurídica","Resolución","Interna",344,"Por medio de la cual se declara desierto el Proceso de Mínima Cuantía No. 024/2018","RAPE Región Central","Contratación","2018-12-14","Todos","VIGENTE","Ninguna"]
[{"$f":"IF(ISERROR(VLOOKUP(B329,'Lista Desplegable'!$A$49:$C$64,3,0))=TRUE,\"Seleccione el proceso Correcto\",VLOOKUP(B329,'Lista Desplegable'!$A$49:$C$64,3,0))","v":"Dirección Ejecutiva"},"Gestión Jurídica","Resolución","Interna",349,"Por medio de la cual se adjudica el proceso de Selección Abreviada de Menor Cuantía SAMC 020-2018","RAPE Región Central","Contratación","2018-12-20","Todos","VIGENTE","Ninguna"]
[{"$f":"IF(ISERROR(VLOOKUP(B330,'Lista Desplegable'!$A$49:$C$64,3,0))=TRUE,\"Seleccione el proceso Correcto\",VLOOKUP(B330,'Lista Desplegable'!$A$49:$C$64,3,0))","v":"Dirección Ejecutiva"},"Gestión Jurídica","Resolución","Interna",350,"Por medio de la cual se reconocen unos gastos de la caja menor","RAPE Región Central","Caja menor","2018-12-20","Todos","VIGENTE","Ninguna"]
[{"$f":"IF(ISERROR(VLOOKUP(B331,'Lista Desplegable'!$A$49:$C$64,3,0))=TRUE,\"Seleccione el proceso Correcto\",VLOOKUP(B331,'Lista Desplegable'!$A$49:$C$64,3,0))","v":"Dirección Ejecutiva"},"Gestión Jurídica","Resolución","Interna",351,"Por medio de la cual se adjudica el proceso SAMC 021-2018","RAPE Región Central","Contratación","2018-12-24","Todos","VIGENTE","Ninguna"]
[{"$f":"IF(ISERROR(VLOOKUP(B332,'Lista Desplegable'!$A$49:$C$64,3,0))=TRUE,\"Seleccione el proceso Correcto\",VLOOKUP(B332,'Lista Desplegable'!$A$49:$C$64,3,0))","v":"Dirección Ejecutiva"},"Gestión Jurídica","Resolución","Interna",352,"Por medio de la cual se adjudica el proceso SAMC 022-2018","RAPE Región Central","Contratación","2018-12-26","Todos","VIGENTE","Ninguna"]
[{"$f":"IF(ISERROR(VLOOKUP(B333,'Lista Desplegable'!$A$49:$C$64,3,0))=TRUE,\"Seleccione el proceso Correcto\",VLOOKUP(B333,'Lista Desplegable'!$A$49:$C$64,3,0))","v":"Dirección Ejecutiva"},"Gestión Jurídica","Resolución","Interna",353,"Por medio de la cual se efectúa la legalización definitiva de la caja menor","RAPE Región Central","Caja menor","2018-12-27","Todos","VIGENTE","Ninguna"]
[{"$f":"IF(ISERROR(VLOOKUP(B334,'Lista Desplegable'!$A$49:$C$64,3,0))=TRUE,\"Seleccione el proceso Correcto\",VLOOKUP(B334,'Lista Desplegable'!$A$49:$C$64,3,0))","v":"Dirección Ejecutiva"},"Gestión Jurídica","Resolución","Interna",354,"Por medio de la cual se efectúa la liquidación del Presupuesto Anual de Rentas e Ingresos y Gastos e Inversiones de la Región Administrativa y de Planeación Especial RAPE Región Central, para la vigencia fiscal comprendida entre el 1 de enero y el 31 de diciembre de 2019 y se dictan otras disposiciones, en cumplimeinto del Acuerdo Regional 005 de 2018","RAPE Región Central","Presupuesto de ingresos rentas y gastos ","2018-12-28","Todos","VIGENTE","Ninguna"]
[{"$f":"IF(ISERROR(VLOOKUP(B335,'Lista Desplegable'!$A$49:$C$64,3,0))=TRUE,\"Seleccione el proceso Correcto\",VLOOKUP(B335,'Lista Desplegable'!$A$49:$C$64,3,0))","v":"Dirección Ejecutiva"},"Gestión Jurídica","Resolución","Interna",355,"Por la cual se aprueba el Programa Anual Mensualizado de Caja PAC para la vigencia fiscal 2019 de la Región Administrativa y de Planeación Especial RAPE Región Central","RAPE Región Central","Programa Anual Mensualizado de Caja PAC de Reservas Presupuestales y Cuentas por Pagar","2018-12-28","Todos","VIGENTE","Ninguna"]
[{"$f":"IF(ISERROR(VLOOKUP(B336,'Lista Desplegable'!$A$49:$C$64,3,0))=TRUE,\"Seleccione el proceso Correcto\",VLOOKUP(B336,'Lista Desplegable'!$A$49:$C$64,3,0))","v":"Dirección Ejecutiva"},"Gestión Jurídica","Resolución","Interna",359,"Por medio de la cual se actualiza la Política de Administración y Gestión Integral de Riesgos de la Región Administrativa y de Planeación Especial RAPE - Región Central","RAPE Región Central","Política de Administración y Gestión Integral de Riesgos ","2018-12-31","Todos","VIGENTE","Ninguna"]
[{"$f":"IF(ISERROR(VLOOKUP(B337,'Lista Desplegable'!$A$49:$C$64,3,0))=TRUE,\"Seleccione el proceso Correcto\",VLOOKUP(B337,'Lista Desplegable'!$A$49:$C$64,3,0))","v":"Dirección Ejecutiva"},"Gestión Jurídica","Resolución","Interna",360,"Por medio de la cual se adopta el Código de Integridad y Buen Gobierno de la Región Administrativa y de Planeación Especial RAPE Región Central","RAPE Región Central","Código de Integridad y Buen Gobierno","2018-12-31","Todos","VIGENTE","Ninguna"]
[{"$f":"IF(ISERROR(VLOOKUP(B338,'Lista Desplegable'!$A$49:$C$64,3,0))=TRUE,\"Seleccione el proceso Correcto\",VLOOKUP(B338,'Lista Desplegable'!$A$49:$C$64,3,0))","v":"Dirección Ejecutiva"},"Gestión Jurídica","Resolución","Interna",1,"Por la cual se adopta la tabla de honorarios para la contratación de servicios profesionales y de apoyo a la gestión de la Región Administrativa y de Planeación Especial RAPE Región Central","RAPE Región Central","Honorarios","2019-01-02","Todos","VIGENTE","Ninguna"]
[{"$f":"IF(ISERROR(VLOOKUP(B339,'Lista Desplegable'!$A$49:$C$64,3,0))=TRUE,\"Seleccione el proceso Correcto\",VLOOKUP(B339,'Lista Desplegable'!$A$49:$C$64,3,0))","v":"Dirección Ejecutiva"},"Gestión Jurídica","Resolución","Interna",2,"Por medio de la cual se modifica la Resolución 003 de 2015, “Por la cual se establece el Manual Específico de Funciones y de Competencias Laborales para los empleos de la planta de personal de la Región Administrativa y de Planeación Especial denominada RAPE - Región Central","RAPE Región Central","Manual Específico de Funciones y de Competencias Laborales","2019-01-03","Todos","VIGENTE","Ninguna"]
[{"$f":"IF(ISERROR(VLOOKUP(B340,'Lista Desplegable'!$A$49:$C$64,3,0))=TRUE,\"Seleccione el proceso Correcto\",VLOOKUP(B340,'Lista Desplegable'!$A$49:$C$64,3,0))","v":"Dirección Ejecutiva"},"Gestión Jurídica","Resolución","Interna",3,"Por medio de la cual se distribuyen los cargos de la planta de empleos de la RAPE Región Central","RAPE Región Central","Distribución de los cargos de la planta global ","2019-01-03","Todos","VIGENTE","Ninguna"]
[{"$f":"IF(ISERROR(VLOOKUP(B341,'Lista Desplegable'!$A$49:$C$64,3,0))=TRUE,\"Seleccione el proceso Correcto\",VLOOKUP(B341,'Lista Desplegable'!$A$49:$C$64,3,0))","v":"Dirección Ejecutiva"},"Gestión Jurídica","Resolución","Interna",5,"Pormedio de la cual se realiza el cierrre presupuestal de regalías 2017-2018 y se trasladan saldos al 2019 - 2020","RAPE Región Central","Sistema General de Regalías del bienio","2019-01-09","Todos","VIGENTE","Ninguna"]
[{"$f":"IF(ISERROR(VLOOKUP(B342,'Lista Desplegable'!$A$49:$C$64,3,0))=TRUE,\"Seleccione el proceso Correcto\",VLOOKUP(B342,'Lista Desplegable'!$A$49:$C$64,3,0))","v":"Dirección Ejecutiva"},"Gestión Jurídica","Resolución","Interna",6,"Por la cual se constituye las Cuentas por Pagar y las Reservas Presupuestales al cierre de la vigencia fiscal 2018 de la Región Administrativa y de Planeación Especial RAPE - Región Central","RAPE Región Central","Programa Anual Mensualizado de Caja PAC de Reservas Presupuestales y Cuentas por Pagar","2019-01-10","Todos","VIGENTE","Ninguna"]
[{"$f":"IF(ISERROR(VLOOKUP(B343,'Lista Desplegable'!$A$49:$C$64,3,0))=TRUE,\"Seleccione el proceso Correcto\",VLOOKUP(B343,'Lista Desplegable'!$A$49:$C$64,3,0))","v":"Dirección Ejecutiva"},"Gestión Jurídica","Resolución","Interna",7,"Por la cual se aprueba el Programa Anual Mensualizado de Caja PAC para las Cuentas por Pagar y las Reservas Presupuestales 2018 de la Región Administrativa y de Planeación Especial RAPE - Región Central","RAPE Región Central","Programa Anual Mensualizado de Caja PAC de Reservas Presupuestales y Cuentas por Pagar","2019-01-10","Todos","VIGENTE","Ninguna"]
[{"$f":"IF(ISERROR(VLOOKUP(B344,'Lista Desplegable'!$A$49:$C$64,3,0))=TRUE,\"Seleccione el proceso Correcto\",VLOOKUP(B344,'Lista Desplegable'!$A$49:$C$64,3,0))","v":"Dirección Ejecutiva"},"Gestión Jurídica","Resolución","Interna",15,"Por la cual se modifica el Programa Anual Mensualizado de Caja PAC para la vigenica fiscal 2019 y de Reservas Presupuestales 2018 de la Región Administrativa y de Planeación Especial RAPE Región Central.","RAPE Región Central","Programa Anual Mensualizado de Caja PAC de Reservas Presupuestales y Cuentas por Pagar","2019-01-22","Todos","VIGENTE","Ninguna"]
[{"$f":"IF(ISERROR(VLOOKUP(B345,'Lista Desplegable'!$A$49:$C$64,3,0))=TRUE,\"Seleccione el proceso Correcto\",VLOOKUP(B345,'Lista Desplegable'!$A$49:$C$64,3,0))","v":"Dirección Ejecutiva"},"Gestión Jurídica","Resolución","Interna",16,"Por medio del cual se modifica el presupusto de funcionamiento de la Resolución 354 del 28 de diciembre de 2018","RAPE Región Central","Presupuesto de ingresos rentas y gastos ","2019-01-23","Todos","VIGENTE","Ninguna"]
[{"$f":"IF(ISERROR(VLOOKUP(B346,'Lista Desplegable'!$A$49:$C$64,3,0))=TRUE,\"Seleccione el proceso Correcto\",VLOOKUP(B346,'Lista Desplegable'!$A$49:$C$64,3,0))","v":"Dirección Ejecutiva"},"Gestión Jurídica","Resolución","Interna",19,"Por medio de la cual se ordena la apertura del Proceso de Licitación Pública No. 002 RG/2018","RAPE Región Central","Contratación","2019-01-29","Todos","VIGENTE","Ninguna"]
[{"$f":"IF(ISERROR(VLOOKUP(B347,'Lista Desplegable'!$A$49:$C$64,3,0))=TRUE,\"Seleccione el proceso Correcto\",VLOOKUP(B347,'Lista Desplegable'!$A$49:$C$64,3,0))","v":"Dirección Ejecutiva"},"Gestión Jurídica","Resolución","Interna",26,"Por la cual se constituye la Caja Menor para la vigencia fiscal 2019 y se dictan otras disposiciones.","RAPE Región Central","Caja menor","2019-02-06","Todos","VIGENTE","Ninguna"]
[{"$f":"IF(ISERROR(VLOOKUP(B348,'Lista Desplegable'!$A$49:$C$64,3,0))=TRUE,\"Seleccione el proceso Correcto\",VLOOKUP(B348,'Lista Desplegable'!$A$49:$C$64,3,0))","v":"Dirección Ejecutiva"},"Gestión Jurídica","Resolución","Interna",27,"Por la cual se modifica el Programa Anual Mensualizado de Caja PAC para la vigencia fiscal 2019 y de Reservas Presupuestales 2018 de la Región Administrativa y de Planeación Especial RAPE Región Central.","RAPE Región Central","Programa Anual Mensualizado de Caja PAC de Reservas Presupuestales y Cuentas por Pagar","2019-02-07","Todos","VIGENTE","Ninguna"]
[{"$f":"IF(ISERROR(VLOOKUP(B349,'Lista Desplegable'!$A$49:$C$64,3,0))=TRUE,\"Seleccione el proceso Correcto\",VLOOKUP(B349,'Lista Desplegable'!$A$49:$C$64,3,0))","v":"Dirección Ejecutiva"},"Gestión Jurídica","Resolución","Interna",35,"Por medio de la cual se modifica la Resolucion 001 de 2019 de la Región Administrativa y de Planeación Especial. RAPE - Región Central","RAPE Región Central","Honorarios","2019-02-12","Todos","VIGENTE","Ninguna"]
[{"$f":"IF(ISERROR(VLOOKUP(B350,'Lista Desplegable'!$A$49:$C$64,3,0))=TRUE,\"Seleccione el proceso Correcto\",VLOOKUP(B350,'Lista Desplegable'!$A$49:$C$64,3,0))","v":"Dirección Ejecutiva"},"Gestión Jurídica","Resolución","Interna",37,"Por medio de la cual se modifica la Resolucón 354 del 28 de diciembre de 2018","RAPE Región Central","Presupuesto de ingresos rentas y gastos ","2019-02-14","Todos","VIGENTE","Ninguna"]
[{"$f":"IF(ISERROR(VLOOKUP(B351,'Lista Desplegable'!$A$49:$C$64,3,0))=TRUE,\"Seleccione el proceso Correcto\",VLOOKUP(B351,'Lista Desplegable'!$A$49:$C$64,3,0))","v":"Dirección Ejecutiva"},"Gestión Jurídica","Resolución","Interna",48,"Por medio de la cual se reconocen unos gastos y se ordena el reembolso de la caja menor.","RAPE Región Central","Caja menor","2019-03-01","Todos","VIGENTE","Ninguna"]
[{"$f":"IF(ISERROR(VLOOKUP(B352,'Lista Desplegable'!$A$49:$C$64,3,0))=TRUE,\"Seleccione el proceso Correcto\",VLOOKUP(B352,'Lista Desplegable'!$A$49:$C$64,3,0))","v":"Dirección Ejecutiva"},"Gestión Jurídica","Resolución","Interna",52,"Por la cual se modifica el Programa Anual Mensualizado de Caja PAC para la vigencia fiscal 2019 y de Reservas Presupuestales 2018 de la Región Administrativa y de Planeación Especial RAPE Región Central.","RAPE Región Central","Programa Anual Mensualizado de Caja PAC de Reservas Presupuestales y Cuentas por Pagar","2019-03-06","Todos","VIGENTE","Ninguna"]
[{"$f":"IF(ISERROR(VLOOKUP(B353,'Lista Desplegable'!$A$49:$C$64,3,0))=TRUE,\"Seleccione el proceso Correcto\",VLOOKUP(B353,'Lista Desplegable'!$A$49:$C$64,3,0))","v":"Dirección Ejecutiva"},"Gestión Jurídica","Resolución","Interna",58,"Por medio de la cual se modifica la Resolucion 354 del 28 de diciembre de 2018","RAPE Región Central","Presupuesto de ingresos rentas y gastos ","2019-03-08","Todos","VIGENTE","Ninguna"]
[{"$f":"IF(ISERROR(VLOOKUP(B354,'Lista Desplegable'!$A$49:$C$64,3,0))=TRUE,\"Seleccione el proceso Correcto\",VLOOKUP(B354,'Lista Desplegable'!$A$49:$C$64,3,0))","v":"Dirección Ejecutiva"},"Gestión Jurídica","Resolución","Interna",66,"Por medio de la cual se ordena la apertura del Proceso de Selección Abreviada por Subasta Inversa SASI No. 002 /2019","RAPE Región Central","Contratación","2019-03-15","Todos","VIGENTE","Ninguna"]
[{"$f":"IF(ISERROR(VLOOKUP(B355,'Lista Desplegable'!$A$49:$C$64,3,0))=TRUE,\"Seleccione el proceso Correcto\",VLOOKUP(B355,'Lista Desplegable'!$A$49:$C$64,3,0))","v":"Dirección Ejecutiva"},"Gestión Jurídica","Resolución","Interna",67,"Por medio de la cual se ordena la apertura del Proceso de Selección Abreviada de Menor Cuantía SAMC No. 003 /2019","RAPE Región Central","Contratación","2019-03-18","Todos","VIGENTE","Ninguna"]
[{"$f":"IF(ISERROR(VLOOKUP(B356,'Lista Desplegable'!$A$49:$C$64,3,0))=TRUE,\"Seleccione el proceso Correcto\",VLOOKUP(B356,'Lista Desplegable'!$A$49:$C$64,3,0))","v":"Dirección Ejecutiva"},"Gestión Jurídica","Resolución","Interna",76,"Por medio de la cual se adjudica el Proceso de Licitación Pública LP 002RG de 2018","RAPE Región Central","Contratación","2019-03-29","Todos","VIGENTE","Ninguna"]
[{"$f":"IF(ISERROR(VLOOKUP(B357,'Lista Desplegable'!$A$49:$C$64,3,0))=TRUE,\"Seleccione el proceso Correcto\",VLOOKUP(B357,'Lista Desplegable'!$A$49:$C$64,3,0))","v":"Dirección Ejecutiva"},"Gestión Jurídica","Resolución","Interna",77,"Por la cual se adopta la Versión 2 del Plan de Acción Integrado de la Región Administrativa y de Planeación Especial RAPE - Región Central, para la vigencia 09","RAPE Región Central","Plan de Acción Integrado","2019-03-29","Todos","VIGENTE","Ninguna"]
[{"$f":"IF(ISERROR(VLOOKUP(B358,'Lista Desplegable'!$A$49:$C$64,3,0))=TRUE,\"Seleccione el proceso Correcto\",VLOOKUP(B358,'Lista Desplegable'!$A$49:$C$64,3,0))","v":"Dirección Ejecutiva"},"Gestión Jurídica","Resolución","Interna",78,"Por medio de la cual se reconocen unos gastos y se ordena el reembolso de la caja menor.","RAPE Región Central","Caja menor","2019-03-29","Todos","VIGENTE","Ninguna"]
[{"$f":"IF(ISERROR(VLOOKUP(B359,'Lista Desplegable'!$A$49:$C$64,3,0))=TRUE,\"Seleccione el proceso Correcto\",VLOOKUP(B359,'Lista Desplegable'!$A$49:$C$64,3,0))","v":"Dirección Ejecutiva"},"Gestión Jurídica","Resolución","Interna",81,"Por la cual se declara desierto el Proceso de Selección Abreviada por Subasta Inversa SASI 002-2019","RAPE Región Central","Contratación","2019-04-05","Todos","VIGENTE","Ninguna"]
[{"$f":"IF(ISERROR(VLOOKUP(B360,'Lista Desplegable'!$A$49:$C$64,3,0))=TRUE,\"Seleccione el proceso Correcto\",VLOOKUP(B360,'Lista Desplegable'!$A$49:$C$64,3,0))","v":"Dirección Ejecutiva"},"Gestión Jurídica","Resolución","Interna",82,"Por la cual se modifica el Programa Anual Mensualizado de Caja PAC para la vigencia fiscal 2019 de la Región Administrativa y de Planeación Especial RAPE Región Central.","RAPE Región Central","Programa Anual Mensualizado de Caja PAC de Reservas Presupuestales y Cuentas por Pagar","2019-04-05","Todos","VIGENTE","Ninguna"]
[{"$f":"IF(ISERROR(VLOOKUP(B361,'Lista Desplegable'!$A$49:$C$64,3,0))=TRUE,\"Seleccione el proceso Correcto\",VLOOKUP(B361,'Lista Desplegable'!$A$49:$C$64,3,0))","v":"Dirección Ejecutiva"},"Gestión Jurídica","Resolución","Interna",87,"Por medio de la cual se adjudica el Proceso de Selección Abreviada de Menor Cuantía No. 003 de 2019.","RAPE Región Central","Contratación","2019-04-10","Todos","VIGENTE","Ninguna"]
[{"$f":"IF(ISERROR(VLOOKUP(B362,'Lista Desplegable'!$A$49:$C$64,3,0))=TRUE,\"Seleccione el proceso Correcto\",VLOOKUP(B362,'Lista Desplegable'!$A$49:$C$64,3,0))","v":"Dirección Ejecutiva"},"Gestión Jurídica","Resolución","Interna",94,"Por medio de la cual se ordena la apertura del proceso de Selección Abreviada por subasta Inversa SASI No. 004 /2019","RAPE Región Central","Contratación","2019-04-17","Todos","VIGENTE","Ninguna"]
[{"$f":"IF(ISERROR(VLOOKUP(B363,'Lista Desplegable'!$A$49:$C$64,3,0))=TRUE,\"Seleccione el proceso Correcto\",VLOOKUP(B363,'Lista Desplegable'!$A$49:$C$64,3,0))","v":"Dirección Ejecutiva"},"Gestión Jurídica","Resolución","Interna",103,"Por medio de la cual se reconocen unos gastos y se ordena el reembolso de la caja menor.","RAPE Región Central","Caja menor","2019-05-06","Todos","VIGENTE","Ninguna"]
[{"$f":"IF(ISERROR(VLOOKUP(B364,'Lista Desplegable'!$A$49:$C$64,3,0))=TRUE,\"Seleccione el proceso Correcto\",VLOOKUP(B364,'Lista Desplegable'!$A$49:$C$64,3,0))","v":"Dirección Ejecutiva"},"Gestión Jurídica","Resolución","Interna",119,"Por la cual se revoca la adjudicación del proceso de Selección Abreviada por Subasta Inversa SASI 004 de 2019","RAPE Región Central","Contratación","2019-05-21","Todos","VIGENTE","Ninguna"]
[{"$f":"IF(ISERROR(VLOOKUP(B365,'Lista Desplegable'!$A$49:$C$64,3,0))=TRUE,\"Seleccione el proceso Correcto\",VLOOKUP(B365,'Lista Desplegable'!$A$49:$C$64,3,0))","v":"Dirección Ejecutiva"},"Gestión Jurídica","Resolución","Interna",124,"Por medio de la cual se declara desierto el proceso de Selección Abreviada por Subasta Inversa SASI 004 de 2019 ","RAPE Región Central","Contratación","2019-05-23","Todos","VIGENTE","Ninguna"]
[{"$f":"IF(ISERROR(VLOOKUP(B366,'Lista Desplegable'!$A$49:$C$64,3,0))=TRUE,\"Seleccione el proceso Correcto\",VLOOKUP(B366,'Lista Desplegable'!$A$49:$C$64,3,0))","v":"Dirección Ejecutiva"},"Gestión Jurídica","Resolución","Interna",136,"Por medio de la cual se modifica la Resolución 354 del 28 de diciembre de 2018","RAPE Región Central","Presupuesto de ingresos rentas y gastos ","2019-05-31","Todos","VIGENTE","Ninguna"]
[{"$f":"IF(ISERROR(VLOOKUP(B367,'Lista Desplegable'!$A$49:$C$64,3,0))=TRUE,\"Seleccione el proceso Correcto\",VLOOKUP(B367,'Lista Desplegable'!$A$49:$C$64,3,0))","v":"Dirección Ejecutiva"},"Gestión Jurídica","Resolución","Interna",138,"Por medio de la cual se ordena la apertura del proceso del Selección Abreviada por Subasta Inversa SASI 007 de 2019","RAPE Región Central","Contratación","2019-06-05","Todos","VIGENTE","Ninguna"]
[{"$f":"IF(ISERROR(VLOOKUP(B368,'Lista Desplegable'!$A$49:$C$64,3,0))=TRUE,\"Seleccione el proceso Correcto\",VLOOKUP(B368,'Lista Desplegable'!$A$49:$C$64,3,0))","v":"Dirección Ejecutiva"},"Gestión Jurídica","Resolución","Interna",139,"Por medio de la cual se ordena la apertura del proceso del Selección Abreviada por Subasta Inversa SASI 008 de 2019","RAPE Región Central","Contratación","2019-06-05","Todos","VIGENTE","Ninguna"]
[{"$f":"IF(ISERROR(VLOOKUP(B369,'Lista Desplegable'!$A$49:$C$64,3,0))=TRUE,\"Seleccione el proceso Correcto\",VLOOKUP(B369,'Lista Desplegable'!$A$49:$C$64,3,0))","v":"Dirección Ejecutiva"},"Gestión Jurídica","Resolución","Interna",144,"Por medio de la cual se reconocen y ordena el reemplazo de la caja menor","RAPE Región Central","Caja menor","2019-06-07","Todos","VIGENTE","Ninguna"]
[{"$f":"IF(ISERROR(VLOOKUP(B370,'Lista Desplegable'!$A$49:$C$64,3,0))=TRUE,\"Seleccione el proceso Correcto\",VLOOKUP(B370,'Lista Desplegable'!$A$49:$C$64,3,0))","v":"Dirección Ejecutiva"},"Gestión Jurídica","Resolución","Interna",148,"Por medio de la cual se modifica el Programa Anual Mensualizado de Caja PAC para la vigencia fiscal 2019 de la Región Administrativa y de Planeación Especial RAPE Región Central","RAPE Región Central","Programa Anual Mensualizado de Caja PAC de Reservas Presupuestales y Cuentas por Pagar","2019-06-10","Todos","VIGENTE","Ninguna"]
[{"$f":"IF(ISERROR(VLOOKUP(B371,'Lista Desplegable'!$A$49:$C$64,3,0))=TRUE,\"Seleccione el proceso Correcto\",VLOOKUP(B371,'Lista Desplegable'!$A$49:$C$64,3,0))","v":"Dirección Ejecutiva"},"Gestión Jurídica","Resolución","Interna",149,"Por medio de la cual se ordena la aapertura del Proceso de Selección Abreviada por Menor Cuantía No. 009 de 2019","RAPE Región Central","Contratación","2019-06-11","Todos","VIGENTE","Ninguna"]
[{"$f":"IF(ISERROR(VLOOKUP(B372,'Lista Desplegable'!$A$49:$C$64,3,0))=TRUE,\"Seleccione el proceso Correcto\",VLOOKUP(B372,'Lista Desplegable'!$A$49:$C$64,3,0))","v":"Dirección Ejecutiva"},"Gestión Jurídica","Resolución","Interna",156,"Por medio de la cual se deroga la Resolución 061 de 2015 y se establecenloslineamientos generales en materia de induccion, reinduccion, capacitación y/o entrenamiento en el puesto de rabajo, bienestar e incentivos y seguridad y salud en el rabajo de los fncioanriso de la RAPE Región Central","RAPE Región Central","Lineamientos generales en materia de Inducción, Reinducción, Capacitación y Bienestar e Incentivos","2019-06-12","Todos","VIGENTE","Ninguna"]
[{"$f":"IF(ISERROR(VLOOKUP(B373,'Lista Desplegable'!$A$49:$C$64,3,0))=TRUE,\"Seleccione el proceso Correcto\",VLOOKUP(B373,'Lista Desplegable'!$A$49:$C$64,3,0))","v":"Dirección Ejecutiva"},"Gestión Jurídica","Resolución","Interna",158,"Por la cual se delegan unas funciones","RAPE Región Central","Delegación de funciones","2019-06-13","Todos","VIGENTE","Ninguna"]
[{"$f":"IF(ISERROR(VLOOKUP(B374,'Lista Desplegable'!$A$49:$C$64,3,0))=TRUE,\"Seleccione el proceso Correcto\",VLOOKUP(B374,'Lista Desplegable'!$A$49:$C$64,3,0))","v":"Dirección Ejecutiva"},"Gestión Jurídica","Resolución","Interna",164,"Por medio de la cual se adjudica el Proceso de Selección Abreviada por Subasta Inversa SASI 008 de 2019","RAPE Región Central","Contratación","2019-06-20","Todos","VIGENTE","Ninguna"]
[{"$f":"IF(ISERROR(VLOOKUP(B375,'Lista Desplegable'!$A$49:$C$64,3,0))=TRUE,\"Seleccione el proceso Correcto\",VLOOKUP(B375,'Lista Desplegable'!$A$49:$C$64,3,0))","v":"Dirección Ejecutiva"},"Gestión Jurídica","Resolución","Interna",165,"Por medio de la cual se adjudica el Proceso de Selección Abreviada por Subasta Inversa SASI 007 de 2019","RAPE Región Central","Contratación","2019-06-21","Todos","VIGENTE","Ninguna"]
[{"$f":"IF(ISERROR(VLOOKUP(B376,'Lista Desplegable'!$A$49:$C$64,3,0))=TRUE,\"Seleccione el proceso Correcto\",VLOOKUP(B376,'Lista Desplegable'!$A$49:$C$64,3,0))","v":"Dirección Ejecutiva"},"Gestión Jurídica","Resolución","Interna",167,"Por medio de la cual se aclara el NIT adjudicatario Fenix Media Group S.A.S. de la Resolución No. 165 de 2019","RAPE Región Central","Contratación","2019-06-25","Todos","VIGENTE","Ninguna"]
[{"$f":"IF(ISERROR(VLOOKUP(B377,'Lista Desplegable'!$A$49:$C$64,3,0))=TRUE,\"Seleccione el proceso Correcto\",VLOOKUP(B377,'Lista Desplegable'!$A$49:$C$64,3,0))","v":"Dirección Ejecutiva"},"Gestión Jurídica","Resolución","Interna",174,"Por medio de la cual se reconocen unos gastos y se ordena el reembolso de la caja menor.","RAPE Región Central","Caja menor","2019-07-02","Todos","VIGENTE","Ninguna"]
[{"$f":"IF(ISERROR(VLOOKUP(B378,'Lista Desplegable'!$A$49:$C$64,3,0))=TRUE,\"Seleccione el proceso Correcto\",VLOOKUP(B378,'Lista Desplegable'!$A$49:$C$64,3,0))","v":"Dirección Ejecutiva"},"Gestión Jurídica","Resolución","Interna",181,"Por medio de la cual se convoca a elecciones de los representantes de los empleados ante la comisión de personal de la Región Administrativa y de Planeación Especial RAPE - Región Central","RAPE Región Central","Comisión de Personal de la Región","2019-07-05","Todos","VIGENTE","Ninguna"]
[{"$f":"IF(ISERROR(VLOOKUP(B379,'Lista Desplegable'!$A$49:$C$64,3,0))=TRUE,\"Seleccione el proceso Correcto\",VLOOKUP(B379,'Lista Desplegable'!$A$49:$C$64,3,0))","v":"Dirección Ejecutiva"},"Gestión Jurídica","Resolución","Interna",186,"Por medio de la cual se modifica la Resolución 354 del 28 de diciembre de 2018","RAPE Región Central","Presupuesto de ingresos rentas y gastos ","2019-07-08","Todos","VIGENTE","Ninguna"]
[{"$f":"IF(ISERROR(VLOOKUP(B380,'Lista Desplegable'!$A$49:$C$64,3,0))=TRUE,\"Seleccione el proceso Correcto\",VLOOKUP(B380,'Lista Desplegable'!$A$49:$C$64,3,0))","v":"Dirección Ejecutiva"},"Gestión Jurídica","Resolución","Interna",193,"Por medio de la cual se adjudica el Proceso de Selección Abreviada de Menor Cuantía SAMC 009-2019","RAPE Región Central","Contratación","2019-07-12","Todos","VIGENTE","Ninguna"]
[{"$f":"IF(ISERROR(VLOOKUP(B381,'Lista Desplegable'!$A$49:$C$64,3,0))=TRUE,\"Seleccione el proceso Correcto\",VLOOKUP(B381,'Lista Desplegable'!$A$49:$C$64,3,0))","v":"Dirección Ejecutiva"},"Gestión Jurídica","Resolución","Interna",194,"Por la cual se modifica el Programa Anual Mensualizado de Caja PAC para la vigencia fiscal 2019 de la Región Administrativa y de Planeación Especial RAPE Región Central.","RAPE Región Central","Programa Anual Mensualizado de Caja PAC de Reservas Presupuestales y Cuentas por Pagar","2019-07-12","Todos","VIGENTE","Ninguna"]
[{"$f":"IF(ISERROR(VLOOKUP(B382,'Lista Desplegable'!$A$49:$C$64,3,0))=TRUE,\"Seleccione el proceso Correcto\",VLOOKUP(B382,'Lista Desplegable'!$A$49:$C$64,3,0))","v":"Dirección Ejecutiva"},"Gestión Jurídica","Resolución","Interna",199,"Por el cual se adopta el Manual de Funciones y Competencias Laborales de la Región Administrativa y de Planeación Especial denominada RAPE Región Central y se dictan otras disposiciones","RAPE Región Central","Manual de Funciones y Competencias Laborales","2019-07-15","Todos","VIGENTE","Ninguna"]
[{"$f":"IF(ISERROR(VLOOKUP(B383,'Lista Desplegable'!$A$49:$C$64,3,0))=TRUE,\"Seleccione el proceso Correcto\",VLOOKUP(B383,'Lista Desplegable'!$A$49:$C$64,3,0))","v":"Dirección Ejecutiva"},"Gestión Jurídica","Resolución","Interna",201,"Por medio de la cual se confiere modifica la Resolución 354 del 28 de diciembre de 2018","RAPE Región Central","Presupuesto de ingresos rentas y gastos ","2019-07-18","Todos","VIGENTE","Ninguna"]
[{"$f":"IF(ISERROR(VLOOKUP(B384,'Lista Desplegable'!$A$49:$C$64,3,0))=TRUE,\"Seleccione el proceso Correcto\",VLOOKUP(B384,'Lista Desplegable'!$A$49:$C$64,3,0))","v":"Dirección Ejecutiva"},"Gestión Jurídica","Resolución","Interna",207,"Por medio de la cual se ordena la apertura del Proceso de Selección Abreviada por Menor Cuantía No. 011-2019","RAPE Región Central","Contratación","2019-07-26","Todos","VIGENTE","Ninguna"]
[{"$f":"IF(ISERROR(VLOOKUP(B385,'Lista Desplegable'!$A$49:$C$64,3,0))=TRUE,\"Seleccione el proceso Correcto\",VLOOKUP(B385,'Lista Desplegable'!$A$49:$C$64,3,0))","v":"Dirección Ejecutiva"},"Gestión Jurídica","Resolución","Interna",216,"Por medio de la cual se modifica la Resolución 354 del 28 de diciembre de 2018","RAPE Región Central","Presupuesto de ingresos rentas y gastos ","2019-08-02","Todos","VIGENTE","Ninguna"]
[{"$f":"IF(ISERROR(VLOOKUP(B386,'Lista Desplegable'!$A$49:$C$64,3,0))=TRUE,\"Seleccione el proceso Correcto\",VLOOKUP(B386,'Lista Desplegable'!$A$49:$C$64,3,0))","v":"Dirección Ejecutiva"},"Gestión Jurídica","Resolución","Interna",218,"Por medio de la cual se reconocen unos gastos y se ordena el reembolso de la caja menor.","RAPE Región Central","Caja menor","2019-08-12","Todos","VIGENTE","Ninguna"]
[{"$f":"IF(ISERROR(VLOOKUP(B387,'Lista Desplegable'!$A$49:$C$64,3,0))=TRUE,\"Seleccione el proceso Correcto\",VLOOKUP(B387,'Lista Desplegable'!$A$49:$C$64,3,0))","v":"Dirección Ejecutiva"},"Gestión Jurídica","Resolución","Interna",219,"Por la cual se modifica la Resolución No. 026 de 2019 y se dictan otras disposiciones","RAPE Región Central","Caja menor","2019-08-12","Todos","VIGENTE","Ninguna"]
[{"$f":"IF(ISERROR(VLOOKUP(B388,'Lista Desplegable'!$A$49:$C$64,3,0))=TRUE,\"Seleccione el proceso Correcto\",VLOOKUP(B388,'Lista Desplegable'!$A$49:$C$64,3,0))","v":"Dirección Ejecutiva"},"Gestión Jurídica","Resolución","Interna",220,"Por la cual se modifica el Programa Anual Mensualizado de Caja PAC para la vigencia fiscal 2019 de la Región Administrativa y de Planeación Especial RAPE Región Central.","RAPE Región Central","Programa Anual Mensualizado de Caja PAC de Reservas Presupuestales y Cuentas por Pagar","2019-08-12","Todos","VIGENTE","Ninguna"]
[{"$f":"IF(ISERROR(VLOOKUP(B389,'Lista Desplegable'!$A$49:$C$64,3,0))=TRUE,\"Seleccione el proceso Correcto\",VLOOKUP(B389,'Lista Desplegable'!$A$49:$C$64,3,0))","v":"Dirección Ejecutiva"},"Gestión Jurídica","Resolución","Interna",225,"Por medio de la cual se modifica la Resolución 354 del 28 de diciembre de 2018","RAPE Región Central","Presupuesto de ingresos rentas y gastos ","2019-08-14","Todos","VIGENTE","Ninguna"]
[{"$f":"IF(ISERROR(VLOOKUP(B390,'Lista Desplegable'!$A$49:$C$64,3,0))=TRUE,\"Seleccione el proceso Correcto\",VLOOKUP(B390,'Lista Desplegable'!$A$49:$C$64,3,0))","v":"Dirección Ejecutiva"},"Gestión Jurídica","Resolución","Interna",228,"Por medio de la cual se conforma la Comisión de Personal de la Region Administrativa y de Planeación Especial RAPE - Region Central, para el periodo 2019-2021","RAPE Región Central","Comisión de Personal de la Región","2019-08-16","Todos","VIGENTE","Ninguna"]
[{"$f":"IF(ISERROR(VLOOKUP(B391,'Lista Desplegable'!$A$49:$C$64,3,0))=TRUE,\"Seleccione el proceso Correcto\",VLOOKUP(B391,'Lista Desplegable'!$A$49:$C$64,3,0))","v":"Dirección Ejecutiva"},"Gestión Jurídica","Resolución","Interna",229,"Por medio de la cual se ordena la apertura del proceso de Selección Abreviada por Subasta Inversa SASI 012-2019","RAPE Región Central","Contratación","2019-08-21","Todos","VIGENTE","Ninguna"]
[{"$f":"IF(ISERROR(VLOOKUP(B392,'Lista Desplegable'!$A$49:$C$64,3,0))=TRUE,\"Seleccione el proceso Correcto\",VLOOKUP(B392,'Lista Desplegable'!$A$49:$C$64,3,0))","v":"Dirección Ejecutiva"},"Gestión Jurídica","Resolución","Interna",238,"Por medio de la cual se adjudica el Proceso de Selección Abreviada por Menor Cuantía SAMC 011-2019","RAPE Región Central","Contratación","2019-08-27","Todos","VIGENTE","Ninguna"]

{"sheet":"Lista Desplegable","index":3,"n_rows":64,"n_cols":3,"rows_kept":64,"cut":false,"hidden":true,"merged":[]}
[]
["TIPO NORMA","TOTAL"]
["Constitución Política",{"$f":"COUNTIF('Resoluciones 2015'!$C$8:$C$65135,'Lista Desplegable'!A3)","v":0}]
["Ley ",{"$f":"COUNTIF('Resoluciones 2015'!$C$8:$C$65135,'Lista Desplegable'!A4)","v":0}]
["Decreto",{"$f":"COUNTIF('Resoluciones 2015'!$C$8:$C$65135,'Lista Desplegable'!A5)","v":0}]
["Decreto Ley",{"$f":"COUNTIF('Resoluciones 2015'!$C$8:$C$65135,'Lista Desplegable'!A6)","v":0}]
["Concepto",{"$f":"COUNTIF('Resoluciones 2015'!$C$8:$C$65135,'Lista Desplegable'!A7)","v":0}]
["Acuerdo",{"$f":"COUNTIF('Resoluciones 2015'!$C$8:$C$65135,'Lista Desplegable'!A8)","v":0}]
["Directiva",{"$f":"COUNTIF('Resoluciones 2015'!$C$8:$C$65135,'Lista Desplegable'!A9)","v":0}]
["Documento CONPES",{"$f":"COUNTIF('Resoluciones 2015'!$C$8:$C$65135,'Lista Desplegable'!A10)","v":0}]
["Reglamento",{"$f":"COUNTIF('Resoluciones 2015'!$C$8:$C$65135,'Lista Desplegable'!A11)","v":0}]
["Ordenanza",{"$f":"COUNTIF('Resoluciones 2015'!$C$8:$C$65135,'Lista Desplegable'!A12)","v":0}]
["Resolución",{"$f":"COUNTIF('Resoluciones 2015'!$C$8:$C$65135,'Lista Desplegable'!A13)","v":384}]
["Norma",{"$f":"COUNTIF('Resoluciones 2015'!$C$8:$C$65135,'Lista Desplegable'!A14)","v":0}]
["Guia",{"$f":"COUNTIF('Resoluciones 2015'!$C$8:$C$65135,'Lista Desplegable'!A15)","v":0}]
["Circular",{"$f":"COUNTIF('Resoluciones 2015'!$C$8:$C$65135,'Lista Desplegable'!A16)","v":0}]
["Convenio",{"$f":"COUNTIF('Resoluciones 2015'!$C$8:$C$65135,'Lista Desplegable'!A17)","v":0}]
["TOTAL",{"$f":"SUM(B3:B17)","v":384}]
[]
[]
["FUENTE","TOTAL"]
["Nacional",{"$f":"COUNTIF('Resoluciones 2015'!$D$48:$D$65135,'Lista Desplegable'!A22)","v":0}]
["Regional",{"$f":"COUNTIF('Resoluciones 2015'!$D$48:$D$65135,'Lista Desplegable'!A23)","v":0}]
["Departamental",{"$f":"COUNTIF('Resoluciones 2015'!$D$48:$D$65135,'Lista Desplegable'!A24)","v":0}]
["Municipal",{"$f":"COUNTIF('Resoluciones 2015'!$D$48:$D$65135,'Lista Desplegable'!A25)","v":0}]
["Distrital",{"$f":"COUNTIF('Resoluciones 2015'!$D$48:$D$65135,'Lista Desplegable'!A26)","v":0}]
["Técnica",{"$f":"COUNTIF('Resoluciones 2015'!$D$48:$D$65135,'Lista Desplegable'!A27)","v":0}]
["Interna",{"$f":"COUNTIF('Resoluciones 2015'!$D$48:$D$65135,'Lista Desplegable'!A28)","v":345}]
["Internacional",{"$f":"COUNTIF('Resoluciones 2015'!$D$48:$D$65135,'Lista Desplegable'!A29)","v":0}]
[null,{"$f":"COUNTIF('Resoluciones 2015'!$D$48:$D$65135,'Lista Desplegable'!A30)","v":0}]
["TOTAL",{"$f":"SUM(B22:B30)","v":345}]
[]
["ESTADO","TOTAL"]
["VIGENTE",{"$f":"COUNTIF('Resoluciones 2015'!$K$48:$K$65135,'Lista Desplegable'!A34)","v":345}]
["VIGENTE - DEROGADO PARCIALMENTE",{"$f":"COUNTIF('Resoluciones 2015'!$K$48:$K$65135,'Lista Desplegable'!A35)","v":0}]
["DEROGADO TOTALMENTE",{"$f":"COUNTIF('Resoluciones 2015'!$K$48:$K$65135,'Lista Desplegable'!A36)","v":0}]
[null,{"$f":"COUNTIF('Resoluciones 2015'!$K$48:$K$65135,'Lista Desplegable'!A37)","v":0}]
["TOTAL",{"$f":"SUM(B34:B37)","v":345}]
[]
["DEPENDENCIA","TOTAL"]
["Dirección Corporativa",{"$f":"COUNTIF('Resoluciones 2015'!$A$48:$A$65135,'Lista Desplegable'!A41)","v":0}]
["Oficina Asesora de Planeación Institucional",{"$f":"COUNTIF('Resoluciones 2015'!$A$48:$A$65135,'Lista Desplegable'!A42)","v":0}]
["Dirección Ejecutiva",{"$f":"COUNTIF('Resoluciones 2015'!$A$48:$A$65135,'Lista Desplegable'!A43)","v":345}]
["Dirección de Planificación, Gestión y Ejecución de Proyectos",{"$f":"COUNTIF('Resoluciones 2015'!$A$48:$A$65135,'Lista Desplegable'!A44)","v":0}]
["TOTAL",{"$f":"SUM(B41:B44)","v":345}]
[]
[]
["PROCESO","TOTAL","DEPENDENCIA"]
["Administración del SIG",{"$f":"COUNTIF('Resoluciones 2015'!$B$48:$B$65135,'Lista Desplegable'!A63)","v":0},"Oficina Asesora de Planeación Institucional"]
["Comunicación Institucional",{"$f":"COUNTIF('Resoluciones 2015'!$B$48:$B$65135,'Lista Desplegable'!A59)","v":0},"Dirección Ejecutiva"]
["Control y Mejoramiento Continuo",{"$f":"COUNTIF('Resoluciones 2015'!$B$48:$B$65135,'Lista Desplegable'!A55)","v":0},"Dirección Ejecutiva"]
["Direccionamiento Estratégico",{"$f":"COUNTIF('Resoluciones 2015'!$B$48:$B$65135,'Lista Desplegable'!A61)","v":345},"Oficina Asesora de Planeación Institucional"]
["Ejes estratégicos de planificación y gestión de impacto regional",{"$f":"COUNTIF('Resoluciones 2015'!$B$48:$B$65135,'Lista Desplegable'!A62)","v":0},"Dirección de Planificación, Gestión y Ejecución de Proyectos"]
["Gestión Contractual",{"$f":"COUNTIF('Resoluciones 2015'!$B$48:$B$65135,'Lista Desplegable'!A49)","v":0},"Dirección Corporativa"]
["Gestión de Bienes y Servicios",{"$f":"COUNTIF('Resoluciones 2015'!$B$48:$B$65135,'Lista Desplegable'!A52)","v":0},"Dirección Corporativa"]
["Gestión de la información y generación de servicios",{"$f":"COUNTIF('Resoluciones 2015'!$B$48:$B$65135,'Lista Desplegable'!A60)","v":0},"Dirección de Planificación, Gestión y Ejecución de Proyectos"]
["Gestión del Desarrollo Regional",{"$f":"COUNTIF('Resoluciones 2015'!$B$48:$B$65135,'Lista Desplegable'!A61)","v":345},"Dirección de Planificación, Gestión y Ejecución de Proyectos"]
["Gestión del Talento Humano",{"$f":"COUNTIF('Resoluciones 2015'!$B$48:$B$65135,'Lista Desplegable'!A58)","v":0},"Dirección Corporativa"]
["Gestión Documental",{"$f":"COUNTIF('Resoluciones 2015'!$B$48:$B$65135,'Lista Desplegable'!A51)","v":0},"Dirección Corporativa"]
["Gestión Financiera",{"$f":"COUNTIF('Resoluciones 2015'!$B$48:$B$65135,'Lista Desplegable'!A53)","v":0},"Dirección Corporativa"]
["Gestión Jurídica",{"$f":"COUNTIF('Resoluciones 2015'!$B$48:$B$65135,'Lista Desplegable'!A60)","v":0},"Dirección Ejecutiva"]
["Gestión TICs",{"$f":"COUNTIF('Resoluciones 2015'!$B$48:$B$65135,'Lista Desplegable'!A54)","v":0},"Dirección Corporativa"]
["Servicio al Ciudadano",{"$f":"COUNTIF('Resoluciones 2015'!$B$48:$B$65135,'Lista Desplegable'!A50)","v":0},"Dirección Corporativa"]
["TOTAL",{"$f":"SUM(B49:B63)","v":690}]

{"sheet":"cpr04","index":4,"n_rows":35,"n_cols":19,"rows_kept":35,"cut":false,"hidden":true,"merged":[[2,3,2,5],[5,1,5,2],[5,8,5,10],[5,12,5,14]]}
[]
[]
[null,null,null,"NORMOGRAMA",null,null,"11 de Julio de 2014"]
[]
[]
[null,"SERVICIO o PROCESO",null,null,null,null,null,null,"ORIGEN (marcar con \"X\")",null,null,null,"ESTADO (marcar con \"X\")"]
["ÁREA","CÓDIGO","NOMBRE","TIPO DE NORMA","NÚMERO DE IDENTIFICACIÓN","TÍTULO DEL DOCUMENTO","TEMA ESPECÍFICO","FECHA EXPEDICIÓN\n(DD/MM/AAAA)","Nacional","Distrital","Interno\nSDH","ARTÍCULOS","VIGENTE","DEROGADO PARCIALMENTE","DEROGADO TOTALMENTE","COMENTARIOS","Cambio Solicitado","Área Responsable","Fecha Cambio"]
["DGC","CPR-04","Calidad de Vida Laboral","Ley",9,"Por el cual se dictan medidas sanitarias","Código sanitario nacional","1979-01-24","X",null,null,null,"X",null,null,null,null,null,"N/A"]
["DGC","CPR-04","Calidad de Vida Laboral","Resolución",2400,"Estatuto de seguridad industrial",null,"1979-05-22","X",null,null,null,"X",null,null,null,null,null,"N/A"]
["DGC","CPR-04","Calidad de Vida Laboral","Decreto",614,"Por el cual se determinan las bases para la organización y administración de la salud ocupacional en el país ","bases para la administración de la salud ocupacional","1984-05-14","X",null,null,null,"X",null,null,null,null,null,"N/A"]
["DGC","CPR-04","Calidad de Vida Laboral","Resolución",2013,"Por el cual se reglamenta la organización y funcionamiento de los comités de medicina, higiene y seguridad en los lugares de trabajo","Reglamenta la organización y funcionamiento de los COPASOS en los lugares de trabajo","1986-06-06","X",null,null,null,"X",null,null,null,null,null,"N/A"]
["DGC","CPR-04","Calidad de Vida Laboral","Resolución",1016,"Por la cual se reglamenta la organización, funcionamiento y forma de los programas de salud ocupacional que deban desarrollar los patronos o empleadores en el país ","Reglamenta la organización, funcionamiento y forma de los programas de salud ocupacional","1989-03-31","X",null,null,null,"X",null,null,null,null,null,"N/A"]
["DGC","CPR-04","Calidad de Vida Laboral","Decreto",2177,"Por el cual se desarrolla la Ley  82 de 1988, aprobatoria del convenio número 159, con la organización internacional  el trabajo, sobre readaptación  profesional y el empleo de personas invalidas","Readaptación profesional","1989-09-21","X",null,null,null,"X",null,null,null,null,null,"N/A"]
["DGC","CPR-04","Calidad de Vida Laboral","Ley",100,"Por el cual se crea el sistema e seguridad social integral y se dictan  otras disposiciones","Sistema general de seguridad social en Colombia","1993-12-23","X",null,null,null,"X",null,null,null,null,null,"N/A"]
["DGC","CPR-04","Calidad de Vida Laboral","Decreto",1295,"Por el cual se determina la organización  y administración el sistema general  de riesgos profesionales","organización y administración del sistema general e riesgos profesionales","1994-06-22","X",null,null,null,"X",null,null,null,null,null,"N/A"]
["DGC","CPR-04","Calidad de Vida Laboral","Decreto",1772,"Por el cual se reglamenta la afiliación  y las cotizaciones al sistema general de riesgos profesionales","Reglamentación, afiliación y cotización al sistema general e riesgos profesionales","1994-08-03","X",null,null,null,"X",null,null,null,null,null,"N/A"]
["DGC","CPR-04","Calidad de Vida Laboral","Decreto",1832,"Por el cual se adopta la tabla de enfermedades profesionales","Adopta la tabla de enfermedades profesionales","1994-08-03","X",null,null,null,"X",null,null,null,null,null,"N/A"]
["DGC","CPR-04","Calidad de Vida Laboral","Decreto",1530,"Por el cual se reglamenta  la Ley 100 de 1993 y el decreto Ley 1295 de 1994","Se reglamenta la Ley 100 de 1993","1996-08-26","X",null,null,null,"X",null,null,null,null,null,"N/A"]
["DGC","CPR-04","Calidad de Vida Laboral","Ley",378,"Por medio de la cual se aprueba el \"convenio 161 sobre los servicios de salud  en el trabajo\"  adoptado por la 71 reunión de la conferencia general  de la Organización Internacional  del trabajo. OIT, Ginebra, 1985","Convenio 161 sobre los servicios de la salud en el trabajo","1997-07-09","X",null,null,null,"X",null,null,null,null,null,"N/A"]
["DGC","CPR-04","Calidad de Vida Laboral","Decreto - Ley",1567,"Por el cual se crea el sistema nacional  de capacitación y el sistema de estímulos para los empleados del estado","Sistema nacional de estímulos y capacitación","1998-08-05","X",null,null,null,"X",null,null,null,null,null,"N/A"]
["DGC","CPR-04","Calidad de Vida Laboral","Decreto",917,"Por el cual se modifica el decreto 692 de 1995","Manual único para la calificación de la Invalidez","1999-05-28","X",null,null,null,"X",null,null,null,null,null,"N/A"]
["DGC","CPR-04","Calidad de Vida Laboral","Decreto",2463,"Por el cual se reglamenta la integración, financiación y funcionamiento de las juntas de calificación de invalidez","Juntas de calificación de invalidez","2001-11-20","X",null,null,null,"X",null,null,null,null,null,"N/A"]
["DGC","CPR-04","Calidad de Vida Laboral","Ley",776,"Por el cual se dictan normas sobre la organización, administración y prestaciones del sistema general de riesgos profesionales","Organización sistema general de riesgos profesionales","2002-12-17","X",null,null,null,"X",null,null,null,null,null,"N/A"]
["DGC","CPR-04","Calidad de Vida Laboral","Resolución",185,"Por el cual se reglamenta el sistema de capacitación interna de la Secretaría Distrital de Hacienda","reglamentación  del sistema de capacitación e la Secretaría Distrital de Hacienda","2007",null,null,"X",null,"X",null,null,null,null,null,"N/A"]
["DGC","CPR-04","Calidad de Vida Laboral","Decreto",2800,"Por el se reglamenta la afiliación y cotización de los trabajadores independientes a riesgos profesionales","cotización de trabajadores independientes a riesgos profesionales","2003","X",null,null,null,"X",null,null,null,null,null,"N/A"]
["DGC","CPR-04","Calidad de Vida Laboral","Ley",909,"Por la cual se expiden normas que regulan el empleo público, la carrera administrativa, gerencia pública y se dictan otras disposiciones","Ley de carrera administrativa","2004-09-23","X",null,null,null,"X",null,null,null,null,null,"N/A"]
["DGC","CPR-04","Calidad de Vida Laboral","Circular","Unificada","Unifica las instrucciones para la vigilancia, control y administración del sistema general de riesgos profesionales.","Instrucciones a empleadores y ARP","2004-04-22","X",null,null,null,"X",null,null,null,null,null,"N/A"]
["DGC","CPR-04","Calidad de Vida Laboral","Circular",5,"Formación en puestos de trabajo",null,"2005","X",null,null,null,"X",null,null,null,null,null,"N/A"]
["DGC","CPR-04","Calidad de Vida Laboral","Circular",8,"Formación en puestos de trabajo",null,"2005","X",null,null,null,"X",null,null,null,null,null,"N/A"]
["DGC","CPR-04","Calidad de Vida Laboral","Ley",1010,"Por medio de la cual se adoptan medidas para prevenir, corregir y sancionar el acoso laboral y otros hostigamientos en el marco de las relaciones de trabajo","Mecanismos de prevención de situaciones de Acoso laboral","2006-01-23","X",null,null,null,"X",null,null,null,null,null,"N/A"]
["DGC","CPR-04","Calidad de Vida Laboral","Decreto",3615,"Por el cual se reglamenta la afiliación de los trabajadores independientes de manera colectiva al sistema de seguridad social integral ","Afiliación de trabajadores independientes de manera colectiva al sistema de seguridad","2005-10-10","x",null,null,null,"X",null,null,null,null,null,"N/A"]
["DGC","CPR-04","Calidad de Vida Laboral","Resolución",2346,"Por la cual se regula la práctica de evaluaciones médicas ocupacionales y el manejo y contenido de las historias clínicas ocupacionales.","Manejo de historias clínicas","2007-07-16","x",null,null,null,"X",null,null,null,null,null,"N/A"]
["DGC","CPR-04","Calidad de Vida Laboral","Decreto",2566,"Por el cual se adopta la tabla de enfermedades profesionales","Tabla de enfermedades","2009-07-07","x",null,null,null,"X",null,null,null,null,null,"N/A"]
["DGC","CPR-04","Calidad de Vida Laboral","Ley",1122,"Por el cual  se hacen algunas modificaciones en el sistema general de seguridad social  en  salud y  se dictan  otras disposiciones","Reforma del  sistema de seguridad social ","2007-01-09","X",null,null,null,"X",null,null,null,null,null,"N/A"]
["DGC","CPR-04","Calidad de Vida Laboral","Resolución","SDH-000185","Por la cual se reglamenta la capacitación y los programas de desarrollo integral  para los servidores de la Secretaría Distrital de Hacienda ","Capacitación y programas de desarrollo integral para la Secretaría distrital de Hacienda","2007-06-20",null,null,"X",null,"X",null,null,null,null,null,"N/A"]

{"sheet":"CONTROL DE CAMBIOS","index":5,"n_rows":5,"n_cols":7,"rows_kept":5,"cut":false,"hidden":true,"merged":[]}
[]
[null,null,"CONTROL DE CAMBIOS"]
[]
[]
[null,"Código del Proceso","Nombre del Proceso","Fecha de solicitud del cambio","Cambio solicitado","Documento soporte","Área Responsable"]